Transaction Date,Local Authority Department,BENEFICIARY,Purpose,Amount,Non Recoverable,Merchant Category
01-02-2023,Environment and Sustainable Transport,Project Centre Ltd,Consultancy Fees,25000,0,COMMERCIAL SUPPLIER
01-02-2023,Marketing,The New Black Film Collective,Arts And Leisure Costs,2000,0,VENDOR
01-02-2023,Housing Revenue Account,Chiltern Costs Consultants,Legal Fees,280,0,NON COMMERCIAL SUPPLIER
01-02-2023,Marketing,Rights & Equalities In Newham (Rein),Private Contractors Payment - Other,7200,0,VENDOR
01-02-2023,Dedicated Schools Budget,Personal Information - Redacted,Consultancy Fees,5600,0,COMMERCIAL SUPPLIER
01-02-2023,Inclusive Economy & Housing,Adam Khan Architects,"Maintenance - Equipment, Furniture And Materials",8526.5,0,COMMERCIAL SUPPLIER
01-02-2023,Housing Revenue Account,Sharpe Pritchard LLP,Legal Fees,7250,0,COMMERCIAL SUPPLIER
01-02-2023,Housing Revenue Account,Prowse Phillips Law Limited,Legal Fees,2000,0,INDIVIDUALS
01-02-2023,Adults & Health,Bluebird Care (Barking and Dagenham),Home Care - Private Contractors Payment,108.15,0,COMMERCIAL SUPPLIER
01-02-2023,Adults & Health,Bluebird Care (Barking and Dagenham),Daycare - Private Contractors Payment,61.8,0,COMMERCIAL SUPPLIER
01-02-2023,Adults & Health,Bluebird Care (Barking and Dagenham),Home Care - Private Contractors Payment,108.15,0,COMMERCIAL SUPPLIER
01-02-2023,Adults & Health,Bluebird Care (Barking and Dagenham),Home Care - Private Contractors Payment,108.15,0,COMMERCIAL SUPPLIER
01-02-2023,Adults & Health,Bluebird Care (Barking and Dagenham),Daycare - Private Contractors Payment,61.8,0,COMMERCIAL SUPPLIER
01-02-2023,Adults & Health,Bluebird Care (Barking and Dagenham),Daycare - Private Contractors Payment,61.8,0,COMMERCIAL SUPPLIER
01-02-2023,Adults & Health,Bluebird Care (Barking and Dagenham),Home Care - Private Contractors Payment,108.15,0,COMMERCIAL SUPPLIER
01-02-2023,Adults & Health,Bluebird Care (Barking and Dagenham),Daycare - Private Contractors Payment,61.8,0,COMMERCIAL SUPPLIER
01-02-2023,Children and Young People,Wesley Gryk Solicitors LLP,Legal Fees,550,0,COMMERCIAL SUPPLIER
01-02-2023,Adults & Health,Bluebird Care (Barking and Dagenham),Home Care - Private Contractors Payment,77.25,0,COMMERCIAL SUPPLIER
01-02-2023,Adults & Health,Bluebird Care (Barking and Dagenham),Home Care - Private Contractors Payment,108.15,0,COMMERCIAL SUPPLIER
01-02-2023,Adults & Health,Bluebird Care (Barking and Dagenham),Daycare - Private Contractors Payment,61.8,0,COMMERCIAL SUPPLIER
01-02-2023,Adults & Health,Bluebird Care (Barking and Dagenham),Home Care - Private Contractors Payment,108.15,0,COMMERCIAL SUPPLIER
01-02-2023,Adults & Health,Bluebird Care (Barking and Dagenham),Daycare - Private Contractors Payment,61.8,0,COMMERCIAL SUPPLIER
01-02-2023,Adults & Health,Bluebird Care (Barking and Dagenham),Home Care - Private Contractors Payment,108.15,0,COMMERCIAL SUPPLIER
01-02-2023,Adults & Health,Bluebird Care (Barking and Dagenham),Home Care - Private Contractors Payment,15.45,0,COMMERCIAL SUPPLIER
01-02-2023,Adults & Health,Bluebird Care (Barking and Dagenham),Daycare - Private Contractors Payment,11.52,0,COMMERCIAL SUPPLIER
01-02-2023,Adults & Health,Bluebird Care (Barking and Dagenham),Daycare - Private Contractors Payment,61.8,0,COMMERCIAL SUPPLIER
01-02-2023,Adults & Health,Bluebird Care (Barking and Dagenham),Home Care - Private Contractors Payment,108.15,0,COMMERCIAL SUPPLIER
01-02-2023,Adults & Health,Bluebird Care (Barking and Dagenham),Daycare - Private Contractors Payment,57.87,0,COMMERCIAL SUPPLIER
01-02-2023,Adults & Health,Bluebird Care (Barking and Dagenham),Home Care - Private Contractors Payment,108.15,0,COMMERCIAL SUPPLIER
01-02-2023,Adults & Health,Bluebird Care (Barking and Dagenham),Daycare - Private Contractors Payment,61.8,0,COMMERCIAL SUPPLIER
01-02-2023,Adults & Health,Bluebird Care (Barking and Dagenham),Home Care - Private Contractors Payment,108.15,0,COMMERCIAL SUPPLIER
01-02-2023,Adults & Health,Bluebird Care (Barking and Dagenham),Daycare - Private Contractors Payment,61.8,0,COMMERCIAL SUPPLIER
01-02-2023,Adults & Health,Bluebird Care (Barking and Dagenham),Home Care - Private Contractors Payment,108.15,0,COMMERCIAL SUPPLIER
01-02-2023,Adults & Health,Bluebird Care (Barking and Dagenham),Daycare - Private Contractors Payment,61.8,0,COMMERCIAL SUPPLIER
01-02-2023,Adults & Health,Bluebird Care (Barking and Dagenham),Daycare - Private Contractors Payment,53.58,0,COMMERCIAL SUPPLIER
01-02-2023,Adults & Health,Bluebird Care (Barking and Dagenham),Daycare - Private Contractors Payment,61.8,0,COMMERCIAL SUPPLIER
01-02-2023,Adults & Health,Bluebird Care (Barking and Dagenham),Home Care - Private Contractors Payment,108.15,0,COMMERCIAL SUPPLIER
01-02-2023,Adults & Health,Bluebird Care (Barking and Dagenham),Daycare - Private Contractors Payment,61.8,0,COMMERCIAL SUPPLIER
01-02-2023,Adults & Health,Bluebird Care (Barking and Dagenham),Home Care - Private Contractors Payment,108.15,0,COMMERCIAL SUPPLIER
01-02-2023,Adults & Health,Bluebird Care (Barking and Dagenham),Home Care - Private Contractors Payment,108.15,0,COMMERCIAL SUPPLIER
01-02-2023,Adults & Health,Bluebird Care (Barking and Dagenham),Home Care - Private Contractors Payment,108.15,0,COMMERCIAL SUPPLIER
01-02-2023,Adults & Health,Bluebird Care (Barking and Dagenham),Daycare - Private Contractors Payment,44.53,0,COMMERCIAL SUPPLIER
01-02-2023,Adults & Health,Bluebird Care (Barking and Dagenham),Home Care - Private Contractors Payment,108.15,0,COMMERCIAL SUPPLIER
01-02-2023,Adults & Health,Bluebird Care (Barking and Dagenham),Daycare - Private Contractors Payment,61.8,0,COMMERCIAL SUPPLIER
01-02-2023,Adults & Health,Bluebird Care (Barking and Dagenham),Home Care - Private Contractors Payment,108.15,0,COMMERCIAL SUPPLIER
01-02-2023,Adults & Health,Bluebird Care (Barking and Dagenham),Daycare - Private Contractors Payment,61.8,0,COMMERCIAL SUPPLIER
01-02-2023,Adults & Health,Bluebird Care (Barking and Dagenham),Home Care - Private Contractors Payment,108.15,0,COMMERCIAL SUPPLIER
01-02-2023,Adults & Health,Bluebird Care (Barking and Dagenham),Daycare - Private Contractors Payment,61.8,0,COMMERCIAL SUPPLIER
01-02-2023,Adults & Health,Bluebird Care (Barking and Dagenham),Home Care - Private Contractors Payment,108.15,0,COMMERCIAL SUPPLIER
01-02-2023,Adults & Health,Bluebird Care (Barking and Dagenham),Daycare - Private Contractors Payment,61.8,0,COMMERCIAL SUPPLIER
01-02-2023,Adults & Health,Bluebird Care (Barking and Dagenham),Home Care - Private Contractors Payment,108.15,0,COMMERCIAL SUPPLIER
01-02-2023,Adults & Health,Bluebird Care (Barking and Dagenham),Daycare - Private Contractors Payment,61.8,0,COMMERCIAL SUPPLIER
01-02-2023,Adults & Health,Bluebird Care (Barking and Dagenham),Home Care - Private Contractors Payment,108.15,0,COMMERCIAL SUPPLIER
01-02-2023,Adults & Health,Bluebird Care (Barking and Dagenham),Daycare - Private Contractors Payment,61.8,0,COMMERCIAL SUPPLIER
01-02-2023,Adults & Health,Bluebird Care (Barking and Dagenham),Home Care - Private Contractors Payment,108.15,0,COMMERCIAL SUPPLIER
01-02-2023,Adults & Health,Bluebird Care (Barking and Dagenham),Home Care - Private Contractors Payment,108.15,0,COMMERCIAL SUPPLIER
01-02-2023,Environment and Sustainable Transport,Floglass Limited,"Purchase - Equipment, Furniture And Materials",404.28,0,COMMERCIAL SUPPLIER
01-02-2023,Adults & Health,Satash Community Care Projects Limited,Daycare - Private Contractors Payment,243.36,0,VENDOR
01-02-2023,Adults & Health,Satash Community Care Projects Limited,Daycare - Private Contractors Payment,243.36,0,VENDOR
01-02-2023,Adults & Health,Satash Community Care Projects Limited,Daycare - Private Contractors Payment,243.36,0,VENDOR
01-02-2023,Adults & Health,Satash Community Care Projects Limited,Daycare - Private Contractors Payment,243.36,0,VENDOR
01-02-2023,Adults & Health,Valuing  Care Limited,Consultancy Fees,2500,0,COMMERCIAL SUPPLIER
01-02-2023,Housing Revenue Account,Driscoll Kingston Solicitors,Legal Fees,3076.88,0,NON COMMERCIAL SUPPLIER
01-02-2023,Housing Revenue Account,ClimateView AB,Ict Hardware,62999,0,VENDOR
01-02-2023,Housing Revenue Account,Daisy Corporate Services Trading Ltd,Cyclical/Planned Maintenance - Mechanical And Electrical,321.86,0,COMMERCIAL SUPPLIER
01-02-2023,Housing Revenue Account,Daisy Corporate Services Trading Ltd,Land Line Telephone Costs,3622.04,0,COMMERCIAL SUPPLIER
01-02-2023,oneSource - Non Shared,Laker Bms,Building Alterations And Materials,700.31,0,CIS
01-02-2023,Children and Young People,Goldline Cars Ltd,Client Transport,9537.5,0,COMMERCIAL SUPPLIER
01-02-2023,Children and Young People,Goldline Cars Ltd,Client Transport,1690,0,COMMERCIAL SUPPLIER
01-02-2023,Children and Young People,Goldline Cars Ltd,Client Transport,740,0,COMMERCIAL SUPPLIER
01-02-2023,Children and Young People,Goldline Cars Ltd,Client Transport,1680,0,COMMERCIAL SUPPLIER
01-02-2023,Adults & Health,Eastway Care Ltd,Daycare - Private Contractors Payment,645.3,0,COMMERCIAL SUPPLIER
01-02-2023,Adults & Health,Eastway Care Ltd,Daycare - Private Contractors Payment,645.3,0,COMMERCIAL SUPPLIER
01-02-2023,Adults & Health,Eastway Care Ltd,Daycare - Private Contractors Payment,645.3,0,COMMERCIAL SUPPLIER
01-02-2023,Adults & Health,Eastway Care Ltd,Daycare - Private Contractors Payment,645.3,0,COMMERCIAL SUPPLIER
01-02-2023,Adults & Health,Eastway Care Ltd,Daycare - Private Contractors Payment,645.3,0,COMMERCIAL SUPPLIER
01-02-2023,Adults & Health,Eastway Care Ltd,Daycare - Private Contractors Payment,645.3,0,COMMERCIAL SUPPLIER
01-02-2023,Adults & Health,Eastway Care Ltd,Daycare - Private Contractors Payment,645.3,0,COMMERCIAL SUPPLIER
01-02-2023,Adults & Health,Eastway Care Ltd,Daycare - Private Contractors Payment,645.3,0,COMMERCIAL SUPPLIER
01-02-2023,Adults & Health,Eastway Care Ltd,Daycare - Private Contractors Payment,645.3,0,COMMERCIAL SUPPLIER
01-02-2023,Adults & Health,Eastway Care Ltd,Daycare - Private Contractors Payment,645.3,0,COMMERCIAL SUPPLIER
01-02-2023,Adults & Health,Eastway Care Ltd,Daycare - Private Contractors Payment,645.3,0,COMMERCIAL SUPPLIER
01-02-2023,Adults & Health,Eastway Care Ltd,Daycare - Private Contractors Payment,645.3,0,COMMERCIAL SUPPLIER
01-02-2023,Adults & Health,Eastway Care Ltd,Daycare - Private Contractors Payment,645.3,0,COMMERCIAL SUPPLIER
01-02-2023,Adults & Health,Eastway Care Ltd,Daycare - Private Contractors Payment,645.3,0,COMMERCIAL SUPPLIER
01-02-2023,Adults & Health,Eastway Care Ltd,Daycare - Private Contractors Payment,645.3,0,COMMERCIAL SUPPLIER
01-02-2023,Adults & Health,Eastway Care Ltd,Daycare - Private Contractors Payment,645.3,0,COMMERCIAL SUPPLIER
01-02-2023,Adults & Health,Eastway Care Ltd,Daycare - Private Contractors Payment,645.3,0,COMMERCIAL SUPPLIER
01-02-2023,Adults & Health,Eastway Care Ltd,Daycare - Private Contractors Payment,645.3,0,COMMERCIAL SUPPLIER
01-02-2023,Adults & Health,Eastway Care Ltd,Daycare - Private Contractors Payment,645.3,0,COMMERCIAL SUPPLIER
01-02-2023,Adults & Health,Eastway Care Ltd,Daycare - Private Contractors Payment,645.3,0,COMMERCIAL SUPPLIER
01-02-2023,Adults & Health,Eastway Care Ltd,Daycare - Private Contractors Payment,645.3,0,COMMERCIAL SUPPLIER
01-02-2023,Adults & Health,Eastway Care Ltd,Daycare - Private Contractors Payment,645.3,0,COMMERCIAL SUPPLIER
01-02-2023,Adults & Health,Eastway Care Ltd,Daycare - Private Contractors Payment,645.3,0,COMMERCIAL SUPPLIER
01-02-2023,Adults & Health,Eastway Care Ltd,Daycare - Private Contractors Payment,645.3,0,COMMERCIAL SUPPLIER
01-02-2023,Adults & Health,Eastway Care Ltd,Daycare - Private Contractors Payment,645.3,0,COMMERCIAL SUPPLIER
01-02-2023,Adults & Health,Eastway Care Ltd,Daycare - Private Contractors Payment,645.3,0,COMMERCIAL SUPPLIER
01-02-2023,Adults & Health,Eastway Care Ltd,Daycare - Private Contractors Payment,645.3,0,COMMERCIAL SUPPLIER
01-02-2023,Adults & Health,Eastway Care Ltd,Daycare - Private Contractors Payment,645.3,0,COMMERCIAL SUPPLIER
01-02-2023,Adults & Health,Eastway Care Ltd,Daycare - Private Contractors Payment,645.3,0,COMMERCIAL SUPPLIER
01-02-2023,Adults & Health,Eastway Care Ltd,Daycare - Private Contractors Payment,645.3,0,COMMERCIAL SUPPLIER
01-02-2023,Adults & Health,Eastway Care Ltd,Daycare - Private Contractors Payment,645.3,0,COMMERCIAL SUPPLIER
01-02-2023,Adults & Health,Eastway Care Ltd,Daycare - Private Contractors Payment,645.3,0,COMMERCIAL SUPPLIER
01-02-2023,Housing Revenue Account,MLA Solicitors,Legal Fees,1685,0,LEGAL SERVICES
01-02-2023,Adults & Health,Chosen Care Group Ltd,Daycare - Private Contractors Payment,19.16,0,VENDOR
01-02-2023,Adults & Health,Chosen Care Group Ltd,Home Care - Private Contractors Payment,100.59,0,VENDOR
01-02-2023,Adults & Health,Chosen Care Group Ltd,Home Care - Private Contractors Payment,191.6,0,VENDOR
01-02-2023,Adults & Health,Chosen Care Group Ltd,Home Care - Private Contractors Payment,431.1,0,VENDOR
01-02-2023,Adults & Health,Chosen Care Group Ltd,Home Care - Private Contractors Payment,201.18,0,VENDOR
01-02-2023,Adults & Health,Chosen Care Group Ltd,Home Care - Private Contractors Payment,268.24,0,VENDOR
01-02-2023,Adults & Health,Chosen Care Group Ltd,Reablement,134.12,0,VENDOR
01-02-2023,Adults & Health,Chosen Care Group Ltd,Reablement,134.12,0,VENDOR
01-02-2023,Adults & Health,Chosen Care Group Ltd,Home Care - Private Contractors Payment,301.77,0,VENDOR
01-02-2023,Adults & Health,Chosen Care Group Ltd,Home Care - Private Contractors Payment,19.16,0,VENDOR
01-02-2023,Adults & Health,Chosen Care Group Ltd,Daycare - Private Contractors Payment,306.56,0,VENDOR
01-02-2023,Adults & Health,Chosen Care Group Ltd,Home Care - Private Contractors Payment,426.31,0,VENDOR
01-02-2023,Adults & Health,Chosen Care Group Ltd,Home Care - Private Contractors Payment,1572.48,0,VENDOR
01-02-2023,Adults & Health,Chosen Care Group Ltd,Home Care - Private Contractors Payment,167.65,0,VENDOR
01-02-2023,Adults & Health,Chosen Care Group Ltd,Home Care - Private Contractors Payment,335.3,0,VENDOR
01-02-2023,Adults & Health,Chosen Care Group Ltd,Home Care - Private Contractors Payment,234.71,0,VENDOR
01-02-2023,Adults & Health,Chosen Care Group Ltd,Home Care - Private Contractors Payment,301.77,0,VENDOR
01-02-2023,Adults & Health,Chosen Care Group Ltd,Home Care - Private Contractors Payment,167.65,0,VENDOR
01-02-2023,Adults & Health,Chosen Care Group Ltd,Respite Care - Private Contractors Payment,134.12,0,VENDOR
01-02-2023,Adults & Health,Chosen Care Group Ltd,Respite Care - Private Contractors Payment,38.32,0,VENDOR
01-02-2023,Adults & Health,Chosen Care Group Ltd,Home Care - Private Contractors Payment,268.24,0,VENDOR
01-02-2023,Adults & Health,Chosen Care Group Ltd,Home Care - Private Contractors Payment,81.43,0,VENDOR
01-02-2023,Adults & Health,Chosen Care Group Ltd,Home Care - Private Contractors Payment,201.18,0,VENDOR
01-02-2023,Adults & Health,Chosen Care Group Ltd,Home Care - Private Contractors Payment,134.12,0,VENDOR
01-02-2023,Adults & Health,Chosen Care Group Ltd,Home Care - Private Contractors Payment,86.22,0,VENDOR
01-02-2023,Adults & Health,Chosen Care Group Ltd,Home Care - Private Contractors Payment,67.06,0,VENDOR
01-02-2023,Adults & Health,Chosen Care Group Ltd,Home Care - Private Contractors Payment,38.32,0,VENDOR
01-02-2023,Adults & Health,Chosen Care Group Ltd,Home Care - Private Contractors Payment,301.77,0,VENDOR
01-02-2023,Adults & Health,Chosen Care Group Ltd,Reablement,134.12,0,VENDOR
01-02-2023,Adults & Health,Chosen Care Group Ltd,Home Care - Private Contractors Payment,301.77,0,VENDOR
01-02-2023,Adults & Health,Chosen Care Group Ltd,Home Care - Private Contractors Payment,100.59,0,VENDOR
01-02-2023,Adults & Health,Chosen Care Group Ltd,Home Care - Private Contractors Payment,215.55,0,VENDOR
01-02-2023,Adults & Health,Chosen Care Group Ltd,Home Care - Private Contractors Payment,234.71,0,VENDOR
01-02-2023,Adults & Health,Chosen Care Group Ltd,Home Care - Private Contractors Payment,201.18,0,VENDOR
01-02-2023,Adults & Health,Chosen Care Group Ltd,Home Care - Private Contractors Payment,38.32,0,VENDOR
01-02-2023,Adults & Health,Chosen Care Group Ltd,Home Care - Private Contractors Payment,292.19,0,VENDOR
01-02-2023,Adults & Health,Chosen Care Group Ltd,Home Care - Private Contractors Payment,1207.08,0,VENDOR
01-02-2023,Adults & Health,Chosen Care Group Ltd,Home Care - Private Contractors Payment,100.59,0,VENDOR
01-02-2023,Adults & Health,Chosen Care Group Ltd,Home Care - Private Contractors Payment,100.59,0,VENDOR
01-02-2023,Adults & Health,Chosen Care Group Ltd,Home Care - Private Contractors Payment,570.01,0,VENDOR
01-02-2023,Adults & Health,Chosen Care Group Ltd,Home Care - Private Contractors Payment,67.06,0,VENDOR
01-02-2023,Adults & Health,Chosen Care Group Ltd,Daycare - Private Contractors Payment,19.16,0,VENDOR
01-02-2023,Adults & Health,Chosen Care Group Ltd,Home Care - Private Contractors Payment,19.16,0,VENDOR
01-02-2023,Adults & Health,Chosen Care Group Ltd,Reablement,14.37,0,VENDOR
01-02-2023,Adults & Health,Chosen Care Group Ltd,Home Care - Private Contractors Payment,603.54,0,VENDOR
01-02-2023,Adults & Health,Chosen Care Group Ltd,Home Care - Private Contractors Payment,67.06,0,VENDOR
01-02-2023,Adults & Health,Chosen Care Group Ltd,Home Care - Private Contractors Payment,167.65,0,VENDOR
01-02-2023,Adults & Health,Chosen Care Group Ltd,Home Care - Private Contractors Payment,38.32,0,VENDOR
01-02-2023,Adults & Health,Chosen Care Group Ltd,Home Care - Private Contractors Payment,38.32,0,VENDOR
01-02-2023,Adults & Health,Chosen Care Group Ltd,Home Care - Private Contractors Payment,234.71,0,VENDOR
01-02-2023,Adults & Health,Chosen Care Group Ltd,Home Care - Private Contractors Payment,435.89,0,VENDOR
01-02-2023,Adults & Health,Chosen Care Group Ltd,Home Care - Private Contractors Payment,570.01,0,VENDOR
01-02-2023,Adults & Health,Chosen Care Group Ltd,Home Care - Private Contractors Payment,340.09,0,VENDOR
01-02-2023,Adults & Health,Chosen Care Group Ltd,Home Care - Private Contractors Payment,268.24,0,VENDOR
01-02-2023,Adults & Health,Chosen Care Group Ltd,Home Care - Private Contractors Payment,340.09,0,VENDOR
01-02-2023,Adults & Health,Chosen Care Group Ltd,Daycare - Private Contractors Payment,57.48,0,VENDOR
01-02-2023,Adults & Health,Chosen Care Group Ltd,Home Care - Private Contractors Payment,33.53,0,VENDOR
01-02-2023,Adults & Health,Chosen Care Group Ltd,Home Care - Private Contractors Payment,57.48,0,VENDOR
01-02-2023,Adults & Health,Chosen Care Group Ltd,Home Care - Private Contractors Payment,100.59,0,VENDOR
01-02-2023,Adults & Health,Chosen Care Group Ltd,Home Care - Private Contractors Payment,292.19,0,VENDOR
01-02-2023,Adults & Health,Chosen Care Group Ltd,Home Care - Private Contractors Payment,38.32,0,VENDOR
01-02-2023,Adults & Health,Chosen Care Group Ltd,Home Care - Private Contractors Payment,215.55,0,VENDOR
01-02-2023,Adults & Health,Chosen Care Group Ltd,Home Care - Private Contractors Payment,301.77,0,VENDOR
01-02-2023,Adults & Health,Chosen Care Group Ltd,Home Care - Private Contractors Payment,167.65,0,VENDOR
01-02-2023,Adults & Health,Chosen Care Group Ltd,Home Care - Private Contractors Payment,301.77,0,VENDOR
01-02-2023,Adults & Health,Chosen Care Group Ltd,Home Care - Private Contractors Payment,301.77,0,VENDOR
01-02-2023,Adults & Health,Chosen Care Group Ltd,Home Care - Private Contractors Payment,134.12,0,VENDOR
01-02-2023,Adults & Health,Chosen Care Group Ltd,Home Care - Private Contractors Payment,268.24,0,VENDOR
01-02-2023,Adults & Health,Chosen Care Group Ltd,Daycare - Private Contractors Payment,19.16,0,VENDOR
01-02-2023,Adults & Health,Chosen Care Group Ltd,Home Care - Private Contractors Payment,954,0,VENDOR
01-02-2023,Adults & Health,Chosen Care Group Ltd,Home Care - Private Contractors Payment,301.77,0,VENDOR
01-02-2023,Adults & Health,Chosen Care Group Ltd,Daycare - Private Contractors Payment,172.44,0,VENDOR
01-02-2023,Adults & Health,Chosen Care Group Ltd,Home Care - Private Contractors Payment,100.59,0,VENDOR
01-02-2023,Adults & Health,Chosen Care Group Ltd,Home Care - Private Contractors Payment,67.06,0,VENDOR
01-02-2023,Adults & Health,Chosen Care Group Ltd,Home Care - Private Contractors Payment,234.71,0,VENDOR
01-02-2023,Adults & Health,Chosen Care Group Ltd,Home Care - Private Contractors Payment,301.77,0,VENDOR
01-02-2023,Adults & Health,Chosen Care Group Ltd,Home Care - Private Contractors Payment,47.9,0,VENDOR
01-02-2023,Adults & Health,Chosen Care Group Ltd,Home Care - Private Contractors Payment,301.77,0,VENDOR
01-02-2023,Adults & Health,Chosen Care Group Ltd,Home Care - Private Contractors Payment,167.65,0,VENDOR
01-02-2023,Adults & Health,Chosen Care Group Ltd,Home Care - Private Contractors Payment,95.8,0,VENDOR
01-02-2023,Adults & Health,Chosen Care Group Ltd,Daycare - Private Contractors Payment,28.74,0,VENDOR
01-02-2023,Adults & Health,Chosen Care Group Ltd,Reablement,14.37,0,VENDOR
01-02-2023,Adults & Health,Chosen Care Group Ltd,Home Care - Private Contractors Payment,301.77,0,VENDOR
01-02-2023,Adults & Health,Chosen Care Group Ltd,Home Care - Private Contractors Payment,134.12,0,VENDOR
01-02-2023,Adults & Health,Chosen Care Group Ltd,Home Care - Private Contractors Payment,234.71,0,VENDOR
01-02-2023,Adults & Health,Chosen Care Group Ltd,Home Care - Private Contractors Payment,57.48,0,VENDOR
01-02-2023,Adults & Health,Chosen Care Group Ltd,Home Care - Private Contractors Payment,14.37,0,VENDOR
01-02-2023,Adults & Health,Chosen Care Group Ltd,Home Care - Private Contractors Payment,426.31,0,VENDOR
01-02-2023,Adults & Health,Chosen Care Group Ltd,Home Care - Private Contractors Payment,234.71,0,VENDOR
01-02-2023,Adults & Health,Chosen Care Group Ltd,Respite Care - Private Contractors Payment,38.32,0,VENDOR
01-02-2023,Adults & Health,Chosen Care Group Ltd,Home Care - Private Contractors Payment,536.48,0,VENDOR
01-02-2023,Adults & Health,Chosen Care Group Ltd,Daycare - Private Contractors Payment,124.54,0,VENDOR
01-02-2023,Adults & Health,Chosen Care Group Ltd,Home Care - Private Contractors Payment,402.36,0,VENDOR
01-02-2023,Adults & Health,Chosen Care Group Ltd,Home Care - Private Contractors Payment,301.77,0,VENDOR
01-02-2023,Adults & Health,Chosen Care Group Ltd,Home Care - Private Contractors Payment,268.24,0,VENDOR
01-02-2023,Adults & Health,Chosen Care Group Ltd,Home Care - Private Contractors Payment,86.22,0,VENDOR
01-02-2023,Adults & Health,Chosen Care Group Ltd,Home Care - Private Contractors Payment,95.8,0,VENDOR
01-02-2023,Adults & Health,Chosen Care Group Ltd,Home Care - Private Contractors Payment,536.48,0,VENDOR
01-02-2023,Adults & Health,Chosen Care Group Ltd,Home Care - Private Contractors Payment,81.43,0,VENDOR
01-02-2023,Adults & Health,Chosen Care Group Ltd,Home Care - Private Contractors Payment,100.59,0,VENDOR
01-02-2023,Adults & Health,Chosen Care Group Ltd,Home Care - Private Contractors Payment,86.22,0,VENDOR
01-02-2023,Adults & Health,Chosen Care Group Ltd,Home Care - Private Contractors Payment,19.16,0,VENDOR
01-02-2023,Adults & Health,Chosen Care Group Ltd,Home Care - Private Contractors Payment,162.86,0,VENDOR
01-02-2023,Adults & Health,Chosen Care Group Ltd,Home Care - Private Contractors Payment,86.22,0,VENDOR
01-02-2023,Adults & Health,Chosen Care Group Ltd,Home Care - Private Contractors Payment,153.28,0,VENDOR
01-02-2023,Adults & Health,Chosen Care Group Ltd,Home Care - Private Contractors Payment,47.9,0,VENDOR
01-02-2023,Adults & Health,Chosen Care Group Ltd,Daycare - Private Contractors Payment,124.54,0,VENDOR
01-02-2023,Adults & Health,Chosen Care Group Ltd,Home Care - Private Contractors Payment,119.75,0,VENDOR
01-02-2023,Adults & Health,Chosen Care Group Ltd,Home Care - Private Contractors Payment,158.07,0,VENDOR
01-02-2023,Adults & Health,Chosen Care Group Ltd,Home Care - Private Contractors Payment,167.65,0,VENDOR
01-02-2023,Adults & Health,Chosen Care Group Ltd,Home Care - Private Contractors Payment,67.06,0,VENDOR
01-02-2023,Adults & Health,Chosen Care Group Ltd,Home Care - Private Contractors Payment,301.77,0,VENDOR
01-02-2023,Adults & Health,Chosen Care Group Ltd,Daycare - Private Contractors Payment,287.4,0,VENDOR
01-02-2023,Adults & Health,Chosen Care Group Ltd,Home Care - Private Contractors Payment,1207.08,0,VENDOR
01-02-2023,Adults & Health,Chosen Care Group Ltd,Home Care - Private Contractors Payment,234.71,0,VENDOR
01-02-2023,Adults & Health,Chosen Care Group Ltd,Home Care - Private Contractors Payment,301.77,0,VENDOR
01-02-2023,Adults & Health,Chosen Care Group Ltd,Home Care - Private Contractors Payment,603.54,0,VENDOR
01-02-2023,Adults & Health,Chosen Care Group Ltd,Home Care - Private Contractors Payment,38.32,0,VENDOR
01-02-2023,Adults & Health,Chosen Care Group Ltd,Home Care - Private Contractors Payment,234.71,0,VENDOR
01-02-2023,Adults & Health,Chosen Care Group Ltd,Reablement,234.71,0,VENDOR
01-02-2023,Adults & Health,Chosen Care Group Ltd,Home Care - Private Contractors Payment,38.32,0,VENDOR
01-02-2023,Adults & Health,Chosen Care Group Ltd,Daycare - Private Contractors Payment,172.44,0,VENDOR
01-02-2023,Adults & Health,Chosen Care Group Ltd,Home Care - Private Contractors Payment,301.77,0,VENDOR
01-02-2023,Adults & Health,Chosen Care Group Ltd,Home Care - Private Contractors Payment,301.77,0,VENDOR
01-02-2023,Adults & Health,Chosen Care Group Ltd,Daycare - Private Contractors Payment,57.48,0,VENDOR
01-02-2023,Adults & Health,Chosen Care Group Ltd,Home Care - Private Contractors Payment,570.01,0,VENDOR
01-02-2023,Adults & Health,Chosen Care Group Ltd,Daycare - Private Contractors Payment,28.74,0,VENDOR
01-02-2023,Adults & Health,Chosen Care Group Ltd,Home Care - Private Contractors Payment,57.48,0,VENDOR
01-02-2023,Adults & Health,Chosen Care Group Ltd,Home Care - Private Contractors Payment,158.07,0,VENDOR
01-02-2023,Adults & Health,Chosen Care Group Ltd,Home Care - Private Contractors Payment,536.48,0,VENDOR
01-02-2023,Adults & Health,Chosen Care Group Ltd,Reablement,19.16,0,VENDOR
01-02-2023,Adults & Health,Chosen Care Group Ltd,Home Care - Private Contractors Payment,81.43,0,VENDOR
01-02-2023,Adults & Health,Chosen Care Group Ltd,Respite Care - Private Contractors Payment,28.74,0,VENDOR
01-02-2023,Adults & Health,Chosen Care Group Ltd,Home Care - Private Contractors Payment,19.16,0,VENDOR
01-02-2023,Adults & Health,Chosen Care Group Ltd,Reablement,14.37,0,VENDOR
01-02-2023,Adults & Health,Chosen Care Group Ltd,Home Care - Private Contractors Payment,215.55,0,VENDOR
01-02-2023,Adults & Health,Chosen Care Group Ltd,Home Care - Private Contractors Payment,100.59,0,VENDOR
01-02-2023,Adults & Health,Chosen Care Group Ltd,Home Care - Private Contractors Payment,268.24,0,VENDOR
01-02-2023,Adults & Health,Chosen Care Group Ltd,Home Care - Private Contractors Payment,167.65,0,VENDOR
01-02-2023,Adults & Health,Chosen Care Group Ltd,Home Care - Private Contractors Payment,43.11,0,VENDOR
01-02-2023,Adults & Health,Chosen Care Group Ltd,Home Care - Private Contractors Payment,268.24,0,VENDOR
01-02-2023,Adults & Health,Chosen Care Group Ltd,Home Care - Private Contractors Payment,268.24,0,VENDOR
01-02-2023,Adults & Health,Chosen Care Group Ltd,Daycare - Private Contractors Payment,28.74,0,VENDOR
01-02-2023,Adults & Health,Chosen Care Group Ltd,Respite Care - Private Contractors Payment,172.44,0,VENDOR
01-02-2023,Adults & Health,Chosen Care Group Ltd,Home Care - Private Contractors Payment,239.5,0,VENDOR
01-02-2023,Adults & Health,Chosen Care Group Ltd,Home Care - Private Contractors Payment,603.54,0,VENDOR
01-02-2023,Adults & Health,Chosen Care Group Ltd,Daycare - Private Contractors Payment,47.9,0,VENDOR
01-02-2023,Adults & Health,Chosen Care Group Ltd,Home Care - Private Contractors Payment,38.32,0,VENDOR
01-02-2023,Adults & Health,Chosen Care Group Ltd,Home Care - Private Contractors Payment,28.74,0,VENDOR
01-02-2023,Adults & Health,Chosen Care Group Ltd,Home Care - Private Contractors Payment,402.36,0,VENDOR
01-02-2023,Adults & Health,Chosen Care Group Ltd,Home Care - Private Contractors Payment,67.06,0,VENDOR
01-02-2023,Adults & Health,Chosen Care Group Ltd,Home Care - Private Contractors Payment,19.16,0,VENDOR
01-02-2023,Adults & Health,Chosen Care Group Ltd,Home Care - Private Contractors Payment,603.54,0,VENDOR
01-02-2023,Adults & Health,Chosen Care Group Ltd,Home Care - Private Contractors Payment,301.77,0,VENDOR
01-02-2023,Adults & Health,Chosen Care Group Ltd,Home Care - Private Contractors Payment,57.48,0,VENDOR
01-02-2023,Adults & Health,Chosen Care Group Ltd,Home Care - Private Contractors Payment,229.92,0,VENDOR
01-02-2023,Adults & Health,Chosen Care Group Ltd,Home Care - Private Contractors Payment,19.16,0,VENDOR
01-02-2023,Adults & Health,Chosen Care Group Ltd,Home Care - Private Contractors Payment,81.43,0,VENDOR
01-02-2023,Adults & Health,Chosen Care Group Ltd,Home Care - Private Contractors Payment,91.01,0,VENDOR
01-02-2023,Adults & Health,Chosen Care Group Ltd,Home Care - Private Contractors Payment,234.71,0,VENDOR
01-02-2023,Adults & Health,Chosen Care Group Ltd,Home Care - Private Contractors Payment,570.01,0,VENDOR
01-02-2023,Adults & Health,Chosen Care Group Ltd,Home Care - Private Contractors Payment,57.48,0,VENDOR
01-02-2023,Adults & Health,Chosen Care Group Ltd,Home Care - Private Contractors Payment,38.32,0,VENDOR
01-02-2023,Adults & Health,Chosen Care Group Ltd,Home Care - Private Contractors Payment,570.01,0,VENDOR
01-02-2023,Adults & Health,Chosen Care Group Ltd,Home Care - Private Contractors Payment,47.9,0,VENDOR
01-02-2023,Adults & Health,Chosen Care Group Ltd,Home Care - Private Contractors Payment,335.3,0,VENDOR
01-02-2023,Adults & Health,Chosen Care Group Ltd,Reablement,100.59,0,VENDOR
01-02-2023,Adults & Health,Chosen Care Group Ltd,Home Care - Private Contractors Payment,19.16,0,VENDOR
01-02-2023,Adults & Health,Chosen Care Group Ltd,Home Care - Private Contractors Payment,536.48,0,VENDOR
01-02-2023,Adults & Health,Chosen Care Group Ltd,Daycare - Private Contractors Payment,172.44,0,VENDOR
01-02-2023,Adults & Health,Chosen Care Group Ltd,Home Care - Private Contractors Payment,301.77,0,VENDOR
01-02-2023,Adults & Health,Chosen Care Group Ltd,Home Care - Private Contractors Payment,38.32,0,VENDOR
01-02-2023,Adults & Health,Chosen Care Group Ltd,Home Care - Private Contractors Payment,71.85,0,VENDOR
01-02-2023,Adults & Health,Chosen Care Group Ltd,Home Care - Private Contractors Payment,38.32,0,VENDOR
01-02-2023,Adults & Health,Chosen Care Group Ltd,Home Care - Private Contractors Payment,76.64,0,VENDOR
01-02-2023,Adults & Health,Chosen Care Group Ltd,Home Care - Private Contractors Payment,402.36,0,VENDOR
01-02-2023,Adults & Health,Chosen Care Group Ltd,Daycare - Private Contractors Payment,19.16,0,VENDOR
01-02-2023,Adults & Health,Chosen Care Group Ltd,Home Care - Private Contractors Payment,162.86,0,VENDOR
01-02-2023,Adults & Health,Chosen Care Group Ltd,Home Care - Private Contractors Payment,19.16,0,VENDOR
01-02-2023,Adults & Health,Chosen Care Group Ltd,Home Care - Private Contractors Payment,100.59,0,VENDOR
01-02-2023,Adults & Health,Chosen Care Group Ltd,Daycare - Private Contractors Payment,57.48,0,VENDOR
01-02-2023,Adults & Health,Chosen Care Group Ltd,Home Care - Private Contractors Payment,43.11,0,VENDOR
01-02-2023,Adults & Health,Chosen Care Group Ltd,Home Care - Private Contractors Payment,100.59,0,VENDOR
01-02-2023,Adults & Health,Chosen Care Group Ltd,Home Care - Private Contractors Payment,301.77,0,VENDOR
01-02-2023,Adults & Health,Chosen Care Group Ltd,Home Care - Private Contractors Payment,167.65,0,VENDOR
01-02-2023,Adults & Health,Chosen Care Group Ltd,Home Care - Private Contractors Payment,201.18,0,VENDOR
01-02-2023,Adults & Health,Chosen Care Group Ltd,Home Care - Private Contractors Payment,19.16,0,VENDOR
01-02-2023,Adults & Health,Chosen Care Group Ltd,Daycare - Private Contractors Payment,124.54,0,VENDOR
01-02-2023,Adults & Health,Chosen Care Group Ltd,Home Care - Private Contractors Payment,19.16,0,VENDOR
01-02-2023,Adults & Health,Chosen Care Group Ltd,Home Care - Private Contractors Payment,325.5,0,VENDOR
01-02-2023,Adults & Health,Chosen Care Group Ltd,Reablement,234.71,0,VENDOR
01-02-2023,Adults & Health,Chosen Care Group Ltd,Home Care - Private Contractors Payment,100.59,0,VENDOR
01-02-2023,Adults & Health,Chosen Care Group Ltd,Home Care - Private Contractors Payment,100.59,0,VENDOR
01-02-2023,Adults & Health,Chosen Care Group Ltd,Home Care - Private Contractors Payment,86.22,0,VENDOR
01-02-2023,Adults & Health,Chosen Care Group Ltd,Home Care - Private Contractors Payment,234.71,0,VENDOR
01-02-2023,Adults & Health,Chosen Care Group Ltd,Respite Care - Private Contractors Payment,134.12,0,VENDOR
01-02-2023,Adults & Health,Chosen Care Group Ltd,Home Care - Private Contractors Payment,1207.08,0,VENDOR
01-02-2023,Adults & Health,Chosen Care Group Ltd,Home Care - Private Contractors Payment,335.3,0,VENDOR
01-02-2023,Adults & Health,Chosen Care Group Ltd,Daycare - Private Contractors Payment,19.16,0,VENDOR
01-02-2023,Adults & Health,Chosen Care Group Ltd,Home Care - Private Contractors Payment,114.96,0,VENDOR
01-02-2023,Adults & Health,Chosen Care Group Ltd,Home Care - Private Contractors Payment,167.65,0,VENDOR
01-02-2023,Adults & Health,Chosen Care Group Ltd,Reablement,38.32,0,VENDOR
01-02-2023,Adults & Health,Chosen Care Group Ltd,Home Care - Private Contractors Payment,38.32,0,VENDOR
01-02-2023,Adults & Health,Chosen Care Group Ltd,Respite Care - Private Contractors Payment,172.44,0,VENDOR
01-02-2023,Adults & Health,Chosen Care Group Ltd,Home Care - Private Contractors Payment,86.22,0,VENDOR
01-02-2023,Adults & Health,Chosen Care Group Ltd,Daycare - Private Contractors Payment,172.44,0,VENDOR
01-02-2023,Adults & Health,Chosen Care Group Ltd,Daycare - Private Contractors Payment,287.4,0,VENDOR
01-02-2023,Adults & Health,Chosen Care Group Ltd,Home Care - Private Contractors Payment,1572.48,0,VENDOR
01-02-2023,Adults & Health,Chosen Care Group Ltd,Home Care - Private Contractors Payment,234.71,0,VENDOR
01-02-2023,Adults & Health,Chosen Care Group Ltd,Home Care - Private Contractors Payment,38.32,0,VENDOR
01-02-2023,Adults & Health,Chosen Care Group Ltd,Home Care - Private Contractors Payment,100.59,0,VENDOR
01-02-2023,Adults & Health,Chosen Care Group Ltd,Home Care - Private Contractors Payment,201.18,0,VENDOR
01-02-2023,Adults & Health,Chosen Care Group Ltd,Home Care - Private Contractors Payment,19.16,0,VENDOR
01-02-2023,Adults & Health,Chosen Care Group Ltd,Home Care - Private Contractors Payment,234.71,0,VENDOR
01-02-2023,Adults & Health,Chosen Care Group Ltd,Home Care - Private Contractors Payment,536.48,0,VENDOR
01-02-2023,Adults & Health,Chosen Care Group Ltd,Home Care - Private Contractors Payment,435.89,0,VENDOR
01-02-2023,Adults & Health,Chosen Care Group Ltd,Home Care - Private Contractors Payment,67.06,0,VENDOR
01-02-2023,Adults & Health,Chosen Care Group Ltd,Daycare - Private Contractors Payment,28.74,0,VENDOR
01-02-2023,Adults & Health,Chosen Care Group Ltd,Home Care - Private Contractors Payment,86.22,0,VENDOR
01-02-2023,Adults & Health,Chosen Care Group Ltd,Home Care - Private Contractors Payment,95.8,0,VENDOR
01-02-2023,Adults & Health,Chosen Care Group Ltd,Home Care - Private Contractors Payment,282.61,0,VENDOR
01-02-2023,Adults & Health,Chosen Care Group Ltd,Home Care - Private Contractors Payment,249.08,0,VENDOR
01-02-2023,Adults & Health,Chosen Care Group Ltd,Respite Care - Private Contractors Payment,38.32,0,VENDOR
01-02-2023,Adults & Health,Chosen Care Group Ltd,Home Care - Private Contractors Payment,292.19,0,VENDOR
01-02-2023,Adults & Health,Chosen Care Group Ltd,Home Care - Private Contractors Payment,86.22,0,VENDOR
01-02-2023,Adults & Health,Chosen Care Group Ltd,Home Care - Private Contractors Payment,81.43,0,VENDOR
01-02-2023,Adults & Health,Chosen Care Group Ltd,Respite Care - Private Contractors Payment,172.44,0,VENDOR
01-02-2023,Adults & Health,Chosen Care Group Ltd,Home Care - Private Contractors Payment,167.65,0,VENDOR
01-02-2023,Adults & Health,Chosen Care Group Ltd,Home Care - Private Contractors Payment,67.06,0,VENDOR
01-02-2023,Adults & Health,Chosen Care Group Ltd,Home Care - Private Contractors Payment,589.17,0,VENDOR
01-02-2023,Adults & Health,Chosen Care Group Ltd,Home Care - Private Contractors Payment,67.06,0,VENDOR
01-02-2023,Adults & Health,Chosen Care Group Ltd,Daycare - Private Contractors Payment,28.74,0,VENDOR
01-02-2023,Adults & Health,Chosen Care Group Ltd,Home Care - Private Contractors Payment,19.16,0,VENDOR
01-02-2023,Adults & Health,Chosen Care Group Ltd,Daycare - Private Contractors Payment,306.56,0,VENDOR
01-02-2023,Adults & Health,Chosen Care Group Ltd,Home Care - Private Contractors Payment,603.54,0,VENDOR
01-02-2023,Adults & Health,Chosen Care Group Ltd,Home Care - Private Contractors Payment,301.77,0,VENDOR
01-02-2023,Adults & Health,Chosen Care Group Ltd,Home Care - Private Contractors Payment,134.12,0,VENDOR
01-02-2023,Adults & Health,Chosen Care Group Ltd,Home Care - Private Contractors Payment,425.52,0,VENDOR
01-02-2023,Adults & Health,Chosen Care Group Ltd,Home Care - Private Contractors Payment,91.01,0,VENDOR
01-02-2023,Adults & Health,Chosen Care Group Ltd,Home Care - Private Contractors Payment,100.59,0,VENDOR
01-02-2023,Adults & Health,Chosen Care Group Ltd,Home Care - Private Contractors Payment,234.71,0,VENDOR
01-02-2023,Adults & Health,Chosen Care Group Ltd,Home Care - Private Contractors Payment,536.48,0,VENDOR
01-02-2023,Adults & Health,Chosen Care Group Ltd,Home Care - Private Contractors Payment,402.36,0,VENDOR
01-02-2023,Adults & Health,Chosen Care Group Ltd,Respite Care - Private Contractors Payment,134.12,0,VENDOR
01-02-2023,Adults & Health,Chosen Care Group Ltd,Home Care - Private Contractors Payment,268.24,0,VENDOR
01-02-2023,Adults & Health,Chosen Care Group Ltd,Home Care - Private Contractors Payment,301.77,0,VENDOR
01-02-2023,Adults & Health,Chosen Care Group Ltd,Home Care - Private Contractors Payment,43.11,0,VENDOR
01-02-2023,Adults & Health,Chosen Care Group Ltd,Home Care - Private Contractors Payment,43.11,0,VENDOR
01-02-2023,Adults & Health,Chosen Care Group Ltd,Daycare - Private Contractors Payment,28.74,0,VENDOR
01-02-2023,Adults & Health,Chosen Care Group Ltd,Home Care - Private Contractors Payment,134.12,0,VENDOR
01-02-2023,Adults & Health,Chosen Care Group Ltd,Home Care - Private Contractors Payment,234.71,0,VENDOR
01-02-2023,Adults & Health,Chosen Care Group Ltd,Home Care - Private Contractors Payment,100.59,0,VENDOR
01-02-2023,Adults & Health,Chosen Care Group Ltd,Home Care - Private Contractors Payment,201.18,0,VENDOR
01-02-2023,Adults & Health,Chosen Care Group Ltd,Home Care - Private Contractors Payment,325.5,0,VENDOR
01-02-2023,Adults & Health,Chosen Care Group Ltd,Home Care - Private Contractors Payment,38.32,0,VENDOR
01-02-2023,Adults & Health,Chosen Care Group Ltd,Home Care - Private Contractors Payment,234.71,0,VENDOR
01-02-2023,Adults & Health,Chosen Care Group Ltd,Home Care - Private Contractors Payment,1572.48,0,VENDOR
01-02-2023,Adults & Health,Chosen Care Group Ltd,Home Care - Private Contractors Payment,287.4,0,VENDOR
01-02-2023,Adults & Health,Chosen Care Group Ltd,Reablement,100.59,0,VENDOR
01-02-2023,Adults & Health,Chosen Care Group Ltd,Home Care - Private Contractors Payment,301.77,0,VENDOR
01-02-2023,Adults & Health,Chosen Care Group Ltd,Home Care - Private Contractors Payment,215.55,0,VENDOR
01-02-2023,Adults & Health,Chosen Care Group Ltd,Home Care - Private Contractors Payment,134.12,0,VENDOR
01-02-2023,Adults & Health,Chosen Care Group Ltd,Home Care - Private Contractors Payment,95.8,0,VENDOR
01-02-2023,Adults & Health,Chosen Care Group Ltd,Home Care - Private Contractors Payment,167.65,0,VENDOR
01-02-2023,Adults & Health,Chosen Care Group Ltd,Daycare - Private Contractors Payment,47.9,0,VENDOR
01-02-2023,Adults & Health,Chosen Care Group Ltd,Home Care - Private Contractors Payment,234.71,0,VENDOR
01-02-2023,Adults & Health,Chosen Care Group Ltd,Home Care - Private Contractors Payment,167.65,0,VENDOR
01-02-2023,Adults & Health,Chosen Care Group Ltd,Home Care - Private Contractors Payment,67.06,0,VENDOR
01-02-2023,Adults & Health,Chosen Care Group Ltd,Home Care - Private Contractors Payment,38.32,0,VENDOR
01-02-2023,Adults & Health,Chosen Care Group Ltd,Home Care - Private Contractors Payment,301.77,0,VENDOR
01-02-2023,Adults & Health,Chosen Care Group Ltd,Daycare - Private Contractors Payment,67.06,0,VENDOR
01-02-2023,Adults & Health,Chosen Care Group Ltd,Home Care - Private Contractors Payment,301.77,0,VENDOR
01-02-2023,Adults & Health,Chosen Care Group Ltd,Home Care - Private Contractors Payment,95.8,0,VENDOR
01-02-2023,Adults & Health,Chosen Care Group Ltd,Respite Care - Private Contractors Payment,172.44,0,VENDOR
01-02-2023,Adults & Health,Chosen Care Group Ltd,Home Care - Private Contractors Payment,234.71,0,VENDOR
01-02-2023,Adults & Health,Chosen Care Group Ltd,Home Care - Private Contractors Payment,167.65,0,VENDOR
01-02-2023,Adults & Health,Chosen Care Group Ltd,Home Care - Private Contractors Payment,19.16,0,VENDOR
01-02-2023,Adults & Health,Chosen Care Group Ltd,Home Care - Private Contractors Payment,19.16,0,VENDOR
01-02-2023,Adults & Health,Chosen Care Group Ltd,Home Care - Private Contractors Payment,1207.08,0,VENDOR
01-02-2023,Adults & Health,Chosen Care Group Ltd,Daycare - Private Contractors Payment,124.54,0,VENDOR
01-02-2023,Adults & Health,Chosen Care Group Ltd,Home Care - Private Contractors Payment,301.77,0,VENDOR
01-02-2023,Adults & Health,Chosen Care Group Ltd,Home Care - Private Contractors Payment,301.77,0,VENDOR
01-02-2023,Adults & Health,Chosen Care Group Ltd,Home Care - Private Contractors Payment,167.65,0,VENDOR
01-02-2023,Adults & Health,Chosen Care Group Ltd,Home Care - Private Contractors Payment,234.71,0,VENDOR
01-02-2023,Adults & Health,Chosen Care Group Ltd,Home Care - Private Contractors Payment,316.14,0,VENDOR
01-02-2023,Adults & Health,Chosen Care Group Ltd,Home Care - Private Contractors Payment,301.77,0,VENDOR
01-02-2023,Adults & Health,Chosen Care Group Ltd,Home Care - Private Contractors Payment,19.16,0,VENDOR
01-02-2023,Adults & Health,Chosen Care Group Ltd,Respite Care - Private Contractors Payment,134.12,0,VENDOR
01-02-2023,Adults & Health,Chosen Care Group Ltd,Home Care - Private Contractors Payment,335.3,0,VENDOR
01-02-2023,Adults & Health,Chosen Care Group Ltd,Home Care - Private Contractors Payment,234.71,0,VENDOR
01-02-2023,Adults & Health,Chosen Care Group Ltd,Home Care - Private Contractors Payment,177.23,0,VENDOR
01-02-2023,Adults & Health,Chosen Care Group Ltd,Home Care - Private Contractors Payment,268.24,0,VENDOR
01-02-2023,Adults & Health,Chosen Care Group Ltd,Daycare - Private Contractors Payment,19.16,0,VENDOR
01-02-2023,Adults & Health,Chosen Care Group Ltd,Home Care - Private Contractors Payment,43.11,0,VENDOR
01-02-2023,Adults & Health,Chosen Care Group Ltd,Daycare - Private Contractors Payment,19.16,0,VENDOR
01-02-2023,Adults & Health,Chosen Care Group Ltd,Home Care - Private Contractors Payment,407.15,0,VENDOR
01-02-2023,Adults & Health,Chosen Care Group Ltd,Home Care - Private Contractors Payment,100.59,0,VENDOR
01-02-2023,Adults & Health,Chosen Care Group Ltd,Home Care - Private Contractors Payment,95.8,0,VENDOR
01-02-2023,Adults & Health,Chosen Care Group Ltd,Home Care - Private Contractors Payment,340.09,0,VENDOR
01-02-2023,Adults & Health,Chosen Care Group Ltd,Home Care - Private Contractors Payment,301.77,0,VENDOR
01-02-2023,Adults & Health,Chosen Care Group Ltd,Home Care - Private Contractors Payment,38.32,0,VENDOR
01-02-2023,Adults & Health,Chosen Care Group Ltd,Home Care - Private Contractors Payment,38.32,0,VENDOR
01-02-2023,Adults & Health,Chosen Care Group Ltd,Home Care - Private Contractors Payment,43.11,0,VENDOR
01-02-2023,Adults & Health,Chosen Care Group Ltd,Reablement,100.59,0,VENDOR
01-02-2023,Adults & Health,Chosen Care Group Ltd,Home Care - Private Contractors Payment,584.38,0,VENDOR
01-02-2023,Adults & Health,Chosen Care Group Ltd,Home Care - Private Contractors Payment,134.78,0,VENDOR
01-02-2023,Adults & Health,Chosen Care Group Ltd,Home Care - Private Contractors Payment,67.06,0,VENDOR
01-02-2023,Adults & Health,Chosen Care Group Ltd,Home Care - Private Contractors Payment,43.11,0,VENDOR
01-02-2023,Adults & Health,Chosen Care Group Ltd,Home Care - Private Contractors Payment,57.48,0,VENDOR
01-02-2023,Adults & Health,Chosen Care Group Ltd,Daycare - Private Contractors Payment,47.9,0,VENDOR
01-02-2023,Adults & Health,Chosen Care Group Ltd,Home Care - Private Contractors Payment,167.65,0,VENDOR
01-02-2023,Adults & Health,Chosen Care Group Ltd,Home Care - Private Contractors Payment,167.65,0,VENDOR
01-02-2023,Adults & Health,Chosen Care Group Ltd,Home Care - Private Contractors Payment,162.86,0,VENDOR
01-02-2023,Adults & Health,Chosen Care Group Ltd,Home Care - Private Contractors Payment,67.06,0,VENDOR
01-02-2023,Adults & Health,Chosen Care Group Ltd,Home Care - Private Contractors Payment,167.65,0,VENDOR
01-02-2023,Adults & Health,Chosen Care Group Ltd,Daycare - Private Contractors Payment,19.16,0,VENDOR
01-02-2023,Adults & Health,Chosen Care Group Ltd,Home Care - Private Contractors Payment,100.59,0,VENDOR
01-02-2023,Adults & Health,Chosen Care Group Ltd,Daycare - Private Contractors Payment,67.06,0,VENDOR
01-02-2023,Adults & Health,Chosen Care Group Ltd,Home Care - Private Contractors Payment,234.71,0,VENDOR
01-02-2023,Adults & Health,Chosen Care Group Ltd,Home Care - Private Contractors Payment,167.65,0,VENDOR
01-02-2023,Adults & Health,Chosen Care Group Ltd,Home Care - Private Contractors Payment,234.71,0,VENDOR
01-02-2023,Adults & Health,Chosen Care Group Ltd,Home Care - Private Contractors Payment,517.32,0,VENDOR
01-02-2023,Adults & Health,Chosen Care Group Ltd,Home Care - Private Contractors Payment,28.74,0,VENDOR
01-02-2023,Adults & Health,Chosen Care Group Ltd,Home Care - Private Contractors Payment,143.7,0,VENDOR
01-02-2023,Adults & Health,Chosen Care Group Ltd,Home Care - Private Contractors Payment,143.7,0,VENDOR
01-02-2023,Adults & Health,Chosen Care Group Ltd,Home Care - Private Contractors Payment,86.22,0,VENDOR
01-02-2023,Adults & Health,Chosen Care Group Ltd,Home Care - Private Contractors Payment,100.59,0,VENDOR
01-02-2023,Adults & Health,Chosen Care Group Ltd,Home Care - Private Contractors Payment,268.24,0,VENDOR
01-02-2023,Adults & Health,Chosen Care Group Ltd,Home Care - Private Contractors Payment,268.24,0,VENDOR
01-02-2023,Adults & Health,Chosen Care Group Ltd,Home Care - Private Contractors Payment,201.18,0,VENDOR
01-02-2023,Adults & Health,Chosen Care Group Ltd,Home Care - Private Contractors Payment,100.59,0,VENDOR
01-02-2023,Adults & Health,Chosen Care Group Ltd,Home Care - Private Contractors Payment,268.24,0,VENDOR
01-02-2023,Adults & Health,Chosen Care Group Ltd,Home Care - Private Contractors Payment,234.71,0,VENDOR
01-02-2023,Adults & Health,Chosen Care Group Ltd,Home Care - Private Contractors Payment,100.59,0,VENDOR
01-02-2023,Adults & Health,Chosen Care Group Ltd,Reablement,134.12,0,VENDOR
01-02-2023,Adults & Health,Chosen Care Group Ltd,Home Care - Private Contractors Payment,67.06,0,VENDOR
01-02-2023,Adults & Health,Chosen Care Group Ltd,Home Care - Private Contractors Payment,603.54,0,VENDOR
01-02-2023,Adults & Health,Chosen Care Group Ltd,Daycare - Private Contractors Payment,67.06,0,VENDOR
01-02-2023,Adults & Health,Chosen Care Group Ltd,Home Care - Private Contractors Payment,225.13,0,VENDOR
01-02-2023,Adults & Health,Chosen Care Group Ltd,Home Care - Private Contractors Payment,100.59,0,VENDOR
01-02-2023,Adults & Health,Chosen Care Group Ltd,Reablement,225.13,0,VENDOR
01-02-2023,Adults & Health,Chosen Care Group Ltd,Daycare - Private Contractors Payment,28.74,0,VENDOR
01-02-2023,Adults & Health,Chosen Care Group Ltd,Home Care - Private Contractors Payment,67.06,0,VENDOR
01-02-2023,Adults & Health,Chosen Care Group Ltd,Daycare - Private Contractors Payment,28.74,0,VENDOR
01-02-2023,Adults & Health,Chosen Care Group Ltd,Home Care - Private Contractors Payment,167.65,0,VENDOR
01-02-2023,Adults & Health,Chosen Care Group Ltd,Home Care - Private Contractors Payment,1720.32,0,VENDOR
01-02-2023,Adults & Health,Chosen Care Group Ltd,Home Care - Private Contractors Payment,86.22,0,VENDOR
01-02-2023,Adults & Health,Chosen Care Group Ltd,Home Care - Private Contractors Payment,301.77,0,VENDOR
01-02-2023,Adults & Health,Chosen Care Group Ltd,Home Care - Private Contractors Payment,268.24,0,VENDOR
01-02-2023,Adults & Health,Chosen Care Group Ltd,Home Care - Private Contractors Payment,234.71,0,VENDOR
01-02-2023,Adults & Health,Chosen Care Group Ltd,Daycare - Private Contractors Payment,287.4,0,VENDOR
01-02-2023,Adults & Health,Chosen Care Group Ltd,Home Care - Private Contractors Payment,167.65,0,VENDOR
01-02-2023,Adults & Health,Chosen Care Group Ltd,Home Care - Private Contractors Payment,14.37,0,VENDOR
01-02-2023,Adults & Health,Chosen Care Group Ltd,Home Care - Private Contractors Payment,167.65,0,VENDOR
01-02-2023,Adults & Health,Chosen Care Group Ltd,Home Care - Private Contractors Payment,435.89,0,VENDOR
01-02-2023,Adults & Health,Chosen Care Group Ltd,Home Care - Private Contractors Payment,325.5,0,VENDOR
01-02-2023,Adults & Health,Chosen Care Group Ltd,Daycare - Private Contractors Payment,67.06,0,VENDOR
01-02-2023,Adults & Health,Chosen Care Group Ltd,Home Care - Private Contractors Payment,100.59,0,VENDOR
01-02-2023,Adults & Health,Chosen Care Group Ltd,Home Care - Private Contractors Payment,100.59,0,VENDOR
01-02-2023,Adults & Health,Chosen Care Group Ltd,Home Care - Private Contractors Payment,162.86,0,VENDOR
01-02-2023,Adults & Health,Chosen Care Group Ltd,Home Care - Private Contractors Payment,301.77,0,VENDOR
01-02-2023,Adults & Health,Chosen Care Group Ltd,Home Care - Private Contractors Payment,19.16,0,VENDOR
01-02-2023,Adults & Health,Chosen Care Group Ltd,Home Care - Private Contractors Payment,201.18,0,VENDOR
01-02-2023,Adults & Health,Chosen Care Group Ltd,Home Care - Private Contractors Payment,536.48,0,VENDOR
01-02-2023,Adults & Health,Chosen Care Group Ltd,Daycare - Private Contractors Payment,287.4,0,VENDOR
01-02-2023,Adults & Health,Chosen Care Group Ltd,Home Care - Private Contractors Payment,301.77,0,VENDOR
01-02-2023,Adults & Health,Chosen Care Group Ltd,Home Care - Private Contractors Payment,100.59,0,VENDOR
01-02-2023,Adults & Health,Chosen Care Group Ltd,Home Care - Private Contractors Payment,603.54,0,VENDOR
01-02-2023,Adults & Health,Chosen Care Group Ltd,Home Care - Private Contractors Payment,100.59,0,VENDOR
01-02-2023,Adults & Health,Chosen Care Group Ltd,Daycare - Private Contractors Payment,47.9,0,VENDOR
01-02-2023,Adults & Health,Chosen Care Group Ltd,Daycare - Private Contractors Payment,57.48,0,VENDOR
01-02-2023,Adults & Health,Chosen Care Group Ltd,Home Care - Private Contractors Payment,201.18,0,VENDOR
01-02-2023,Housing Revenue Account,Mindme,"Purchase - Equipment, Furniture And Materials",6575,0,COMMERCIAL SUPPLIER
01-02-2023,Children and Young People,Forrest Enterprises Ltd,Staff Development And Training,725,0,COMMERCIAL SUPPLIER
01-02-2023,Environment and Sustainable Transport,Medisort Limited,Recycling,5618.89,0,COMMERCIAL SUPPLIER
01-02-2023,Adults & Health,Br3Ak Free,Daycare - Private Contractors Payment,350,0,VENDOR
01-02-2023,Adults & Health,Br3Ak Free,Daycare - Private Contractors Payment,350,0,VENDOR
01-02-2023,Adults & Health,Br3Ak Free,Daycare - Private Contractors Payment,350,0,VENDOR
01-02-2023,Adults & Health,Br3Ak Free,Daycare - Private Contractors Payment,350.4,0,VENDOR
01-02-2023,Adults & Health,Br3Ak Free,Daycare - Private Contractors Payment,350.04,0,VENDOR
01-02-2023,Adults & Health,Br3Ak Free,Daycare - Private Contractors Payment,350.12,0,VENDOR
01-02-2023,Adults & Health,Br3Ak Free,Daycare - Private Contractors Payment,350.12,0,VENDOR
01-02-2023,Adults & Health,Br3Ak Free,Daycare - Private Contractors Payment,350.12,0,VENDOR
01-02-2023,Adults & Health,Br3Ak Free,Payments To Voluntary Sector,33.22,0,VENDOR
01-02-2023,Adults & Health,Br3Ak Free,Payments To Voluntary Sector,33.22,0,VENDOR
01-02-2023,Adults & Health,Br3Ak Free,Daycare - Private Contractors Payment,152.9,0,VENDOR
01-02-2023,Adults & Health,Br3Ak Free,Daycare - Private Contractors Payment,152.9,0,VENDOR
01-02-2023,Adults & Health,Br3Ak Free,Payments To Voluntary Sector,33.22,0,VENDOR
01-02-2023,Adults & Health,Br3Ak Free,Payments To Voluntary Sector,33.22,0,VENDOR
01-02-2023,Adults & Health,Br3Ak Free,Daycare - Private Contractors Payment,152.9,0,VENDOR
01-02-2023,Adults & Health,Br3Ak Free,Daycare - Private Contractors Payment,152.9,0,VENDOR
01-02-2023,Adults & Health,Br3Ak Free,Payments To Voluntary Sector,33.22,0,VENDOR
01-02-2023,Adults & Health,Br3Ak Free,Daycare - Private Contractors Payment,152.92,0,VENDOR
01-02-2023,Adults & Health,Br3Ak Free,Payments To Voluntary Sector,40,0,VENDOR
01-02-2023,Adults & Health,Br3Ak Free,Daycare - Private Contractors Payment,310.12,0,VENDOR
01-02-2023,Adults & Health,Br3Ak Free,Payments To Voluntary Sector,40,0,VENDOR
01-02-2023,Adults & Health,Br3Ak Free,Daycare - Private Contractors Payment,310.12,0,VENDOR
01-02-2023,Adults & Health,Br3Ak Free,Payments To Voluntary Sector,40,0,VENDOR
01-02-2023,Adults & Health,Br3Ak Free,Daycare - Private Contractors Payment,310.12,0,VENDOR
01-02-2023,Adults & Health,Br3Ak Free,Daycare - Private Contractors Payment,310.03,0,VENDOR
01-02-2023,Adults & Health,Br3Ak Free,Payments To Voluntary Sector,40,0,VENDOR
01-02-2023,Adults & Health,Br3Ak Free,Payments To Voluntary Sector,20,0,VENDOR
01-02-2023,Adults & Health,Br3Ak Free,Daycare - Private Contractors Payment,155.06,0,VENDOR
01-02-2023,Children and Young People,Bridging Gaps Fostering Agency,Residential Placements - Private Contractors Payment,850,0,COMMERCIAL SUPPLIER
01-02-2023,Children and Young People,Bridging Gaps Fostering Agency,Residential Placements - Private Contractors Payment,850,0,COMMERCIAL SUPPLIER
01-02-2023,Children and Young People,Bridging Gaps Fostering Agency,Residential Placements - Private Contractors Payment,850,0,COMMERCIAL SUPPLIER
01-02-2023,Children and Young People,Bridging Gaps Fostering Agency,Residential Placements - Private Contractors Payment,850,0,COMMERCIAL SUPPLIER
01-02-2023,Inclusive Economy & Housing,Hmg building services ltd,"Maintenance - Equipment, Furniture And Materials",4837.4,0,CIS
01-02-2023,Adults & Health,Futures for Shared Lives Ltd,Adult Placement Scheme - Private Contractors Payment,536.27,0,NON COMMERCIAL SUPPLIER
01-02-2023,Adults & Health,Futures for Shared Lives Ltd,Adult Placement Scheme - Private Contractors Payment,536.27,0,NON COMMERCIAL SUPPLIER
01-02-2023,Adults & Health,Futures for Shared Lives Ltd,Adult Placement Scheme - Private Contractors Payment,766.1,0,NON COMMERCIAL SUPPLIER
01-02-2023,Adults & Health,Futures for Shared Lives Ltd,Adult Placement Scheme - Private Contractors Payment,536.27,0,NON COMMERCIAL SUPPLIER
01-02-2023,Inclusive Economy & Housing,ET Training LTD,Staff Development And Training,1000,0,COMMERCIAL SUPPLIER
01-02-2023,oneSource,Bdi Securities,Security Services (Excluding Premises),400,0,COMMERCIAL SUPPLIER
01-02-2023,Housing Revenue Account,John Rowan & Partners,Facilities Management,4456.9,0,NON COMMERCIAL SUPPLIER
01-02-2023,Inclusive Economy & Housing,Titan Containers A/S,Storage And Archiving,259,0,VENDOR
01-02-2023,RMS,Travis Perkins Trading Company Ltd,Building Alterations And Materials,208.4,0,COMMERCIAL SUPPLIER
01-02-2023,RMS,Travis Perkins Trading Company Ltd,Building Alterations And Materials,332.35,0,COMMERCIAL SUPPLIER
01-02-2023,RMS,Travis Perkins Trading Company Ltd,Building Alterations And Materials,643.8,0,COMMERCIAL SUPPLIER
01-02-2023,RMS,Travis Perkins Trading Company Ltd,Building Alterations And Materials,280,0,COMMERCIAL SUPPLIER
01-02-2023,RMS,Travis Perkins Trading Company Ltd,Building Alterations And Materials,392.8,0,COMMERCIAL SUPPLIER
01-02-2023,RMS,Travis Perkins Trading Company Ltd,Building Alterations And Materials,393.4,0,COMMERCIAL SUPPLIER
01-02-2023,RMS,Travis Perkins Trading Company Ltd,Building Alterations And Materials,1047.6,0,COMMERCIAL SUPPLIER
01-02-2023,RMS,Travis Perkins Trading Company Ltd,Building Alterations And Materials,1742.4,0,COMMERCIAL SUPPLIER
01-02-2023,RMS,Travis Perkins Trading Company Ltd,Building Alterations And Materials,198.5,0,COMMERCIAL SUPPLIER
01-02-2023,RMS,Travis Perkins Trading Company Ltd,Building Alterations And Materials,142,0,COMMERCIAL SUPPLIER
01-02-2023,RMS,Travis Perkins Trading Company Ltd,Building Alterations And Materials,110,0,COMMERCIAL SUPPLIER
01-02-2023,RMS,Travis Perkins Trading Company Ltd,Building Alterations And Materials,38.4,0,COMMERCIAL SUPPLIER
01-02-2023,RMS,Travis Perkins Trading Company Ltd,Building Alterations And Materials,465,0,COMMERCIAL SUPPLIER
01-02-2023,RMS,Travis Perkins Trading Company Ltd,Building Alterations And Materials,368.4,0,COMMERCIAL SUPPLIER
01-02-2023,RMS,Travis Perkins Trading Company Ltd,Building Alterations And Materials,296.5,0,COMMERCIAL SUPPLIER
01-02-2023,RMS,Travis Perkins Trading Company Ltd,Building Alterations And Materials,211.52,0,COMMERCIAL SUPPLIER
01-02-2023,RMS,Travis Perkins Trading Company Ltd,Building Alterations And Materials,51.75,0,COMMERCIAL SUPPLIER
01-02-2023,RMS,Travis Perkins Trading Company Ltd,Building Alterations And Materials,443,0,COMMERCIAL SUPPLIER
01-02-2023,RMS,Travis Perkins Trading Company Ltd,Building Alterations And Materials,365,0,COMMERCIAL SUPPLIER
01-02-2023,RMS,Travis Perkins Trading Company Ltd,Building Alterations And Materials,828,0,COMMERCIAL SUPPLIER
01-02-2023,RMS,Travis Perkins Trading Company Ltd,Building Alterations And Materials,434.24,0,COMMERCIAL SUPPLIER
01-02-2023,RMS,Travis Perkins Trading Company Ltd,Building Alterations And Materials,109.5,0,COMMERCIAL SUPPLIER
01-02-2023,RMS,Travis Perkins Trading Company Ltd,Building Alterations And Materials,208.08,0,COMMERCIAL SUPPLIER
01-02-2023,RMS,Travis Perkins Trading Company Ltd,Building Alterations And Materials,350.8,0,COMMERCIAL SUPPLIER
01-02-2023,RMS,Travis Perkins Trading Company Ltd,Building Alterations And Materials,219.6,0,COMMERCIAL SUPPLIER
01-02-2023,RMS,Travis Perkins Trading Company Ltd,Building Alterations And Materials,192.8,0,COMMERCIAL SUPPLIER
01-02-2023,RMS,Travis Perkins Trading Company Ltd,Building Alterations And Materials,370,0,COMMERCIAL SUPPLIER
01-02-2023,RMS,Travis Perkins Trading Company Ltd,Building Alterations And Materials,175,0,COMMERCIAL SUPPLIER
01-02-2023,RMS,Travis Perkins Trading Company Ltd,Building Alterations And Materials,141.61,0,COMMERCIAL SUPPLIER
01-02-2023,RMS,Travis Perkins Trading Company Ltd,Building Alterations And Materials,64.8,0,COMMERCIAL SUPPLIER
01-02-2023,RMS,Travis Perkins Trading Company Ltd,Building Alterations And Materials,82.6,0,COMMERCIAL SUPPLIER
01-02-2023,RMS,Travis Perkins Trading Company Ltd,Building Alterations And Materials,90.9,0,COMMERCIAL SUPPLIER
01-02-2023,RMS,Travis Perkins Trading Company Ltd,Building Alterations And Materials,72,0,COMMERCIAL SUPPLIER
01-02-2023,RMS,Travis Perkins Trading Company Ltd,Building Alterations And Materials,132.96,0,COMMERCIAL SUPPLIER
01-02-2023,RMS,Travis Perkins Trading Company Ltd,Building Alterations And Materials,133.44,0,COMMERCIAL SUPPLIER
01-02-2023,RMS,Travis Perkins Trading Company Ltd,Building Alterations And Materials,3558,0,COMMERCIAL SUPPLIER
01-02-2023,RMS,Travis Perkins Trading Company Ltd,Building Alterations And Materials,184.3,0,COMMERCIAL SUPPLIER
01-02-2023,RMS,Travis Perkins Trading Company Ltd,Building Alterations And Materials,166.25,0,COMMERCIAL SUPPLIER
01-02-2023,RMS,Travis Perkins Trading Company Ltd,Building Alterations And Materials,2692.8,0,COMMERCIAL SUPPLIER
01-02-2023,RMS,Travis Perkins Trading Company Ltd,Building Alterations And Materials,237.54,0,COMMERCIAL SUPPLIER
01-02-2023,RMS,Travis Perkins Trading Company Ltd,Building Alterations And Materials,139.2,0,COMMERCIAL SUPPLIER
01-02-2023,RMS,Travis Perkins Trading Company Ltd,Building Alterations And Materials,144,0,COMMERCIAL SUPPLIER
01-02-2023,RMS,Travis Perkins Trading Company Ltd,Building Alterations And Materials,788,0,COMMERCIAL SUPPLIER
01-02-2023,RMS,Travis Perkins Trading Company Ltd,Building Alterations And Materials,650.16,0,COMMERCIAL SUPPLIER
01-02-2023,RMS,Travis Perkins Trading Company Ltd,Building Alterations And Materials,1230.9,0,COMMERCIAL SUPPLIER
01-02-2023,RMS,Travis Perkins Trading Company Ltd,Building Alterations And Materials,254.94,0,COMMERCIAL SUPPLIER
01-02-2023,RMS,Commercial Drainage Services (Essex) Ltd,Private Contractors Payment - Other,225.5,0,COMMERCIAL SUPPLIER
01-02-2023,Children and Young People,The London Early Years Foundation t/a Deanery Road Nursery and Preschool,Contact Costs (Placements),548.3,0,NON COMMERCIAL SUPPLIER
01-02-2023,Adults & Health,Sweettree Home Care Services,Home Care - Private Contractors Payment,304,0,NON COMMERCIAL SUPPLIER
01-02-2023,Adults & Health,Sweettree Home Care Services,Home Care - Private Contractors Payment,304,0,NON COMMERCIAL SUPPLIER
01-02-2023,Adults & Health,Sweettree Home Care Services,Home Care - Private Contractors Payment,304,0,NON COMMERCIAL SUPPLIER
01-02-2023,Adults & Health,Sweettree Home Care Services,Home Care - Private Contractors Payment,139.33,0,NON COMMERCIAL SUPPLIER
01-02-2023,Environment and Sustainable Transport,Bucher Municipal Limited,Highway Services,398.3,0,COMMERCIAL SUPPLIER
01-02-2023,Adults & Health,Active Newham,Events,4637.4,0,VENDOR
01-02-2023,Adults & Health,Active Newham,Events,5254,0,VENDOR
01-02-2023,Marketing,Active Newham,Events,225,0,VENDOR
01-02-2023,RMS,Rehau Ltd,Building Alterations And Materials,2414.16,0,VENDOR
01-02-2023,RMS,Rehau Ltd,Building Alterations And Materials,5543.62,0,VENDOR
01-02-2023,Environment and Sustainable Transport,County Electrical Solutions,Building Alterations And Materials,400,0,CIS
01-02-2023,Environment and Sustainable Transport,County Electrical Solutions,Building Alterations And Materials,880,0,CIS
01-02-2023,oneSource,Northumbria Healthcare NHS Foundation Trust,Payment To Health Authorities,79.85,0,NHS BODIES
01-02-2023,oneSource,Northumbria Healthcare NHS Foundation Trust,Payment To Health Authorities,808.46,0,NHS BODIES
01-02-2023,oneSource,Northumbria Healthcare NHS Foundation Trust,Payment To Health Authorities,5443.68,0,NHS BODIES
01-02-2023,oneSource,Northumbria Healthcare NHS Foundation Trust,Payment To Health Authorities,558.95,0,NHS BODIES
01-02-2023,oneSource,Beveridge Associates,Consultancy Fees,5775,0,VENDOR
01-02-2023,Marketing,Centre Stage,Events,2040,0,COMMERCIAL SUPPLIER
01-02-2023,Environment and Sustainable Transport,Portakabin Ltd,Premises Hire - Facilities,2373.33,0,COMMERCIAL SUPPLIER
01-02-2023,oneSource - Non Shared,Newham Learning Partnership (Project Co) Limited,"Maintenance - Equipment, Furniture And Materials",318521.23,0,VENDOR
01-02-2023,oneSource - Non Shared,Newham Learning Partnership (Project Co) Limited,"Maintenance - Equipment, Furniture And Materials",393678.07,0,VENDOR
01-02-2023,oneSource - Non Shared,Building A Future (Newham Schools) Limited,"Maintenance - Equipment, Furniture And Materials",72313.93,0,VENDOR
01-02-2023,oneSource - Non Shared,Building A Future (Newham Schools) Limited,"Maintenance - Equipment, Furniture And Materials",72819.36,0,VENDOR
01-02-2023,oneSource - Non Shared,Building A Future (Newham Schools) Limited,"Maintenance - Equipment, Furniture And Materials",276481.1,0,VENDOR
01-02-2023,Digital,NEC Software Solutions UK Ltd,Ict Software,19935.5,0,COMMERCIAL SUPPLIER
01-02-2023,RMS,Benchmarx Kitchens and Joinery,Building Alterations And Materials,362.85,0,COMMERCIAL SUPPLIER
01-02-2023,Adults & Health,Helping Hands Home Care,Home Care - Private Contractors Payment,1195.04,0,NON COMMERCIAL SUPPLIER
01-02-2023,Adults & Health,Helping Hands Home Care,Home Care - Private Contractors Payment,1195.04,0,NON COMMERCIAL SUPPLIER
01-02-2023,Adults & Health,Helping Hands Home Care,Home Care - Private Contractors Payment,1195.04,0,NON COMMERCIAL SUPPLIER
01-02-2023,Adults & Health,Helping Hands Home Care,Home Care - Private Contractors Payment,1189.88,0,NON COMMERCIAL SUPPLIER
01-02-2023,Adults & Health,The Regard Partnership Ltd,Daycare - Private Contractors Payment,448,0,NON COMMERCIAL SUPPLIER
01-02-2023,Adults & Health,The Regard Partnership Ltd,Daycare - Private Contractors Payment,448,0,NON COMMERCIAL SUPPLIER
01-02-2023,Adults & Health,The Regard Partnership Ltd,Daycare - Private Contractors Payment,112,0,NON COMMERCIAL SUPPLIER
01-02-2023,Adults & Health,The Regard Partnership Ltd,Daycare - Private Contractors Payment,448,0,NON COMMERCIAL SUPPLIER
01-02-2023,Adults & Health,The Regard Partnership Ltd,Daycare - Private Contractors Payment,204.16,0,NON COMMERCIAL SUPPLIER
01-02-2023,Adults & Health,The Regard Partnership Ltd,Daycare - Private Contractors Payment,194.88,0,NON COMMERCIAL SUPPLIER
01-02-2023,Adults & Health,The Regard Partnership Ltd,Daycare - Private Contractors Payment,194.88,0,NON COMMERCIAL SUPPLIER
01-02-2023,Adults & Health,The Regard Partnership Ltd,Daycare - Private Contractors Payment,194.88,0,NON COMMERCIAL SUPPLIER
01-02-2023,Adults & Health,The Regard Partnership Ltd,Daycare - Private Contractors Payment,278.4,0,NON COMMERCIAL SUPPLIER
01-02-2023,Adults & Health,The Regard Partnership Ltd,Daycare - Private Contractors Payment,278.4,0,NON COMMERCIAL SUPPLIER
01-02-2023,Adults & Health,The Regard Partnership Ltd,Daycare - Private Contractors Payment,278.4,0,NON COMMERCIAL SUPPLIER
01-02-2023,Adults & Health,The Regard Partnership Ltd,Daycare - Private Contractors Payment,278.4,0,NON COMMERCIAL SUPPLIER
01-02-2023,RMS,British Standards Institution,Building Alterations And Materials,271,0,COMMERCIAL SUPPLIER
01-02-2023,Children and Young People,Ambition Aspire Achieve,Additional Placements - Third Party,375,0,COMMERCIAL SUPPLIER
01-02-2023,Dedicated Schools Budget,Personal Information - Redacted,Schools - Transfer Payment,14746.08,0,COMMERCIAL SUPPLIER
01-02-2023,Dedicated Schools Budget,Personal Information - Redacted,Schools - Transfer Payment,16811.18,0,COMMERCIAL SUPPLIER
01-02-2023,Dedicated Schools Budget,Personal Information - Redacted,Schools - Transfer Payment,10537.67,0,VENDOR
01-02-2023,Dedicated Schools Budget,Personal Information - Redacted,Schools - Transfer Payment,17598.25,0,COMMERCIAL SUPPLIER
01-02-2023,Dedicated Schools Budget,Personal Information - Redacted,Schools - Transfer Payment,14152.5,0,COMMERCIAL SUPPLIER
01-02-2023,Dedicated Schools Budget,Personal Information - Redacted,Schools - Transfer Payment,31502.17,0,COMMERCIAL SUPPLIER
01-02-2023,Dedicated Schools Budget,Personal Information - Redacted,Schools - Transfer Payment,16029.9,0,COMMERCIAL SUPPLIER
01-02-2023,Dedicated Schools Budget,Personal Information - Redacted,Schools - Transfer Payment,10111.71,0,COMMERCIAL SUPPLIER
01-02-2023,Dedicated Schools Budget,Personal Information - Redacted,Schools - Transfer Payment,38333.58,0,NON COMMERCIAL SUPPLIER
01-02-2023,Dedicated Schools Budget,Personal Information - Redacted,Schools - Transfer Payment,17891.08,0,COMMERCIAL SUPPLIER
01-02-2023,Dedicated Schools Budget,Personal Information - Redacted,Schools - Transfer Payment,15839.67,0,LOCAL AUTHORITY SERVICES
01-02-2023,Dedicated Schools Budget,Personal Information - Redacted,Schools - Transfer Payment,23192.42,0,COMMERCIAL SUPPLIER
01-02-2023,Dedicated Schools Budget,Personal Information - Redacted,Schools - Transfer Payment,11570.25,0,NON COMMERCIAL SUPPLIER
01-02-2023,Dedicated Schools Budget,Personal Information - Redacted,Schools - Transfer Payment,2889.87,0,NON COMMERCIAL SUPPLIER
01-02-2023,Dedicated Schools Budget,Personal Information - Redacted,Schools - Transfer Payment,10909.94,0,COMMERCIAL SUPPLIER
01-02-2023,Dedicated Schools Budget,Personal Information - Redacted,Schools - Transfer Payment,10853.33,0,COMMERCIAL SUPPLIER
01-02-2023,Dedicated Schools Budget,Personal Information - Redacted,Schools - Transfer Payment,6970.81,0,NON COMMERCIAL SUPPLIER
01-02-2023,Dedicated Schools Budget,Personal Information - Redacted,Schools - Transfer Payment,18079.33,0,COMMERCIAL SUPPLIER
01-02-2023,Dedicated Schools Budget,Personal Information - Redacted,Schools - Transfer Payment,25292.7,0,LOCAL AUTHORITY SERVICES
01-02-2023,Dedicated Schools Budget,Personal Information - Redacted,Schools - Transfer Payment,2215.6,0,COMMERCIAL SUPPLIER
01-02-2023,Dedicated Schools Budget,Personal Information - Redacted,Schools - Transfer Payment,11411,0,VENDOR
01-02-2023,Dedicated Schools Budget,Personal Information - Redacted,Schools - Transfer Payment,14607.28,0,COMMERCIAL SUPPLIER
01-02-2023,Dedicated Schools Budget,Personal Information - Redacted,Schools - Transfer Payment,5503.75,0,COMMERCIAL SUPPLIER
01-02-2023,Dedicated Schools Budget,Personal Information - Redacted,Schools - Transfer Payment,7652.83,0,COMMERCIAL SUPPLIER
01-02-2023,Dedicated Schools Budget,Personal Information - Redacted,Schools - Transfer Payment,14072.33,0,COMMERCIAL SUPPLIER
01-02-2023,Dedicated Schools Budget,Personal Information - Redacted,Schools - Transfer Payment,27393.64,0,COMMERCIAL SUPPLIER
01-02-2023,Dedicated Schools Budget,Personal Information - Redacted,Schools - Transfer Payment,2581.19,0,COMMERCIAL SUPPLIER
01-02-2023,Dedicated Schools Budget,Personal Information - Redacted,Schools - Transfer Payment,11175.54,0,COMMERCIAL SUPPLIER
01-02-2023,Adults & Health,Pathways Care Ltd,Home Care - Private Contractors Payment,281.25,0,NON COMMERCIAL SUPPLIER
01-02-2023,Adults & Health,Pathways Care Ltd,Home Care - Private Contractors Payment,94.75,0,NON COMMERCIAL SUPPLIER
01-02-2023,Adults & Health,Pathways Care Ltd,Home Care - Private Contractors Payment,94.75,0,NON COMMERCIAL SUPPLIER
01-02-2023,Adults & Health,Pathways Care Ltd,Home Care - Private Contractors Payment,17.5,0,NON COMMERCIAL SUPPLIER
01-02-2023,Adults & Health,Pathways Care Ltd,Home Care - Private Contractors Payment,94.75,0,NON COMMERCIAL SUPPLIER
01-02-2023,Adults & Health,Pathways Care Ltd,Home Care - Private Contractors Payment,39.75,0,NON COMMERCIAL SUPPLIER
01-02-2023,Adults & Health,Pathways Care Ltd,Home Care - Private Contractors Payment,94.75,0,NON COMMERCIAL SUPPLIER
01-02-2023,Dedicated Schools Budget,Personal Information - Redacted,Schools - Transfer Payment,104677.5,0,COMMERCIAL SUPPLIER
01-02-2023,Dedicated Schools Budget,Personal Information - Redacted,Schools - Transfer Payment,306006.5,0,NON COMMERCIAL SUPPLIER
01-02-2023,Dedicated Schools Budget,Personal Information - Redacted,Schools - Transfer Payment,11838.1,0,NON COMMERCIAL SUPPLIER
01-02-2023,Dedicated Schools Budget,Personal Information - Redacted,Schools - Transfer Payment,23202.33,0,COMMERCIAL SUPPLIER
01-02-2023,Children and Young People,Matrix Scm,Agency Staff,1761.12,0,
01-02-2023,Children and Young People,Matrix Scm,Agency Staff,1484.28,0,
01-02-2023,Children and Young People,Matrix Scm,Agency Staff,1394.66,0,
01-02-2023,Children and Young People,Matrix Scm,Agency Staff,1721.89,0,
01-02-2023,Children and Young People,Matrix Scm,Agency Staff,1558.08,0,
01-02-2023,Children and Young People,Matrix Scm,Agency Staff,1394.64,0,
01-02-2023,Children and Young People,Matrix Scm,Agency Staff,1419.84,0,
01-02-2023,Children and Young People,Matrix Scm,Agency Staff,17.7,0,
01-02-2023,Children and Young People,Matrix Scm,Agency Staff,1457.28,0,
01-02-2023,Children and Young People,Matrix Scm,Agency Staff,1421.28,0,
01-02-2023,Adults & Health,Matrix Scm,Agency Staff,3757.15,0,
01-02-2023,Adults & Health,Matrix Scm,Agency Staff,1117.09,0,
01-02-2023,Adults & Health,Matrix Scm,Agency Staff,859.83,0,
01-02-2023,Adults & Health,Matrix Scm,Agency Staff,799.77,0,
01-02-2023,Adults & Health,Matrix Scm,Agency Staff,967.68,0,
01-02-2023,Adults & Health,Matrix Scm,Agency Staff,853.2,0,
01-02-2023,Children and Young People,Matrix Scm,Agency Staff,693.45,0,
01-02-2023,Children and Young People,Matrix Scm,Agency Staff,1505.19,0,
01-02-2023,Children and Young People,Matrix Scm,Agency Staff,2608.75,0,
01-02-2023,Children and Young People,Matrix Scm,Agency Staff,1043.5,0,
01-02-2023,Children and Young People,Matrix Scm,Agency Staff,1505.19,0,
01-02-2023,Children and Young People,Matrix Scm,Agency Staff,868.28,0,
01-02-2023,Children and Young People,Matrix Scm,Agency Staff,1097.65,0,
01-02-2023,Children and Young People,Matrix Scm,Agency Staff,1736.4,0,
01-02-2023,Children and Young People,Matrix Scm,Agency Staff,1821.85,0,
01-02-2023,Children and Young People,Matrix Scm,Agency Staff,2057.45,0,
01-02-2023,Children and Young People,Matrix Scm,Agency Staff,459.6,0,
01-02-2023,Children and Young People,Matrix Scm,Agency Staff,1874.25,0,
01-02-2023,Children and Young People,Matrix Scm,Agency Staff,1002.05,0,
01-02-2023,Children and Young People,Matrix Scm,Agency Staff,1832.95,0,
01-02-2023,Children and Young People,Matrix Scm,Agency Staff,3139.5,0,
01-02-2023,Children and Young People,Matrix Scm,Agency Staff,2130.3,0,
01-02-2023,Children and Young People,Matrix Scm,Agency Staff,1447.94,0,
01-02-2023,Children and Young People,Matrix Scm,Agency Staff,1411.55,0,
01-02-2023,Children and Young People,Matrix Scm,Agency Staff,1484.99,0,
01-02-2023,Children and Young People,Matrix Scm,Agency Staff,1374.48,0,
01-02-2023,Children and Young People,Matrix Scm,Agency Staff,1421.28,0,
01-02-2023,Children and Young People,Matrix Scm,Agency Staff,1484.99,0,
01-02-2023,Children and Young People,Matrix Scm,Agency Staff,1620.72,0,
01-02-2023,Children and Young People,Matrix Scm,Agency Staff,1468.1,0,
01-02-2023,Children and Young People,Matrix Scm,Agency Staff,1467.72,0,
01-02-2023,Children and Young People,Matrix Scm,Agency Staff,1467.71,0,
01-02-2023,Children and Young People,Matrix Scm,Agency Staff,1467.71,0,
01-02-2023,Children and Young People,Matrix Scm,Agency Staff,1501.2,0,
01-02-2023,Children and Young People,Matrix Scm,Agency Staff,1455.14,0,
01-02-2023,Children and Young People,Matrix Scm,Agency Staff,1467.71,0,
01-02-2023,Children and Young People,Matrix Scm,Agency Staff,1384.93,0,
01-02-2023,Children and Young People,Matrix Scm,Agency Staff,1490.4,0,
01-02-2023,Children and Young People,Matrix Scm,Agency Staff,28.35,0,
01-02-2023,Children and Young People,Matrix Scm,Agency Staff,1594.8,0,
01-02-2023,Children and Young People,Matrix Scm,Agency Staff,1255.41,0,
01-02-2023,Children and Young People,Matrix Scm,Agency Staff,1558.44,0,
01-02-2023,Children and Young People,Matrix Scm,Agency Staff,1524.26,0,
01-02-2023,Children and Young People,Matrix Scm,Agency Staff,1760.42,0,
01-02-2023,Children and Young People,Matrix Scm,Agency Staff,1558.44,0,
01-02-2023,Children and Young People,Matrix Scm,Agency Staff,1558.44,0,
01-02-2023,Children and Young People,Matrix Scm,Agency Staff,1384.93,0,
01-02-2023,Children and Young People,Matrix Scm,Agency Staff,1421.28,0,
01-02-2023,Children and Young People,Matrix Scm,Agency Staff,1477.79,0,
01-02-2023,Children and Young People,Matrix Scm,Agency Staff,1435.68,0,
01-02-2023,Children and Young People,Matrix Scm,Agency Staff,1524.26,0,
01-02-2023,Children and Young People,Matrix Scm,Agency Staff,1558.43,0,
01-02-2023,Children and Young People,Matrix Scm,Agency Staff,1501.2,0,
01-02-2023,Children and Young People,Matrix Scm,Agency Staff,1501.2,0,
01-02-2023,Children and Young People,Matrix Scm,Agency Staff,5.4,0,
01-02-2023,Children and Young People,Matrix Scm,Agency Staff,1036.8,0,
01-02-2023,Children and Young People,Matrix Scm,Agency Staff,1523.87,0,
01-02-2023,Children and Young People,Matrix Scm,Agency Staff,1467.71,0,
01-02-2023,Children and Young People,Matrix Scm,Agency Staff,1558.43,0,
01-02-2023,Children and Young People,Matrix Scm,Agency Staff,67.5,0,
01-02-2023,Children and Young People,Matrix Scm,Agency Staff,1467.71,0,
01-02-2023,Children and Young People,Matrix Scm,Agency Staff,175.05,0,
01-02-2023,Children and Young People,Matrix Scm,Agency Staff,1441.09,0,
01-02-2023,Children and Young People,Matrix Scm,Agency Staff,1501.22,0,
01-02-2023,Children and Young People,Matrix Scm,Agency Staff,941.55,0,
01-02-2023,Children and Young People,Matrix Scm,Agency Staff,1456.93,0,
01-02-2023,Children and Young People,Matrix Scm,Agency Staff,2221.45,0,
01-02-2023,Children and Young People,Matrix Scm,Agency Staff,178.75,0,
01-02-2023,Children and Young People,Matrix Scm,Agency Staff,6.3,0,
01-02-2023,Children and Young People,Matrix Scm,Agency Staff,23.49,0,
01-02-2023,Children and Young People,Matrix Scm,Agency Staff,1364.03,0,
01-02-2023,Children and Young People,Matrix Scm,Agency Staff,976.32,0,
01-02-2023,Children and Young People,Matrix Scm,Agency Staff,951.49,0,
01-02-2023,Children and Young People,Matrix Scm,Agency Staff,1558.08,0,
01-02-2023,Children and Young People,Matrix Scm,Agency Staff,1506.24,0,
01-02-2023,Children and Young People,Matrix Scm,Agency Staff,1374.48,0,
01-02-2023,Children and Young People,Matrix Scm,Agency Staff,1421.28,0,
01-02-2023,Children and Young People,Matrix Scm,Agency Staff,1484.29,0,
01-02-2023,Children and Young People,Matrix Scm,Agency Staff,1747.81,0,
01-02-2023,Children and Young People,Matrix Scm,Agency Staff,1457.28,0,
01-02-2023,Children and Young People,Matrix Scm,Agency Staff,1467.73,0,
01-02-2023,Children and Young People,Matrix Scm,Agency Staff,1484.29,0,
01-02-2023,Children and Young People,Matrix Scm,Agency Staff,1421.28,0,
01-02-2023,Children and Young People,Matrix Scm,Agency Staff,17.55,0,
01-02-2023,Children and Young People,Matrix Scm,Agency Staff,1364.42,0,
01-02-2023,Children and Young People,Matrix Scm,Agency Staff,1394.66,0,
01-02-2023,Children and Young People,Matrix Scm,Agency Staff,993.44,0,
01-02-2023,Children and Young People,Matrix Scm,Agency Staff,1394.66,0,
01-02-2023,Children and Young People,Matrix Scm,Agency Staff,1433.89,0,
01-02-2023,Children and Young People,Matrix Scm,Agency Staff,784.16,0,
01-02-2023,Children and Young People,Matrix Scm,Agency Staff,81.45,0,
01-02-2023,Children and Young People,Matrix Scm,Agency Staff,966.59,0,
01-02-2023,Children and Young People,Matrix Scm,Agency Staff,1447.92,0,
01-02-2023,Children and Young People,Matrix Scm,Agency Staff,1394.66,0,
01-02-2023,Children and Young People,Matrix Scm,Agency Staff,1722.6,0,
01-02-2023,Children and Young People,Matrix Scm,Agency Staff,1722.6,0,
01-02-2023,Children and Young People,Matrix Scm,Agency Staff,1722.6,0,
01-02-2023,Children and Young People,Matrix Scm,Agency Staff,887.19,0,
01-02-2023,Children and Young People,Matrix Scm,Agency Staff,1468.45,0,
01-02-2023,Children and Young People,Matrix Scm,Agency Staff,1613.52,0,
01-02-2023,Children and Young People,Matrix Scm,Agency Staff,1613.52,0,
01-02-2023,Children and Young People,Matrix Scm,Agency Staff,1364.4,0,
01-02-2023,Children and Young People,Matrix Scm,Agency Staff,1349.28,0,
01-02-2023,Children and Young People,Matrix Scm,Agency Staff,1368.35,0,
01-02-2023,Children and Young People,Matrix Scm,Agency Staff,963.01,0,
01-02-2023,Children and Young People,Matrix Scm,Agency Staff,766.48,0,
01-02-2023,Children and Young People,Matrix Scm,Agency Staff,1613.15,0,
01-02-2023,Children and Young People,Matrix Scm,Agency Staff,1660.67,0,
01-02-2023,Children and Young People,Matrix Scm,Agency Staff,1364.03,0,
01-02-2023,Children and Young People,Matrix Scm,Agency Staff,1416.26,0,
01-02-2023,Children and Young People,Matrix Scm,Agency Staff,1239.14,0,
01-02-2023,Children and Young People,Matrix Scm,Agency Staff,669.25,0,
01-02-2023,Children and Young People,Matrix Scm,Agency Staff,375.06,0,
01-02-2023,Children and Young People,Matrix Scm,Agency Staff,2758.5,0,
01-02-2023,Children and Young People,Matrix Scm,Agency Staff,2483.5,0,
01-02-2023,Adults & Health,Matrix Scm,Agency Staff,645.4,0,
01-02-2023,Adults & Health,Matrix Scm,Agency Staff,645.4,0,
01-02-2023,Adults & Health,Matrix Scm,Agency Staff,1317.6,0,
01-02-2023,Adults & Health,Matrix Scm,Agency Staff,670.2,0,
01-02-2023,Adults & Health,Matrix Scm,Agency Staff,670.2,0,
01-02-2023,Adults & Health,Matrix Scm,Agency Staff,670.2,0,
01-02-2023,Adults & Health,Matrix Scm,Agency Staff,688.5,0,
01-02-2023,Adults & Health,Matrix Scm,Agency Staff,737.4,0,
01-02-2023,Adults & Health,Matrix Scm,Agency Staff,737.4,0,
01-02-2023,Adults & Health,Matrix Scm,Agency Staff,2758.5,0,
01-02-2023,Adults & Health,Matrix Scm,Agency Staff,1447.92,0,
01-02-2023,Adults & Health,Matrix Scm,Agency Staff,790.91,0,
01-02-2023,Adults & Health,Matrix Scm,Agency Staff,741.32,0,
01-02-2023,Adults & Health,Matrix Scm,Agency Staff,561.74,0,
01-02-2023,Adults & Health,Matrix Scm,Agency Staff,1265.41,0,
01-02-2023,Adults & Health,Matrix Scm,Agency Staff,790.91,0,
01-02-2023,Adults & Health,Matrix Scm,Agency Staff,737.88,0,
01-02-2023,Adults & Health,Matrix Scm,Agency Staff,1389.6,0,
01-02-2023,Adults & Health,Matrix Scm,Agency Staff,1374.5,0,
01-02-2023,Adults & Health,Matrix Scm,Agency Staff,920.35,0,
01-02-2023,Adults & Health,Matrix Scm,Agency Staff,3.15,0,
01-02-2023,Adults & Health,Matrix Scm,Agency Staff,1346.8,0,
01-02-2023,Children and Young People,Matrix Scm,Agency Staff,1394.66,0,
01-02-2023,Children and Young People,Matrix Scm,Agency Staff,1467.71,0,
01-02-2023,Children and Young People,Matrix Scm,Agency Staff,1477.81,0,
01-02-2023,Children and Young People,Matrix Scm,Agency Staff,1621.56,0,
01-02-2023,Children and Young People,Matrix Scm,Agency Staff,1467.73,0,
01-02-2023,Children and Young People,Matrix Scm,Agency Staff,1182.33,0,
01-02-2023,Children and Young People,Matrix Scm,Agency Staff,1501.22,0,
01-02-2023,Children and Young People,Matrix Scm,Agency Staff,1485.01,0,
01-02-2023,Children and Young People,Matrix Scm,Agency Staff,1461.24,0,
01-02-2023,Children and Young People,Matrix Scm,Agency Staff,1421.28,0,
01-02-2023,Adults & Health,Matrix Scm,Agency Staff,9.45,0,
01-02-2023,Adults & Health,Matrix Scm,Agency Staff,306.11,0,
01-02-2023,Adults & Health,Matrix Scm,Agency Staff,1350.36,0,
01-02-2023,Adults & Health,Matrix Scm,Agency Staff,1371.23,0,
01-02-2023,Adults & Health,Matrix Scm,Agency Staff,869.53,0,
01-02-2023,Adults & Health,Matrix Scm,Agency Staff,973.35,0,
01-02-2023,Adults & Health,Matrix Scm,Agency Staff,1421.28,0,
01-02-2023,Adults & Health,Matrix Scm,Agency Staff,1637.28,0,
01-02-2023,Adults & Health,Matrix Scm,Agency Staff,1389.6,0,
01-02-2023,Adults & Health,Matrix Scm,Agency Staff,855.71,0,
01-02-2023,Adults & Health,Matrix Scm,Agency Staff,1411.55,0,
01-02-2023,Adults & Health,Matrix Scm,Agency Staff,1411.55,0,
01-02-2023,Adults & Health,Matrix Scm,Agency Staff,1389.6,0,
01-02-2023,Adults & Health,Matrix Scm,Agency Staff,1389.6,0,
01-02-2023,Adults & Health,Matrix Scm,Agency Staff,1374.5,0,
01-02-2023,Adults & Health,Matrix Scm,Agency Staff,1241.28,0,
01-02-2023,Adults & Health,Matrix Scm,Agency Staff,1295.28,0,
01-02-2023,Adults & Health,Matrix Scm,Agency Staff,61.2,0,
01-02-2023,Adults & Health,Matrix Scm,Agency Staff,1374.48,0,
01-02-2023,Adults & Health,Matrix Scm,Agency Staff,1215.5,0,
01-02-2023,Adults & Health,Matrix Scm,Agency Staff,1500.33,0,
01-02-2023,Adults & Health,Matrix Scm,Agency Staff,1209.93,0,
01-02-2023,Adults & Health,Matrix Scm,Agency Staff,1241.28,0,
01-02-2023,Adults & Health,Matrix Scm,Agency Staff,1054.2,0,
01-02-2023,Children and Young People,Matrix Scm,Agency Staff,1501.22,0,
01-02-2023,Children and Young People,Matrix Scm,Agency Staff,100,0,
01-02-2023,Children and Young People,Matrix Scm,Agency Staff,1364.42,0,
01-02-2023,Children and Young People,Matrix Scm,Agency Staff,1394.66,0,
01-02-2023,Children and Young People,Matrix Scm,Agency Staff,1501.22,0,
01-02-2023,Children and Young People,Matrix Scm,Agency Staff,1521.36,0,
01-02-2023,Children and Young People,Matrix Scm,Agency Staff,1529.28,0,
01-02-2023,Children and Young People,Matrix Scm,Agency Staff,1394.66,0,
01-02-2023,Children and Young People,Matrix Scm,Agency Staff,1364.03,0,
01-02-2023,Adults & Health,Matrix Scm,Agency Staff,2840.55,0,
01-02-2023,Adults & Health,Matrix Scm,Agency Staff,2805.1,0,
01-02-2023,Adults & Health,Matrix Scm,Agency Staff,1004.04,0,
01-02-2023,Adults & Health,Matrix Scm,Agency Staff,484.56,0,
01-02-2023,Adults & Health,Matrix Scm,Agency Staff,1093.56,0,
01-02-2023,Environment and Sustainable Transport,Matrix Scm,Agency Staff,546.13,0,
01-02-2023,Environment and Sustainable Transport,Matrix Scm,Agency Staff,1117.48,0,
01-02-2023,Environment and Sustainable Transport,Matrix Scm,Agency Staff,2245.8,0,
01-02-2023,Environment and Sustainable Transport,Matrix Scm,Agency Staff,2022.12,0,
01-02-2023,Environment and Sustainable Transport,Matrix Scm,Agency Staff,2031.12,0,
01-02-2023,Resources,Matrix Scm,Agency Staff,346.24,0,
01-02-2023,Resources,Matrix Scm,Agency Staff,693.48,0,
01-02-2023,Resources,Matrix Scm,Agency Staff,2773.92,0,
01-02-2023,Resources,Matrix Scm,Agency Staff,1576.29,0,
01-02-2023,oneSource,Matrix Scm,Agency Staff,3018.9,0,
01-02-2023,oneSource,Matrix Scm,Agency Staff,2602.65,0,
01-02-2023,oneSource,Matrix Scm,Agency Staff,2245.8,0,
01-02-2023,oneSource,Matrix Scm,Agency Staff,833.6,0,
01-02-2023,Environment and Sustainable Transport,Matrix Scm,Agency Staff,1551.55,0,
01-02-2023,Environment and Sustainable Transport,Matrix Scm,Agency Staff,2313.22,0,
01-02-2023,Environment and Sustainable Transport,Matrix Scm,Agency Staff,880.91,0,
01-02-2023,Environment and Sustainable Transport,Matrix Scm,Agency Staff,989.31,0,
01-02-2023,Environment and Sustainable Transport,Matrix Scm,Agency Staff,955.66,0,
01-02-2023,Environment and Sustainable Transport,Matrix Scm,Agency Staff,24.15,0,
01-02-2023,Environment and Sustainable Transport,Matrix Scm,Agency Staff,24.45,0,
01-02-2023,Environment and Sustainable Transport,Matrix Scm,Agency Staff,636.83,0,
01-02-2023,Environment and Sustainable Transport,Matrix Scm,Agency Staff,491.05,0,
01-02-2023,Environment and Sustainable Transport,Matrix Scm,Agency Staff,725.06,0,
01-02-2023,Environment and Sustainable Transport,Matrix Scm,Agency Staff,795.24,0,
01-02-2023,Environment and Sustainable Transport,Matrix Scm,Agency Staff,646.56,0,
01-02-2023,Environment and Sustainable Transport,Matrix Scm,Agency Staff,516.35,0,
01-02-2023,Environment and Sustainable Transport,Matrix Scm,Agency Staff,648.35,0,
01-02-2023,Environment and Sustainable Transport,Matrix Scm,Agency Staff,614.88,0,
01-02-2023,Environment and Sustainable Transport,Matrix Scm,Agency Staff,132.24,0,
01-02-2023,Environment and Sustainable Transport,Matrix Scm,Agency Staff,219.83,0,
01-02-2023,Environment and Sustainable Transport,Matrix Scm,Agency Staff,617.35,0,
01-02-2023,Environment and Sustainable Transport,Matrix Scm,Agency Staff,388.91,0,
01-02-2023,Digital,Matrix Scm,Agency Staff,910.44,0,
01-02-2023,Digital,Matrix Scm,Agency Staff,375.88,0,
01-02-2023,Digital,Matrix Scm,Agency Staff,538.2,0,
01-02-2023,Digital,Matrix Scm,Agency Staff,400.13,0,
01-02-2023,Digital,Matrix Scm,Agency Staff,351.63,0,
01-02-2023,Digital,Matrix Scm,Agency Staff,679.01,0,
01-02-2023,Digital,Matrix Scm,Agency Staff,910.44,0,
01-02-2023,Digital,Matrix Scm,Agency Staff,597.98,0,
01-02-2023,Digital,Matrix Scm,Agency Staff,855.74,0,
01-02-2023,oneSource,Matrix Scm,Agency Staff,2937.65,0,
01-02-2023,oneSource,Matrix Scm,Agency Staff,2272.44,0,
01-02-2023,oneSource,Matrix Scm,Agency Staff,2805.1,0,
01-02-2023,Digital,Matrix Scm,Agency Staff,830.76,0,
01-02-2023,Digital,Matrix Scm,Agency Staff,593.66,0,
01-02-2023,Digital,Matrix Scm,Agency Staff,590.92,0,
01-02-2023,Digital,Matrix Scm,Agency Staff,618.52,0,
01-02-2023,Digital,Matrix Scm,Agency Staff,815.5,0,
01-02-2023,Digital,Matrix Scm,Agency Staff,331.35,0,
01-02-2023,Digital,Matrix Scm,Agency Staff,773.15,0,
01-02-2023,Digital,Matrix Scm,Agency Staff,784.2,0,
01-02-2023,Digital,Matrix Scm,Agency Staff,827.15,0,
01-02-2023,Digital,Matrix Scm,Agency Staff,798.05,0,
01-02-2023,Digital,Matrix Scm,Agency Staff,469.9,0,
01-02-2023,oneSource,Matrix Scm,Agency Staff,3033.5,0,
01-02-2023,oneSource,Matrix Scm,Agency Staff,3583.5,0,
01-02-2023,oneSource,Matrix Scm,Agency Staff,2396.4,0,
01-02-2023,Children and Young People,Matrix Scm,Agency Staff,2206.8,0,
01-02-2023,Children and Young People,Matrix Scm,Agency Staff,2206.8,0,
01-02-2023,oneSource,Matrix Scm,Agency Staff,682.56,0,
01-02-2023,oneSource,Matrix Scm,Agency Staff,1042.56,0,
01-02-2023,oneSource,Matrix Scm,Agency Staff,1065.96,0,
01-02-2023,Adults & Health,Matrix Scm,Agency Staff,1069.04,0,
01-02-2023,Adults & Health,Matrix Scm,Agency Staff,1349.28,0,
01-02-2023,Adults & Health,Matrix Scm,Agency Staff,1447.94,0,
01-02-2023,Adults & Health,Matrix Scm,Agency Staff,1429.92,0,
01-02-2023,Adults & Health,Matrix Scm,Agency Staff,1349.66,0,
01-02-2023,oneSource,Matrix Scm,Agency Staff,2805.1,0,
01-02-2023,oneSource,Matrix Scm,Agency Staff,1554.1,0,
01-02-2023,oneSource,Matrix Scm,Agency Staff,2691.7,0,
01-02-2023,Housing Revenue Account,Matrix Scm,Agency Staff,1244.85,0,
01-02-2023,Housing Revenue Account,Matrix Scm,Agency Staff,627.92,0,
01-02-2023,Housing Revenue Account,Matrix Scm,Agency Staff,2248.5,0,
01-02-2023,Housing Revenue Account,Matrix Scm,Agency Staff,1933.5,0,
01-02-2023,Housing Revenue Account,Matrix Scm,Agency Staff,1990.9,0,
01-02-2023,Housing Revenue Account,Matrix Scm,Agency Staff,2557.3,0,
01-02-2023,Housing Revenue Account,Matrix Scm,Agency Staff,2279.85,0,
01-02-2023,Housing Revenue Account,Matrix Scm,Agency Staff,1990.9,0,
01-02-2023,Housing Revenue Account,Matrix Scm,Agency Staff,1012.5,0,
01-02-2023,oneSource,Matrix Scm,Agency Staff,1078.91,0,
01-02-2023,oneSource,Matrix Scm,Agency Staff,1042.56,0,
01-02-2023,oneSource,Matrix Scm,Agency Staff,1267.94,0,
01-02-2023,oneSource,Matrix Scm,Agency Staff,654.45,0,
01-02-2023,oneSource,Matrix Scm,Agency Staff,1131.75,0,
01-02-2023,Environment and Sustainable Transport,Matrix Scm,Agency Staff,741.6,0,
01-02-2023,Environment and Sustainable Transport,Matrix Scm,Agency Staff,407.4,0,
01-02-2023,Environment and Sustainable Transport,Matrix Scm,Agency Staff,321.3,0,
01-02-2023,Environment and Sustainable Transport,Matrix Scm,Agency Staff,765.72,0,
01-02-2023,Environment and Sustainable Transport,Matrix Scm,Agency Staff,741.6,0,
01-02-2023,Environment and Sustainable Transport,Matrix Scm,Agency Staff,824.2,0,
01-02-2023,Environment and Sustainable Transport,Matrix Scm,Agency Staff,281.6,0,
01-02-2023,Environment and Sustainable Transport,Matrix Scm,Agency Staff,747.71,0,
01-02-2023,Environment and Sustainable Transport,Matrix Scm,Agency Staff,746.75,0,
01-02-2023,Environment and Sustainable Transport,Matrix Scm,Agency Staff,715.6,0,
01-02-2023,Environment and Sustainable Transport,Matrix Scm,Agency Staff,337.65,0,
01-02-2023,Environment and Sustainable Transport,Matrix Scm,Agency Staff,295.3,0,
01-02-2023,Environment and Sustainable Transport,Matrix Scm,Agency Staff,632.88,0,
01-02-2023,Environment and Sustainable Transport,Matrix Scm,Agency Staff,824.2,0,
01-02-2023,Environment and Sustainable Transport,Matrix Scm,Agency Staff,450.5,0,
01-02-2023,Environment and Sustainable Transport,Matrix Scm,Agency Staff,321.3,0,
01-02-2023,Environment and Sustainable Transport,Matrix Scm,Agency Staff,744.45,0,
01-02-2023,Environment and Sustainable Transport,Matrix Scm,Agency Staff,771.05,0,
01-02-2023,Environment and Sustainable Transport,Matrix Scm,Agency Staff,632.9,0,
01-02-2023,Environment and Sustainable Transport,Matrix Scm,Agency Staff,925.26,0,
01-02-2023,Environment and Sustainable Transport,Matrix Scm,Agency Staff,397.5,0,
01-02-2023,Environment and Sustainable Transport,Matrix Scm,Agency Staff,321.3,0,
01-02-2023,Environment and Sustainable Transport,Matrix Scm,Agency Staff,765.72,0,
01-02-2023,Environment and Sustainable Transport,Matrix Scm,Agency Staff,688.67,0,
01-02-2023,Environment and Sustainable Transport,Matrix Scm,Agency Staff,394.2,0,
01-02-2023,Environment and Sustainable Transport,Matrix Scm,Agency Staff,310.59,0,
01-02-2023,Environment and Sustainable Transport,Matrix Scm,Agency Staff,407.4,0,
01-02-2023,Environment and Sustainable Transport,Matrix Scm,Agency Staff,765.38,0,
01-02-2023,Environment and Sustainable Transport,Matrix Scm,Agency Staff,632.9,0,
01-02-2023,Environment and Sustainable Transport,Matrix Scm,Agency Staff,632.9,0,
01-02-2023,Environment and Sustainable Transport,Matrix Scm,Agency Staff,478.59,0,
01-02-2023,Environment and Sustainable Transport,Matrix Scm,Agency Staff,373.2,0,
01-02-2023,Environment and Sustainable Transport,Matrix Scm,Agency Staff,407.4,0,
01-02-2023,Environment and Sustainable Transport,Matrix Scm,Agency Staff,357,0,
01-02-2023,Environment and Sustainable Transport,Matrix Scm,Agency Staff,771.05,0,
01-02-2023,Environment and Sustainable Transport,Matrix Scm,Agency Staff,746.75,0,
01-02-2023,Environment and Sustainable Transport,Matrix Scm,Agency Staff,326.3,0,
01-02-2023,Environment and Sustainable Transport,Matrix Scm,Agency Staff,688.68,0,
01-02-2023,Environment and Sustainable Transport,Matrix Scm,Agency Staff,362.25,0,
01-02-2023,Environment and Sustainable Transport,Matrix Scm,Agency Staff,688.68,0,
01-02-2023,Environment and Sustainable Transport,Matrix Scm,Agency Staff,632.88,0,
01-02-2023,Environment and Sustainable Transport,Matrix Scm,Agency Staff,601.74,0,
01-02-2023,Environment and Sustainable Transport,Matrix Scm,Agency Staff,1340.64,0,
01-02-2023,Environment and Sustainable Transport,Matrix Scm,Agency Staff,1491.75,0,
01-02-2023,Resources,Matrix Scm,Agency Staff,3467.4,0,
01-02-2023,Resources,Matrix Scm,Agency Staff,2128.76,0,
01-02-2023,Resources,Matrix Scm,Agency Staff,2660.95,0,
01-02-2023,Housing Revenue Account,Matrix Scm,Agency Staff,781.92,0,
01-02-2023,Housing Revenue Account,Matrix Scm,Agency Staff,2389.08,0,
01-02-2023,Housing Revenue Account,Matrix Scm,Agency Staff,432.24,0,
01-02-2023,Housing Revenue Account,Matrix Scm,Agency Staff,666.37,0,
01-02-2023,Housing Revenue Account,Matrix Scm,Agency Staff,895.68,0,
01-02-2023,Housing Revenue Account,Matrix Scm,Agency Staff,586.44,0,
01-02-2023,Housing Revenue Account,Matrix Scm,Agency Staff,586.44,0,
01-02-2023,Housing Revenue Account,Matrix Scm,Agency Staff,2756.16,0,
01-02-2023,Housing Revenue Account,Matrix Scm,Agency Staff,1296.72,0,
01-02-2023,Housing Revenue Account,Matrix Scm,Agency Staff,648.36,0,
01-02-2023,Housing Revenue Account,Matrix Scm,Agency Staff,3774.65,0,
01-02-2023,Housing Revenue Account,Matrix Scm,Agency Staff,648.36,0,
01-02-2023,Housing Revenue Account,Matrix Scm,Agency Staff,586.44,0,
01-02-2023,Housing Revenue Account,Matrix Scm,Agency Staff,648.36,0,
01-02-2023,oneSource - Non Shared,Matrix Scm,Agency Staff,681.75,0,
01-02-2023,Resources,Matrix Scm,Agency Staff,1057.68,0,
01-02-2023,Resources,Matrix Scm,Agency Staff,2840.55,0,
01-02-2023,oneSource,Matrix Scm,Agency Staff,1053.54,0,
01-02-2023,oneSource,Matrix Scm,Agency Staff,756.73,0,
01-02-2023,oneSource,Matrix Scm,Agency Staff,1811.88,0,
01-02-2023,oneSource,Matrix Scm,Agency Staff,1437.5,0,
01-02-2023,oneSource,Matrix Scm,Agency Staff,1446.12,0,
01-02-2023,oneSource,Matrix Scm,Agency Staff,3746.1,0,
01-02-2023,oneSource,Matrix Scm,Agency Staff,4994.8,0,
01-02-2023,oneSource,Matrix Scm,Agency Staff,694.82,0,
01-02-2023,oneSource,Matrix Scm,Agency Staff,1018.67,0,
01-02-2023,oneSource,Matrix Scm,Agency Staff,833.6,0,
01-02-2023,oneSource,Matrix Scm,Agency Staff,651.97,0,
01-02-2023,oneSource,Matrix Scm,Agency Staff,651.97,0,
01-02-2023,oneSource,Matrix Scm,Agency Staff,755.45,0,
01-02-2023,oneSource,Matrix Scm,Agency Staff,3676.75,0,
01-02-2023,oneSource,Matrix Scm,Agency Staff,1971.68,0,
01-02-2023,oneSource,Matrix Scm,Agency Staff,3676.75,0,
01-02-2023,oneSource,Matrix Scm,Agency Staff,3676.75,0,
01-02-2023,oneSource,Matrix Scm,Agency Staff,1984.8,0,
01-02-2023,oneSource,Matrix Scm,Agency Staff,-784.2,0,
01-02-2023,oneSource,Matrix Scm,Agency Staff,773.4,0,
01-02-2023,oneSource,Matrix Scm,Agency Staff,790,0,
01-02-2023,oneSource,Matrix Scm,Agency Staff,-784.2,0,
01-02-2023,oneSource,Matrix Scm,Agency Staff,1185,0,
01-02-2023,oneSource,Matrix Scm,Agency Staff,3854.3,0,
01-02-2023,oneSource,Matrix Scm,Agency Staff,5485.15,0,
01-02-2023,Environment and Sustainable Transport,Matrix Scm,Agency Staff,799.92,0,
01-02-2023,Housing Revenue Account,Matrix Scm,Agency Staff,758.72,0,
01-02-2023,Housing Revenue Account,Matrix Scm,Agency Staff,942.13,0,
01-02-2023,Housing Revenue Account,Matrix Scm,Agency Staff,910.43,0,
01-02-2023,Housing Revenue Account,Matrix Scm,Agency Staff,910.45,0,
01-02-2023,Housing Revenue Account,Matrix Scm,Agency Staff,5518.6,0,
01-02-2023,Housing Revenue Account,Matrix Scm,Agency Staff,5518.6,0,
01-02-2023,Housing Revenue Account,Matrix Scm,Agency Staff,2525.45,0,
01-02-2023,Housing Revenue Account,Matrix Scm,Agency Staff,3033.5,0,
01-02-2023,Housing Revenue Account,Matrix Scm,Agency Staff,955.41,0,
01-02-2023,Housing Revenue Account,Matrix Scm,Agency Staff,995.25,0,
01-02-2023,Housing Revenue Account,Matrix Scm,Agency Staff,242.99,0,
01-02-2023,Housing Revenue Account,Matrix Scm,Agency Staff,717.95,0,
01-02-2023,Housing Revenue Account,Matrix Scm,Agency Staff,957,0,
01-02-2023,Housing Revenue Account,Matrix Scm,Agency Staff,212.5,0,
01-02-2023,Housing Revenue Account,Matrix Scm,Agency Staff,398.1,0,
01-02-2023,Housing Revenue Account,Matrix Scm,Agency Staff,88.36,0,
01-02-2023,Housing Revenue Account,Matrix Scm,Agency Staff,430.77,0,
01-02-2023,oneSource,Matrix Scm,Agency Staff,628.95,0,
01-02-2023,oneSource,Matrix Scm,Agency Staff,2665.3,0,
01-02-2023,oneSource,Matrix Scm,Agency Staff,1693.21,0,
01-02-2023,oneSource,Matrix Scm,Agency Staff,2805.1,0,
01-02-2023,Housing Revenue Account,Matrix Scm,Agency Staff,586.44,0,
01-02-2023,Housing Revenue Account,Matrix Scm,Agency Staff,586.44,0,
01-02-2023,Transformation,Matrix Scm,Agency Staff,3408.4,0,
01-02-2023,Transformation,Matrix Scm,Agency Staff,3033.5,0,
01-02-2023,Transformation,Matrix Scm,Agency Staff,308.13,0,
01-02-2023,Transformation,Matrix Scm,Agency Staff,2468.88,0,
01-02-2023,Transformation,Matrix Scm,Agency Staff,3033.5,0,
01-02-2023,Transformation,Matrix Scm,Agency Staff,2840.55,0,
01-02-2023,Marketing,Matrix Scm,Agency Staff,1031.58,0,
01-02-2023,Children and Young People,Matrix Scm,Agency Staff,217.17,0,
01-02-2023,Children and Young People,Matrix Scm,Agency Staff,841.92,0,
01-02-2023,Children and Young People,Matrix Scm,Agency Staff,1649.54,0,
01-02-2023,Children and Young People,Matrix Scm,Agency Staff,1447.94,0,
01-02-2023,Children and Young People,Matrix Scm,Agency Staff,1441.09,0,
01-02-2023,Children and Young People,Matrix Scm,Agency Staff,1394.66,0,
01-02-2023,Children and Young People,Matrix Scm,Agency Staff,1394.66,0,
01-02-2023,Children and Young People,Matrix Scm,Agency Staff,1400.76,0,
01-02-2023,Children and Young People,Matrix Scm,Agency Staff,1364.05,0,
01-02-2023,Children and Young People,Matrix Scm,Agency Staff,1415.89,0,
01-02-2023,Children and Young People,Matrix Scm,Agency Staff,2668.8,0,
01-02-2023,Children and Young People,Matrix Scm,Agency Staff,1447.94,0,
01-02-2023,Children and Young People,Matrix Scm,Agency Staff,1385.28,0,
01-02-2023,Children and Young People,Matrix Scm,Agency Staff,1612.45,0,
01-02-2023,Children and Young People,Matrix Scm,Agency Staff,11.25,0,
01-02-2023,Children and Young People,Matrix Scm,Agency Staff,24.3,0,
01-02-2023,Children and Young People,Matrix Scm,Agency Staff,204.59,0,
01-02-2023,Children and Young People,Matrix Scm,Agency Staff,1434.98,0,
01-02-2023,Children and Young People,Matrix Scm,Agency Staff,1415.17,0,
01-02-2023,Children and Young People,Matrix Scm,Agency Staff,541.86,0,
01-02-2023,Children and Young People,Matrix Scm,Agency Staff,1415.17,0,
01-02-2023,Children and Young People,Matrix Scm,Agency Staff,812.79,0,
01-02-2023,Housing Revenue Account,Matrix Scm,Agency Staff,1948.45,0,
01-02-2023,Housing Revenue Account,Matrix Scm,Agency Staff,2270.08,0,
01-02-2023,Housing Revenue Account,Matrix Scm,Agency Staff,2557.3,0,
01-02-2023,Housing Revenue Account,Matrix Scm,Agency Staff,2471.55,0,
01-02-2023,Housing Revenue Account,Matrix Scm,Agency Staff,2557.3,0,
01-02-2023,Housing Revenue Account,Matrix Scm,Agency Staff,3286.7,0,
01-02-2023,Housing Revenue Account,Matrix Scm,Agency Staff,414.38,0,
01-02-2023,Housing Revenue Account,Matrix Scm,Agency Staff,800.76,0,
01-02-2023,Housing Revenue Account,Matrix Scm,Agency Staff,594.16,0,
01-02-2023,Housing Revenue Account,Matrix Scm,Agency Staff,563.22,0,
01-02-2023,Housing Revenue Account,Matrix Scm,Agency Staff,340,0,
01-02-2023,Housing Revenue Account,Matrix Scm,Agency Staff,838.8,0,
01-02-2023,Housing Revenue Account,Matrix Scm,Agency Staff,894.65,0,
01-02-2023,Housing Revenue Account,Matrix Scm,Agency Staff,784.2,0,
01-02-2023,Housing Revenue Account,Matrix Scm,Agency Staff,889.12,0,
01-02-2023,Housing Revenue Account,Matrix Scm,Agency Staff,811.8,0,
01-02-2023,Housing Revenue Account,Matrix Scm,Agency Staff,780.65,0,
01-02-2023,Housing Revenue Account,Matrix Scm,Agency Staff,586.44,0,
01-02-2023,Housing Revenue Account,Matrix Scm,Agency Staff,864.48,0,
01-02-2023,Housing Revenue Account,Matrix Scm,Agency Staff,586.44,0,
01-02-2023,Housing Revenue Account,Matrix Scm,Agency Staff,586.44,0,
01-02-2023,Housing Revenue Account,Matrix Scm,Agency Staff,2.75,0,
01-02-2023,Housing Revenue Account,Matrix Scm,Agency Staff,1170,0,
01-02-2023,Housing Revenue Account,Matrix Scm,Agency Staff,-586.44,0,
01-02-2023,Housing Revenue Account,Matrix Scm,Agency Staff,390.96,0,
01-02-2023,Housing Revenue Account,Matrix Scm,Agency Staff,1567.44,0,
01-02-2023,Housing Revenue Account,Matrix Scm,Agency Staff,895.68,0,
01-02-2023,Housing Revenue Account,Matrix Scm,Agency Staff,648.36,0,
01-02-2023,Housing Revenue Account,Matrix Scm,Agency Staff,909.51,0,
01-02-2023,Housing Revenue Account,Matrix Scm,Agency Staff,2067.75,0,
01-02-2023,Housing Revenue Account,Matrix Scm,Agency Staff,2245.8,0,
01-02-2023,RMS,Matrix Scm,Agency Staff,1327.6,0,
01-02-2023,RMS,Matrix Scm,Agency Staff,1320.48,0,
01-02-2023,RMS,Matrix Scm,Agency Staff,1327.6,0,
01-02-2023,RMS,Matrix Scm,Agency Staff,1166.4,0,
01-02-2023,RMS,Matrix Scm,Agency Staff,1135.6,0,
01-02-2023,RMS,Matrix Scm,Agency Staff,1153.7,0,
01-02-2023,RMS,Matrix Scm,Agency Staff,843.4,0,
01-02-2023,RMS,Matrix Scm,Agency Staff,1208.16,0,
01-02-2023,RMS,Matrix Scm,Agency Staff,988.2,0,
01-02-2023,RMS,Matrix Scm,Agency Staff,654.75,0,
01-02-2023,Children and Young People,Matrix Scm,Agency Staff,1434.98,0,
01-02-2023,Children and Young People,Matrix Scm,Agency Staff,541.86,0,
01-02-2023,Children and Young People,Matrix Scm,Agency Staff,541.86,0,
01-02-2023,Children and Young People,Matrix Scm,Agency Staff,1345.31,0,
01-02-2023,Children and Young People,Matrix Scm,Agency Staff,541.86,0,
01-02-2023,Children and Young People,Matrix Scm,Agency Staff,1345.31,0,
01-02-2023,Children and Young People,Matrix Scm,Agency Staff,1386.86,0,
01-02-2023,Children and Young People,Matrix Scm,Agency Staff,322.64,0,
01-02-2023,Children and Young People,Matrix Scm,Agency Staff,454.68,0,
01-02-2023,Children and Young People,Matrix Scm,Agency Staff,766.85,0,
01-02-2023,Children and Young People,Matrix Scm,Agency Staff,1415.87,0,
01-02-2023,Children and Young People,Matrix Scm,Agency Staff,1660.67,0,
01-02-2023,Children and Young People,Matrix Scm,Agency Staff,890.56,0,
01-02-2023,Children and Young People,Matrix Scm,Agency Staff,1415.87,0,
01-02-2023,Children and Young People,Matrix Scm,Agency Staff,1421.28,0,
01-02-2023,Children and Young People,Matrix Scm,Agency Staff,1637.28,0,
01-02-2023,Children and Young People,Matrix Scm,Agency Staff,1637.28,0,
01-02-2023,Children and Young People,Matrix Scm,Agency Staff,74.69,0,
01-02-2023,Children and Young People,Matrix Scm,Agency Staff,1709.28,0,
01-02-2023,Children and Young People,Matrix Scm,Agency Staff,1374.9,0,
01-02-2023,Transformation,Matrix Scm,Agency Staff,2981.7,0,
01-02-2023,Transformation,Matrix Scm,Agency Staff,596.34,0,
01-02-2023,Dedicated Schools Budget,Personal Information - Redacted,Agency Staff,1649.76,0,
01-02-2023,Children and Young People,Matrix Scm,Agency Staff,465.08,0,
01-02-2023,Children and Young People,Matrix Scm,Agency Staff,1627.42,0,
01-02-2023,oneSource,Matrix Scm,Agency Staff,664.65,0,
01-02-2023,oneSource,Matrix Scm,Agency Staff,764.53,0,
01-02-2023,oneSource,Matrix Scm,Agency Staff,1020.61,0,
01-02-2023,oneSource,Matrix Scm,Agency Staff,6243.5,0,
01-02-2023,Housing Revenue Account,Matrix Scm,Agency Staff,2557.3,0,
01-02-2023,Housing Revenue Account,Matrix Scm,Agency Staff,454.86,0,
01-02-2023,Housing Revenue Account,Matrix Scm,Agency Staff,648.35,0,
01-02-2023,Housing Revenue Account,Matrix Scm,Agency Staff,457.42,0,
01-02-2023,Housing Revenue Account,Matrix Scm,Agency Staff,222.74,0,
01-02-2023,Housing Revenue Account,Matrix Scm,Agency Staff,530.27,0,
01-02-2023,Housing Revenue Account,Matrix Scm,Agency Staff,573.47,0,
01-02-2023,Housing Revenue Account,Matrix Scm,Agency Staff,669.96,0,
01-02-2023,Housing Revenue Account,Matrix Scm,Agency Staff,572.77,0,
01-02-2023,Housing Revenue Account,Matrix Scm,Agency Staff,150.22,0,
01-02-2023,Housing Revenue Account,Matrix Scm,Agency Staff,614.88,0,
01-02-2023,Housing Revenue Account,Matrix Scm,Agency Staff,648.35,0,
01-02-2023,Housing Revenue Account,Matrix Scm,Agency Staff,648.35,0,
01-02-2023,Housing Revenue Account,Matrix Scm,Agency Staff,572.77,0,
01-02-2023,Housing Revenue Account,Matrix Scm,Agency Staff,648.35,0,
01-02-2023,Housing Revenue Account,Matrix Scm,Agency Staff,648.35,0,
01-02-2023,Housing Revenue Account,Matrix Scm,Agency Staff,236.83,0,
01-02-2023,Housing Revenue Account,Matrix Scm,Agency Staff,200.27,0,
01-02-2023,Housing Revenue Account,Matrix Scm,Agency Staff,572.77,0,
01-02-2023,Housing Revenue Account,Matrix Scm,Agency Staff,17.08,0,
01-02-2023,Housing Revenue Account,Matrix Scm,Agency Staff,614.88,0,
01-02-2023,Housing Revenue Account,Matrix Scm,Agency Staff,586.44,0,
01-02-2023,Housing Revenue Account,Matrix Scm,Agency Staff,773.78,0,
01-02-2023,Housing Revenue Account,Matrix Scm,Agency Staff,586.44,0,
01-02-2023,Housing Revenue Account,Matrix Scm,Agency Staff,781.92,0,
01-02-2023,Environment and Sustainable Transport,Matrix Scm,Agency Staff,150.71,0,
01-02-2023,Environment and Sustainable Transport,Matrix Scm,Agency Staff,200.27,0,
01-02-2023,Environment and Sustainable Transport,Matrix Scm,Agency Staff,390.63,0,
01-02-2023,Environment and Sustainable Transport,Matrix Scm,Agency Staff,228.83,0,
01-02-2023,Environment and Sustainable Transport,Matrix Scm,Agency Staff,669.95,0,
01-02-2023,Environment and Sustainable Transport,Matrix Scm,Agency Staff,614.88,0,
01-02-2023,Environment and Sustainable Transport,Matrix Scm,Agency Staff,648.35,0,
01-02-2023,Environment and Sustainable Transport,Matrix Scm,Agency Staff,270.82,0,
01-02-2023,Environment and Sustainable Transport,Matrix Scm,Agency Staff,669.95,0,
01-02-2023,Environment and Sustainable Transport,Matrix Scm,Agency Staff,395.12,0,
01-02-2023,Environment and Sustainable Transport,Matrix Scm,Agency Staff,1364.46,0,
01-02-2023,Environment and Sustainable Transport,Matrix Scm,Agency Staff,803.6,0,
01-02-2023,Environment and Sustainable Transport,Matrix Scm,Agency Staff,634.77,0,
01-02-2023,RMS,Matrix Scm,Agency Staff,805.12,0,
01-02-2023,RMS,Matrix Scm,Agency Staff,1006.8,0,
01-02-2023,RMS,Matrix Scm,Agency Staff,800.1,0,
01-02-2023,Dedicated Schools Budget,Personal Information - Redacted,Agency Staff,1703.5,0,
01-02-2023,Dedicated Schools Budget,Personal Information - Redacted,Agency Staff,1002.48,0,
01-02-2023,Dedicated Schools Budget,Personal Information - Redacted,Agency Staff,1094.4,0,
01-02-2023,Transformation,Matrix Scm,Agency Staff,2644.65,0,
01-02-2023,Transformation,Matrix Scm,Agency Staff,2471.55,0,
01-02-2023,Marketing,Matrix Scm,Agency Staff,2471.55,0,
01-02-2023,Marketing,Matrix Scm,Agency Staff,2471.55,0,
01-02-2023,Inclusive Economy & Housing,Matrix Scm,Agency Staff,1728.37,0,
01-02-2023,Inclusive Economy & Housing,Matrix Scm,Agency Staff,1763.25,0,
01-02-2023,Inclusive Economy & Housing,Matrix Scm,Agency Staff,1156.05,0,
01-02-2023,RMS,Matrix Scm,Agency Staff,1140.48,0,
01-02-2023,RMS,Matrix Scm,Agency Staff,892.4,0,
01-02-2023,RMS,Matrix Scm,Agency Staff,1140.48,0,
01-02-2023,RMS,Matrix Scm,Agency Staff,1104.48,0,
01-02-2023,RMS,Matrix Scm,Agency Staff,1140.48,0,
01-02-2023,RMS,Matrix Scm,Agency Staff,1140.48,0,
01-02-2023,RMS,Matrix Scm,Agency Staff,950.4,0,
01-02-2023,RMS,Matrix Scm,Agency Staff,1140.48,0,
01-02-2023,RMS,Matrix Scm,Agency Staff,950.4,0,
01-02-2023,RMS,Matrix Scm,Agency Staff,1006.4,0,
01-02-2023,RMS,Matrix Scm,Agency Staff,778.24,0,
01-02-2023,RMS,Matrix Scm,Agency Staff,1089.62,0,
01-02-2023,RMS,Matrix Scm,Agency Staff,972.8,0,
01-02-2023,RMS,Matrix Scm,Agency Staff,972.8,0,
01-02-2023,RMS,Matrix Scm,Agency Staff,1214.7,0,
01-02-2023,RMS,Matrix Scm,Agency Staff,1148.8,0,
01-02-2023,RMS,Matrix Scm,Agency Staff,1191.3,0,
01-02-2023,RMS,Matrix Scm,Agency Staff,1191.3,0,
01-02-2023,RMS,Matrix Scm,Agency Staff,-55,0,
01-02-2023,RMS,Matrix Scm,Agency Staff,1044.8,0,
01-02-2023,RMS,Matrix Scm,Agency Staff,1191.3,0,
01-02-2023,RMS,Matrix Scm,Agency Staff,1191.3,0,
01-02-2023,RMS,Matrix Scm,Agency Staff,1214.7,0,
01-02-2023,RMS,Matrix Scm,Agency Staff,2938.45,0,
01-02-2023,RMS,Matrix Scm,Agency Staff,2938.45,0,
01-02-2023,RMS,Matrix Scm,Agency Staff,2938.45,0,
01-02-2023,RMS,Matrix Scm,Agency Staff,1551.9,0,
01-02-2023,RMS,Matrix Scm,Agency Staff,867.6,0,
01-02-2023,RMS,Matrix Scm,Agency Staff,860.4,0,
01-02-2023,RMS,Matrix Scm,Agency Staff,680.05,0,
01-02-2023,RMS,Matrix Scm,Agency Staff,2637.4,0,
01-02-2023,RMS,Matrix Scm,Agency Staff,1164.8,0,
01-02-2023,RMS,Matrix Scm,Agency Staff,1007.6,0,
01-02-2023,Inclusive Economy & Housing,Matrix Scm,Agency Staff,1001.28,0,
01-02-2023,RMS,Matrix Scm,Agency Staff,1200,0,
01-02-2023,RMS,Matrix Scm,Agency Staff,1007.6,0,
01-02-2023,RMS,Matrix Scm,Agency Staff,1327.6,0,
01-02-2023,RMS,Matrix Scm,Agency Staff,1418.55,0,
01-02-2023,RMS,Matrix Scm,Agency Staff,785.12,0,
01-02-2023,RMS,Matrix Scm,Agency Staff,1187.55,0,
01-02-2023,RMS,Matrix Scm,Agency Staff,1810.05,0,
01-02-2023,RMS,Matrix Scm,Agency Staff,948.8,0,
01-02-2023,Marketing,Matrix Scm,Agency Staff,2246.75,0,
01-02-2023,Marketing,Matrix Scm,Agency Staff,2274.15,0,
01-02-2023,Marketing,Matrix Scm,Agency Staff,2246.75,0,
01-02-2023,Inclusive Economy & Housing,Matrix Scm,Agency Staff,968.42,0,
01-02-2023,Inclusive Economy & Housing,Matrix Scm,Agency Staff,945.73,0,
01-02-2023,Inclusive Economy & Housing,Matrix Scm,Agency Staff,990.9,0,
01-02-2023,Inclusive Economy & Housing,Matrix Scm,Agency Staff,1189.1,0,
01-02-2023,Inclusive Economy & Housing,Matrix Scm,Agency Staff,930.24,0,
01-02-2023,Inclusive Economy & Housing,Matrix Scm,Agency Staff,887.26,0,
01-02-2023,Inclusive Economy & Housing,Matrix Scm,Agency Staff,885.15,0,
01-02-2023,Inclusive Economy & Housing,Matrix Scm,Agency Staff,910.45,0,
01-02-2023,Inclusive Economy & Housing,Matrix Scm,Agency Staff,862.21,0,
01-02-2023,Inclusive Economy & Housing,Matrix Scm,Agency Staff,972,0,
01-02-2023,Inclusive Economy & Housing,Matrix Scm,Agency Staff,945.73,0,
01-02-2023,RMS,Matrix Scm,Agency Staff,1060.5,0,
01-02-2023,RMS,Matrix Scm,Agency Staff,362.43,0,
01-02-2023,RMS,Matrix Scm,Agency Staff,667.15,0,
01-02-2023,RMS,Matrix Scm,Agency Staff,951.2,0,
01-02-2023,RMS,Matrix Scm,Agency Staff,1808.5,0,
01-02-2023,RMS,Matrix Scm,Agency Staff,1276.4,0,
01-02-2023,RMS,Matrix Scm,Agency Staff,329.26,0,
01-02-2023,RMS,Matrix Scm,Agency Staff,-979.26,0,
01-02-2023,RMS,Matrix Scm,Agency Staff,1085.1,0,
01-02-2023,RMS,Matrix Scm,Agency Staff,729.4,0,
01-02-2023,RMS,Matrix Scm,Agency Staff,716.8,0,
01-02-2023,Environment and Sustainable Transport,Matrix Scm,Agency Staff,-222.74,0,
01-02-2023,Environment and Sustainable Transport,Matrix Scm,Agency Staff,150.71,0,
01-02-2023,Environment and Sustainable Transport,Matrix Scm,Agency Staff,314.71,0,
01-02-2023,Environment and Sustainable Transport,Matrix Scm,Agency Staff,572.77,0,
01-02-2023,Environment and Sustainable Transport,Matrix Scm,Agency Staff,648.35,0,
01-02-2023,Environment and Sustainable Transport,Matrix Scm,Agency Staff,333,0,
01-02-2023,Environment and Sustainable Transport,Matrix Scm,Agency Staff,191.94,0,
01-02-2023,Environment and Sustainable Transport,Matrix Scm,Agency Staff,624.96,0,
01-02-2023,Environment and Sustainable Transport,Matrix Scm,Agency Staff,150.22,0,
01-02-2023,Environment and Sustainable Transport,Matrix Scm,Agency Staff,197.68,0,
01-02-2023,Environment and Sustainable Transport,Matrix Scm,Agency Staff,592.58,0,
01-02-2023,Environment and Sustainable Transport,Matrix Scm,Agency Staff,345.84,0,
01-02-2023,Environment and Sustainable Transport,Matrix Scm,Agency Staff,646.56,0,
01-02-2023,Environment and Sustainable Transport,Matrix Scm,Agency Staff,236.83,0,
01-02-2023,Environment and Sustainable Transport,Matrix Scm,Agency Staff,200.27,0,
01-02-2023,Environment and Sustainable Transport,Matrix Scm,Agency Staff,572.77,0,
01-02-2023,Environment and Sustainable Transport,Matrix Scm,Agency Staff,614.88,0,
01-02-2023,Environment and Sustainable Transport,Matrix Scm,Agency Staff,572.77,0,
01-02-2023,Environment and Sustainable Transport,Matrix Scm,Agency Staff,572.77,0,
01-02-2023,Environment and Sustainable Transport,Matrix Scm,Agency Staff,572.77,0,
01-02-2023,Environment and Sustainable Transport,Matrix Scm,Agency Staff,572.77,0,
01-02-2023,Environment and Sustainable Transport,Matrix Scm,Agency Staff,230.7,0,
01-02-2023,Environment and Sustainable Transport,Matrix Scm,Agency Staff,646.21,0,
01-02-2023,Environment and Sustainable Transport,Matrix Scm,Agency Staff,530.27,0,
01-02-2023,Environment and Sustainable Transport,Matrix Scm,Agency Staff,172.34,0,
01-02-2023,Environment and Sustainable Transport,Matrix Scm,Agency Staff,669.95,0,
01-02-2023,Environment and Sustainable Transport,Matrix Scm,Agency Staff,245.19,0,
01-02-2023,Environment and Sustainable Transport,Matrix Scm,Agency Staff,325.93,0,
01-02-2023,Environment and Sustainable Transport,Matrix Scm,Agency Staff,495.32,0,
01-02-2023,Environment and Sustainable Transport,Matrix Scm,Agency Staff,150.71,0,
01-02-2023,Environment and Sustainable Transport,Matrix Scm,Agency Staff,200.27,0,
01-02-2023,Environment and Sustainable Transport,Matrix Scm,Agency Staff,572.77,0,
01-02-2023,Environment and Sustainable Transport,Matrix Scm,Agency Staff,326.37,0,
01-02-2023,Environment and Sustainable Transport,Matrix Scm,Agency Staff,801.38,0,
01-02-2023,Children and Young People,Matrix Scm,Agency Staff,1347.64,0,
01-02-2023,Children and Young People,Matrix Scm,Agency Staff,728.74,0,
01-02-2023,Children and Young People,Matrix Scm,Agency Staff,1113.12,0,
01-02-2023,Children and Young People,Matrix Scm,Agency Staff,1895.4,0,
01-02-2023,Children and Young People,Matrix Scm,Agency Staff,728.74,0,
01-02-2023,Children and Young People,Matrix Scm,Agency Staff,1778.85,0,
01-02-2023,Children and Young People,Matrix Scm,Agency Staff,1778.85,0,
01-02-2023,Children and Young People,Matrix Scm,Agency Staff,1778.85,0,
01-02-2023,Children and Young People,Matrix Scm,Agency Staff,2330.5,0,
01-02-2023,Children and Young People,Matrix Scm,Agency Staff,1093.11,0,
01-02-2023,Children and Young People,Matrix Scm,Agency Staff,1858.75,0,
01-02-2023,Children and Young People,Matrix Scm,Agency Staff,1778.85,0,
01-02-2023,Children and Young People,Matrix Scm,Agency Staff,2330.5,0,
01-02-2023,Adults & Health,Matrix Scm,Agency Staff,1051.5,0,
01-02-2023,Adults & Health,Matrix Scm,Agency Staff,14.4,0,
01-02-2023,Adults & Health,Matrix Scm,Agency Staff,65,0,
01-02-2023,Adults & Health,Matrix Scm,Agency Staff,889.38,0,
01-02-2023,Adults & Health,Matrix Scm,Agency Staff,929.84,0,
01-02-2023,Adults & Health,Matrix Scm,Agency Staff,15.3,0,
01-02-2023,Adults & Health,Matrix Scm,Agency Staff,65,0,
01-02-2023,Adults & Health,Matrix Scm,Agency Staff,549.42,0,
01-02-2023,Adults & Health,Matrix Scm,Agency Staff,785.07,0,
01-02-2023,Adults & Health,Matrix Scm,Agency Staff,900.45,0,
01-02-2023,Inclusive Economy & Housing,Matrix Scm,Agency Staff,959.76,0,
01-02-2023,Inclusive Economy & Housing,Matrix Scm,Agency Staff,884.53,0,
01-02-2023,Inclusive Economy & Housing,Matrix Scm,Agency Staff,696.4,0,
01-02-2023,Inclusive Economy & Housing,Matrix Scm,Agency Staff,648.35,0,
01-02-2023,Environment and Sustainable Transport,Matrix Scm,Agency Staff,553.31,0,
01-02-2023,Environment and Sustainable Transport,Matrix Scm,Agency Staff,318.01,0,
01-02-2023,Environment and Sustainable Transport,Matrix Scm,Agency Staff,780.83,0,
01-02-2023,Environment and Sustainable Transport,Matrix Scm,Agency Staff,422.91,0,
01-02-2023,Environment and Sustainable Transport,Matrix Scm,Agency Staff,570.59,0,
01-02-2023,Environment and Sustainable Transport,Matrix Scm,Agency Staff,247.28,0,
01-02-2023,Environment and Sustainable Transport,Matrix Scm,Agency Staff,83.08,0,
01-02-2023,Environment and Sustainable Transport,Matrix Scm,Agency Staff,222.86,0,
01-02-2023,Environment and Sustainable Transport,Matrix Scm,Agency Staff,708.13,0,
01-02-2023,Environment and Sustainable Transport,Matrix Scm,Agency Staff,638.66,0,
01-02-2023,Environment and Sustainable Transport,Matrix Scm,Agency Staff,629,0,
01-02-2023,Environment and Sustainable Transport,Matrix Scm,Agency Staff,259.82,0,
01-02-2023,Environment and Sustainable Transport,Matrix Scm,Agency Staff,780.83,0,
01-02-2023,Environment and Sustainable Transport,Matrix Scm,Agency Staff,686.18,0,
01-02-2023,Environment and Sustainable Transport,Matrix Scm,Agency Staff,592.58,0,
01-02-2023,Environment and Sustainable Transport,Matrix Scm,Agency Staff,648.35,0,
01-02-2023,Environment and Sustainable Transport,Matrix Scm,Agency Staff,638.66,0,
01-02-2023,Environment and Sustainable Transport,Matrix Scm,Agency Staff,285.56,0,
01-02-2023,Environment and Sustainable Transport,Matrix Scm,Agency Staff,796.32,0,
01-02-2023,Environment and Sustainable Transport,Matrix Scm,Agency Staff,162.98,0,
01-02-2023,Environment and Sustainable Transport,Matrix Scm,Agency Staff,708.13,0,
01-02-2023,Environment and Sustainable Transport,Matrix Scm,Agency Staff,565.24,0,
01-02-2023,Environment and Sustainable Transport,Matrix Scm,Agency Staff,354.3,0,
01-02-2023,RMS,Matrix Scm,Agency Staff,805.12,0,
01-02-2023,RMS,Matrix Scm,Agency Staff,1050.8,0,
01-02-2023,RMS,Matrix Scm,Agency Staff,618.52,0,
01-02-2023,RMS,Matrix Scm,Agency Staff,1018.7,0,
01-02-2023,RMS,Matrix Scm,Agency Staff,1247.2,0,
01-02-2023,RMS,Matrix Scm,Agency Staff,771.06,0,
01-02-2023,RMS,Matrix Scm,Agency Staff,743.75,0,
01-02-2023,RMS,Matrix Scm,Agency Staff,944.8,0,
01-02-2023,RMS,Matrix Scm,Agency Staff,850,0,
01-02-2023,RMS,Matrix Scm,Agency Staff,564.06,0,
01-02-2023,RMS,Matrix Scm,Agency Staff,769.65,0,
01-02-2023,RMS,Matrix Scm,Agency Staff,752.16,0,
01-02-2023,RMS,Matrix Scm,Agency Staff,796.9,0,
01-02-2023,RMS,Matrix Scm,Agency Staff,673.05,0,
01-02-2023,Adults & Health,Matrix Scm,Agency Staff,1241.28,0,
01-02-2023,Adults & Health,Matrix Scm,Agency Staff,237.22,0,
01-02-2023,Adults & Health,Matrix Scm,Agency Staff,1265.41,0,
01-02-2023,Adults & Health,Matrix Scm,Agency Staff,1241.28,0,
01-02-2023,Adults & Health,Matrix Scm,Agency Staff,1207.46,0,
01-02-2023,Adults & Health,Matrix Scm,Agency Staff,1457.28,0,
01-02-2023,Children and Young People,Matrix Scm,Agency Staff,1652.17,0,
01-02-2023,Marketing,Matrix Scm,Agency Staff,619.91,0,
01-02-2023,Marketing,Matrix Scm,Agency Staff,78.03,0,
01-02-2023,Marketing,Matrix Scm,Agency Staff,242.76,0,
01-02-2023,Marketing,Matrix Scm,Agency Staff,416.16,0,
01-02-2023,Marketing,Matrix Scm,Agency Staff,41.95,0,
01-02-2023,Marketing,Matrix Scm,Agency Staff,41.95,0,
01-02-2023,Marketing,Matrix Scm,Agency Staff,41.95,0,
01-02-2023,Adults & Health,Matrix Scm,Agency Staff,792.12,0,
01-02-2023,Adults & Health,Matrix Scm,Agency Staff,637.14,0,
01-02-2023,Adults & Health,Matrix Scm,Agency Staff,910.8,0,
01-02-2023,Adults & Health,Matrix Scm,Agency Staff,1586.18,0,
01-02-2023,Adults & Health,Matrix Scm,Agency Staff,1540.8,0,
01-02-2023,Adults & Health,Matrix Scm,Agency Staff,2964.3,0,
01-02-2023,Adults & Health,Matrix Scm,Agency Staff,1705.8,0,
01-02-2023,Adults & Health,Matrix Scm,Agency Staff,801.9,0,
01-02-2023,Adults & Health,Matrix Scm,Agency Staff,537.09,0,
01-02-2023,Adults & Health,Matrix Scm,Agency Staff,2351.8,0,
01-02-2023,Adults & Health,Matrix Scm,Agency Staff,1687.9,0,
01-02-2023,Adults & Health,Matrix Scm,Agency Staff,2326.2,0,
01-02-2023,RMS,Matrix Scm,Agency Staff,647.85,0,
01-02-2023,RMS,Matrix Scm,Agency Staff,729.4,0,
01-02-2023,RMS,Matrix Scm,Agency Staff,647.85,0,
01-02-2023,RMS,Matrix Scm,Agency Staff,750.24,0,
01-02-2023,RMS,Matrix Scm,Agency Staff,781.5,0,
01-02-2023,Environment and Sustainable Transport,Matrix Scm,Agency Staff,648.35,0,
01-02-2023,Environment and Sustainable Transport,Matrix Scm,Agency Staff,553.31,0,
01-02-2023,Environment and Sustainable Transport,Matrix Scm,Agency Staff,612.35,0,
01-02-2023,Environment and Sustainable Transport,Matrix Scm,Agency Staff,553.31,0,
01-02-2023,Environment and Sustainable Transport,Matrix Scm,Agency Staff,137.62,0,
01-02-2023,Environment and Sustainable Transport,Matrix Scm,Agency Staff,137.62,0,
01-02-2023,Environment and Sustainable Transport,Matrix Scm,Agency Staff,489.24,0,
01-02-2023,Environment and Sustainable Transport,Matrix Scm,Agency Staff,565.52,0,
01-02-2023,Environment and Sustainable Transport,Matrix Scm,Agency Staff,686.18,0,
01-02-2023,Environment and Sustainable Transport,Matrix Scm,Agency Staff,1109.69,0,
01-02-2023,Children and Young People,Matrix Scm,Agency Staff,396.24,0,
01-02-2023,Children and Young People,Matrix Scm,Agency Staff,576.32,0,
01-02-2023,Children and Young People,Matrix Scm,Agency Staff,456,0,
01-02-2023,Children and Young People,Matrix Scm,Agency Staff,336.41,0,
01-02-2023,Children and Young People,Matrix Scm,Agency Staff,361.02,0,
01-02-2023,Children and Young People,Matrix Scm,Agency Staff,529.58,0,
01-02-2023,Children and Young People,Matrix Scm,Agency Staff,543.9,0,
01-02-2023,Children and Young People,Matrix Scm,Agency Staff,299.17,0,
01-02-2023,Children and Young People,Matrix Scm,Agency Staff,633.66,0,
01-02-2023,Children and Young People,Matrix Scm,Agency Staff,332.92,0,
01-02-2023,Children and Young People,Matrix Scm,Agency Staff,833.85,0,
01-02-2023,Children and Young People,Matrix Scm,Agency Staff,370.6,0,
01-02-2023,Children and Young People,Matrix Scm,Agency Staff,409.18,0,
01-02-2023,Children and Young People,Matrix Scm,Agency Staff,354.12,0,
01-02-2023,Environment and Sustainable Transport,Matrix Scm,Agency Staff,723.9,0,
01-02-2023,Environment and Sustainable Transport,Matrix Scm,Agency Staff,713.92,0,
01-02-2023,Inclusive Economy & Housing,Matrix Scm,Agency Staff,1641.51,0,
01-02-2023,Inclusive Economy & Housing,Matrix Scm,Agency Staff,1452.03,0,
01-02-2023,Inclusive Economy & Housing,Matrix Scm,Agency Staff,8.1,0,
01-02-2023,Inclusive Economy & Housing,Matrix Scm,Agency Staff,1496.69,0,
01-02-2023,Inclusive Economy & Housing,Matrix Scm,Agency Staff,786.43,0,
01-02-2023,Children and Young People,Matrix Scm,Agency Staff,1832.95,0,
01-02-2023,Children and Young People,Matrix Scm,Agency Staff,1721.35,0,
01-02-2023,Adults & Health,Bluebird Care (Barking and Dagenham),Home Care - Private Contractors Payment,504,0,COMMERCIAL SUPPLIER
01-02-2023,Adults & Health,Bluebird Care (Barking and Dagenham),Home Care - Private Contractors Payment,2804,0,COMMERCIAL SUPPLIER
01-02-2023,Adults & Health,Bluebird Care (Barking and Dagenham),Home Care - Private Contractors Payment,360,0,COMMERCIAL SUPPLIER
01-02-2023,Adults & Health,Bluebird Care (Barking and Dagenham),Home Care - Private Contractors Payment,504,0,COMMERCIAL SUPPLIER
01-02-2023,Adults & Health,Bluebird Care (Barking and Dagenham),Daycare - Private Contractors Payment,61.8,0,COMMERCIAL SUPPLIER
01-02-2023,Adults & Health,Bluebird Care (Barking and Dagenham),Home Care - Private Contractors Payment,108.15,0,COMMERCIAL SUPPLIER
01-02-2023,Adults & Health,Bluebird Care (Barking and Dagenham),Daycare - Private Contractors Payment,61.8,0,COMMERCIAL SUPPLIER
01-02-2023,Adults & Health,Bluebird Care (Barking and Dagenham),Home Care - Private Contractors Payment,108.15,0,COMMERCIAL SUPPLIER
01-02-2023,Adults & Health,Bluebird Care (Barking and Dagenham),Daycare - Private Contractors Payment,61.8,0,COMMERCIAL SUPPLIER
01-02-2023,Adults & Health,Bluebird Care (Barking and Dagenham),Home Care - Private Contractors Payment,108.15,0,COMMERCIAL SUPPLIER
01-02-2023,Adults & Health,Bluebird Care (Barking and Dagenham),Daycare - Private Contractors Payment,61.8,0,COMMERCIAL SUPPLIER
01-02-2023,Adults & Health,Bluebird Care (Barking and Dagenham),Home Care - Private Contractors Payment,108.15,0,COMMERCIAL SUPPLIER
01-02-2023,Adults & Health,Bluebird Care (Barking and Dagenham),Daycare - Private Contractors Payment,61.8,0,COMMERCIAL SUPPLIER
01-02-2023,Adults & Health,Bluebird Care (Barking and Dagenham),Home Care - Private Contractors Payment,108.15,0,COMMERCIAL SUPPLIER
01-02-2023,Adults & Health,Bluebird Care (Barking and Dagenham),Daycare - Private Contractors Payment,61.8,0,COMMERCIAL SUPPLIER
01-02-2023,Adults & Health,Bluebird Care (Barking and Dagenham),Home Care - Private Contractors Payment,108.15,0,COMMERCIAL SUPPLIER
01-02-2023,Adults & Health,Bluebird Care (Barking and Dagenham),Daycare - Private Contractors Payment,61.8,0,COMMERCIAL SUPPLIER
01-02-2023,Adults & Health,Bluebird Care (Barking and Dagenham),Home Care - Private Contractors Payment,108.15,0,COMMERCIAL SUPPLIER
01-02-2023,Adults & Health,Bluebird Care (Barking and Dagenham),Daycare - Private Contractors Payment,61.8,0,COMMERCIAL SUPPLIER
01-02-2023,Adults & Health,Bluebird Care (Barking and Dagenham),Home Care - Private Contractors Payment,108.15,0,COMMERCIAL SUPPLIER
01-02-2023,Adults & Health,Bluebird Care (Barking and Dagenham),Daycare - Private Contractors Payment,61.8,0,COMMERCIAL SUPPLIER
01-02-2023,Adults & Health,Bluebird Care (Barking and Dagenham),Home Care - Private Contractors Payment,108.15,0,COMMERCIAL SUPPLIER
01-02-2023,Adults & Health,Bluebird Care (Barking and Dagenham),Daycare - Private Contractors Payment,61.8,0,COMMERCIAL SUPPLIER
01-02-2023,Adults & Health,Bluebird Care (Barking and Dagenham),Home Care - Private Contractors Payment,108.15,0,COMMERCIAL SUPPLIER
01-02-2023,Adults & Health,Bluebird Care (Barking and Dagenham),Daycare - Private Contractors Payment,61.8,0,COMMERCIAL SUPPLIER
01-02-2023,Adults & Health,Bluebird Care (Barking and Dagenham),Home Care - Private Contractors Payment,108.15,0,COMMERCIAL SUPPLIER
01-02-2023,Adults & Health,Bluebird Care (Barking and Dagenham),Daycare - Private Contractors Payment,61.8,0,COMMERCIAL SUPPLIER
01-02-2023,Adults & Health,Bluebird Care (Barking and Dagenham),Home Care - Private Contractors Payment,108.15,0,COMMERCIAL SUPPLIER
01-02-2023,Adults & Health,Bluebird Care (Barking and Dagenham),Daycare - Private Contractors Payment,61.8,0,COMMERCIAL SUPPLIER
01-02-2023,Adults & Health,Bluebird Care (Barking and Dagenham),Home Care - Private Contractors Payment,108.15,0,COMMERCIAL SUPPLIER
01-02-2023,Adults & Health,Bluebird Care (Barking and Dagenham),Daycare - Private Contractors Payment,61.8,0,COMMERCIAL SUPPLIER
01-02-2023,Adults & Health,Bluebird Care (Barking and Dagenham),Home Care - Private Contractors Payment,108.15,0,COMMERCIAL SUPPLIER
01-02-2023,Adults & Health,Bluebird Care (Barking and Dagenham),Daycare - Private Contractors Payment,61.8,0,COMMERCIAL SUPPLIER
01-02-2023,Adults & Health,Bluebird Care (Barking and Dagenham),Home Care - Private Contractors Payment,108.15,0,COMMERCIAL SUPPLIER
01-02-2023,Adults & Health,Bluebird Care (Barking and Dagenham),Daycare - Private Contractors Payment,61.8,0,COMMERCIAL SUPPLIER
01-02-2023,Adults & Health,Bluebird Care (Barking and Dagenham),Home Care - Private Contractors Payment,108.15,0,COMMERCIAL SUPPLIER
01-02-2023,Adults & Health,Bluebird Care (Barking and Dagenham),Daycare - Private Contractors Payment,61.8,0,COMMERCIAL SUPPLIER
01-02-2023,Adults & Health,Bluebird Care (Barking and Dagenham),Home Care - Private Contractors Payment,108.15,0,COMMERCIAL SUPPLIER
01-02-2023,Adults & Health,Bluebird Care (Barking and Dagenham),Daycare - Private Contractors Payment,61.8,0,COMMERCIAL SUPPLIER
01-02-2023,Adults & Health,Bluebird Care (Barking and Dagenham),Home Care - Private Contractors Payment,108.15,0,COMMERCIAL SUPPLIER
01-02-2023,Adults & Health,Bluebird Care (Barking and Dagenham),Daycare - Private Contractors Payment,61.8,0,COMMERCIAL SUPPLIER
01-02-2023,Adults & Health,Bluebird Care (Barking and Dagenham),Home Care - Private Contractors Payment,108.15,0,COMMERCIAL SUPPLIER
01-02-2023,Adults & Health,Bluebird Care (Barking and Dagenham),Daycare - Private Contractors Payment,61.8,0,COMMERCIAL SUPPLIER
01-02-2023,Adults & Health,Bluebird Care (Barking and Dagenham),Home Care - Private Contractors Payment,77.25,0,COMMERCIAL SUPPLIER
01-02-2023,Adults & Health,Bluebird Care (Barking and Dagenham),Home Care - Private Contractors Payment,1027.65,0,COMMERCIAL SUPPLIER
01-02-2023,Adults & Health,Bluebird Care (Barking and Dagenham),Daycare - Private Contractors Payment,61.8,0,COMMERCIAL SUPPLIER
01-02-2023,Adults & Health,Bluebird Care (Barking and Dagenham),Home Care - Private Contractors Payment,108.15,0,COMMERCIAL SUPPLIER
01-02-2023,Adults & Health,Bluebird Care (Barking and Dagenham),Daycare - Private Contractors Payment,61.8,0,COMMERCIAL SUPPLIER
01-02-2023,Adults & Health,Bluebird Care (Barking and Dagenham),Home Care - Private Contractors Payment,108.15,0,COMMERCIAL SUPPLIER
01-02-2023,Adults & Health,Bluebird Care (Barking and Dagenham),Daycare - Private Contractors Payment,61.8,0,COMMERCIAL SUPPLIER
01-02-2023,Adults & Health,Bluebird Care (Barking and Dagenham),Home Care - Private Contractors Payment,108.15,0,COMMERCIAL SUPPLIER
01-02-2023,Adults & Health,Bluebird Care (Barking and Dagenham),Home Care - Private Contractors Payment,108.15,0,COMMERCIAL SUPPLIER
01-02-2023,Adults & Health,Bluebird Care (Barking and Dagenham),Home Care - Private Contractors Payment,108.15,0,COMMERCIAL SUPPLIER
01-02-2023,Adults & Health,Bluebird Care (Barking and Dagenham),Daycare - Private Contractors Payment,61.8,0,COMMERCIAL SUPPLIER
01-02-2023,Adults & Health,Bluebird Care (Barking and Dagenham),Daycare - Private Contractors Payment,61.8,0,COMMERCIAL SUPPLIER
01-02-2023,Adults & Health,Bluebird Care (Barking and Dagenham),Home Care - Private Contractors Payment,108.15,0,COMMERCIAL SUPPLIER
01-02-2023,Adults & Health,Bluebird Care (Barking and Dagenham),Daycare - Private Contractors Payment,61.8,0,COMMERCIAL SUPPLIER
01-02-2023,Adults & Health,Bluebird Care (Barking and Dagenham),Home Care - Private Contractors Payment,108.15,0,COMMERCIAL SUPPLIER
01-02-2023,Adults & Health,Bluebird Care (Barking and Dagenham),Daycare - Private Contractors Payment,61.8,0,COMMERCIAL SUPPLIER
01-02-2023,Adults & Health,Bluebird Care (Barking and Dagenham),Home Care - Private Contractors Payment,108.15,0,COMMERCIAL SUPPLIER
01-02-2023,Adults & Health,Bluebird Care (Barking and Dagenham),Daycare - Private Contractors Payment,61.8,0,COMMERCIAL SUPPLIER
01-02-2023,Adults & Health,Bluebird Care (Barking and Dagenham),Home Care - Private Contractors Payment,108.15,0,COMMERCIAL SUPPLIER
01-02-2023,Adults & Health,Bluebird Care (Barking and Dagenham),Daycare - Private Contractors Payment,61.8,0,COMMERCIAL SUPPLIER
01-02-2023,Adults & Health,Bluebird Care (Barking and Dagenham),Home Care - Private Contractors Payment,108.15,0,COMMERCIAL SUPPLIER
01-02-2023,Adults & Health,Bluebird Care (Barking and Dagenham),Daycare - Private Contractors Payment,61.8,0,COMMERCIAL SUPPLIER
01-02-2023,Adults & Health,Bluebird Care (Barking and Dagenham),Home Care - Private Contractors Payment,108.15,0,COMMERCIAL SUPPLIER
01-02-2023,Adults & Health,Bluebird Care (Barking and Dagenham),Home Care - Private Contractors Payment,30.9,0,COMMERCIAL SUPPLIER
01-02-2023,Adults & Health,Bluebird Care (Barking and Dagenham),Daycare - Private Contractors Payment,61.8,0,COMMERCIAL SUPPLIER
01-02-2023,Adults & Health,Bluebird Care (Barking and Dagenham),Home Care - Private Contractors Payment,92.7,0,COMMERCIAL SUPPLIER
01-02-2023,Adults & Health,Bluebird Care (Barking and Dagenham),Daycare - Private Contractors Payment,61.8,0,COMMERCIAL SUPPLIER
01-02-2023,Adults & Health,Bluebird Care (Barking and Dagenham),Home Care - Private Contractors Payment,108.15,0,COMMERCIAL SUPPLIER
01-02-2023,Adults & Health,Bluebird Care (Barking and Dagenham),Daycare - Private Contractors Payment,61.8,0,COMMERCIAL SUPPLIER
01-02-2023,Adults & Health,Bluebird Care (Barking and Dagenham),Home Care - Private Contractors Payment,108.15,0,COMMERCIAL SUPPLIER
01-02-2023,Adults & Health,Bluebird Care (Barking and Dagenham),Daycare - Private Contractors Payment,61.8,0,COMMERCIAL SUPPLIER
01-02-2023,Adults & Health,Bluebird Care (Barking and Dagenham),Home Care - Private Contractors Payment,108.15,0,COMMERCIAL SUPPLIER
01-02-2023,Adults & Health,Bluebird Care (Barking and Dagenham),Daycare - Private Contractors Payment,61.8,0,COMMERCIAL SUPPLIER
01-02-2023,Adults & Health,Bluebird Care (Barking and Dagenham),Home Care - Private Contractors Payment,108.15,0,COMMERCIAL SUPPLIER
01-02-2023,Adults & Health,Bluebird Care (Barking and Dagenham),Daycare - Private Contractors Payment,61.8,0,COMMERCIAL SUPPLIER
01-02-2023,Adults & Health,Bluebird Care (Barking and Dagenham),Home Care - Private Contractors Payment,108.15,0,COMMERCIAL SUPPLIER
01-02-2023,Adults & Health,Bluebird Care (Barking and Dagenham),Daycare - Private Contractors Payment,61.8,0,COMMERCIAL SUPPLIER
01-02-2023,Adults & Health,Bluebird Care (Barking and Dagenham),Home Care - Private Contractors Payment,108.15,0,COMMERCIAL SUPPLIER
01-02-2023,Adults & Health,Bluebird Care (Barking and Dagenham),Home Care - Private Contractors Payment,77.25,0,COMMERCIAL SUPPLIER
01-02-2023,Adults & Health,Bluebird Care (Barking and Dagenham),Home Care - Private Contractors Payment,2201.85,0,COMMERCIAL SUPPLIER
01-02-2023,Adults & Health,Bluebird Care (Barking and Dagenham),Daycare - Private Contractors Payment,61.8,0,COMMERCIAL SUPPLIER
01-02-2023,Adults & Health,Bluebird Care (Barking and Dagenham),Daycare - Private Contractors Payment,61.8,0,COMMERCIAL SUPPLIER
01-02-2023,Children and Young People,Early Start Group Ltd,Private Contractors Payment - Other,60869,0,COMMERCIAL SUPPLIER
01-02-2023,Inclusive Economy & Housing,RIVAL MAINTENANCE GROUP LIMITED,"Maintenance - Equipment, Furniture And Materials",2614.34,0,COMMERCIAL SUPPLIER
01-02-2023,Environment and Sustainable Transport,Basemap Ltd,Private Contractors Payment - Other,3950,0,COMMERCIAL SUPPLIER
01-02-2023,Children and Young People,Theatre Royal Stratford East,Arts And Leisure Costs,10960,0,NON COMMERCIAL SUPPLIER
01-02-2023,Children and Young People,Theatre Royal Stratford East,Arts And Leisure Costs,23119,0,NON COMMERCIAL SUPPLIER
01-02-2023,Children and Young People,Personal Information - Redacted,Legal Fees,667.08,0,LEGAL SERVICES
01-02-2023,Children and Young People,Personal Information - Redacted,Legal Fees,650,0,LEGAL SERVICES
01-02-2023,Adults & Health,C Scarborough,Legal Fees,800,0,COMMERCIAL SUPPLIER
01-02-2023,Inclusive Economy & Housing,Winmore Properties Ltd,Rents Payable,1054,0,COMMERCIAL SUPPLIER
01-02-2023,Inclusive Economy & Housing,Winmore Properties Ltd,Rents Payable,1271,0,COMMERCIAL SUPPLIER
01-02-2023,Inclusive Economy & Housing,Winmore Properties Ltd,Rents Payable,1435.3,0,COMMERCIAL SUPPLIER
01-02-2023,Inclusive Economy & Housing,Winmore Properties Ltd,Rents Payable,1271,0,COMMERCIAL SUPPLIER
01-02-2023,Inclusive Economy & Housing,Winmore Properties Ltd,Rents Payable,1472.5,0,COMMERCIAL SUPPLIER
01-02-2023,Inclusive Economy & Housing,Winmore Properties Ltd,Rents Payable,883.5,0,COMMERCIAL SUPPLIER
01-02-2023,Inclusive Economy & Housing,Winmore Properties Ltd,Rents Payable,883.5,0,COMMERCIAL SUPPLIER
01-02-2023,Inclusive Economy & Housing,Winmore Properties Ltd,Rents Payable,1271,0,COMMERCIAL SUPPLIER
01-02-2023,Inclusive Economy & Housing,Winmore Properties Ltd,Rents Payable,883.5,0,COMMERCIAL SUPPLIER
01-02-2023,Inclusive Economy & Housing,Winmore Properties Ltd,Rents Payable,1550,0,COMMERCIAL SUPPLIER
01-02-2023,Inclusive Economy & Housing,Winmore Properties Ltd,Rents Payable,961,0,COMMERCIAL SUPPLIER
01-02-2023,Inclusive Economy & Housing,Winmore Properties Ltd,Rents Payable,1178,0,COMMERCIAL SUPPLIER
01-02-2023,Inclusive Economy & Housing,Winmore Properties Ltd,Rents Payable,1116,0,COMMERCIAL SUPPLIER
01-02-2023,Inclusive Economy & Housing,Winmore Properties Ltd,Rents Payable,1488,0,COMMERCIAL SUPPLIER
01-02-2023,Inclusive Economy & Housing,Winmore Properties Ltd,Rents Payable,1488,0,COMMERCIAL SUPPLIER
01-02-2023,Inclusive Economy & Housing,Winmore Properties Ltd,Rents Payable,961,0,COMMERCIAL SUPPLIER
01-02-2023,Inclusive Economy & Housing,Winmore Properties Ltd,Rents Payable,1488,0,COMMERCIAL SUPPLIER
01-02-2023,Inclusive Economy & Housing,Winmore Properties Ltd,Rents Payable,1240,0,COMMERCIAL SUPPLIER
01-02-2023,Inclusive Economy & Housing,Winmore Properties Ltd,Rents Payable,1240,0,COMMERCIAL SUPPLIER
01-02-2023,Inclusive Economy & Housing,Winmore Properties Ltd,Rents Payable,1178,0,COMMERCIAL SUPPLIER
01-02-2023,Inclusive Economy & Housing,Winmore Properties Ltd,Rents Payable,1178,0,COMMERCIAL SUPPLIER
01-02-2023,Inclusive Economy & Housing,Winmore Properties Ltd,Rents Payable,1240,0,COMMERCIAL SUPPLIER
01-02-2023,Inclusive Economy & Housing,Winmore Properties Ltd,Rents Payable,1116,0,COMMERCIAL SUPPLIER
01-02-2023,Inclusive Economy & Housing,Winmore Properties Ltd,Rents Payable,837,0,COMMERCIAL SUPPLIER
01-02-2023,Inclusive Economy & Housing,Winmore Properties Ltd,Rents Payable,1550,0,COMMERCIAL SUPPLIER
01-02-2023,Inclusive Economy & Housing,Winmore Properties Ltd,Rents Payable,961,0,COMMERCIAL SUPPLIER
01-02-2023,Inclusive Economy & Housing,Winmore Properties Ltd,Rents Payable,1116,0,COMMERCIAL SUPPLIER
01-02-2023,Inclusive Economy & Housing,Winmore Properties Ltd,Rents Payable,961,0,COMMERCIAL SUPPLIER
01-02-2023,Inclusive Economy & Housing,Winmore Properties Ltd,Rents Payable,1178,0,COMMERCIAL SUPPLIER
01-02-2023,Inclusive Economy & Housing,Winmore Properties Ltd,Rents Payable,1116,0,COMMERCIAL SUPPLIER
01-02-2023,Inclusive Economy & Housing,Winmore Properties Ltd,Rents Payable,1302,0,COMMERCIAL SUPPLIER
01-02-2023,Inclusive Economy & Housing,Winmore Properties Ltd,Rents Payable,1488,0,COMMERCIAL SUPPLIER
01-02-2023,Inclusive Economy & Housing,Winmore Properties Ltd,Rents Payable,1488,0,COMMERCIAL SUPPLIER
01-02-2023,Inclusive Economy & Housing,Winmore Properties Ltd,Rents Payable,1240,0,COMMERCIAL SUPPLIER
01-02-2023,Inclusive Economy & Housing,Winmore Properties Ltd,Rents Payable,-655.5,0,COMMERCIAL SUPPLIER
01-02-2023,Inclusive Economy & Housing,Raymond Williams Ltd,Rents Payable,992,0,COMMERCIAL SUPPLIER
01-02-2023,Inclusive Economy & Housing,Raymond Williams Ltd,Rents Payable,992,0,COMMERCIAL SUPPLIER
01-02-2023,Inclusive Economy & Housing,Raymond Williams Ltd,Rents Payable,1417.32,0,COMMERCIAL SUPPLIER
01-02-2023,Inclusive Economy & Housing,Raymond Williams Ltd,Rents Payable,775,0,COMMERCIAL SUPPLIER
01-02-2023,Inclusive Economy & Housing,Raymond Williams Ltd,Rents Payable,992,0,COMMERCIAL SUPPLIER
01-02-2023,Inclusive Economy & Housing,Lodgistics Estates,Rents Payable,837,0,COMMERCIAL SUPPLIER
01-02-2023,Inclusive Economy & Housing,Lodgistics Estates,Rents Payable,837,0,COMMERCIAL SUPPLIER
01-02-2023,Inclusive Economy & Housing,Thomas Patrick Properties,Rents Payable,1364,0,COMMERCIAL SUPPLIER
01-02-2023,Inclusive Economy & Housing,Thomas Patrick Properties,Rents Payable,1519,0,COMMERCIAL SUPPLIER
01-02-2023,Inclusive Economy & Housing,Winmore Properties Ltd,Rents Payable,1860,0,COMMERCIAL SUPPLIER
01-02-2023,Inclusive Economy & Housing,Winmore Properties Ltd,Rents Payable,775,0,COMMERCIAL SUPPLIER
01-02-2023,Inclusive Economy & Housing,Winmore Properties Ltd,Rents Payable,1771.65,0,COMMERCIAL SUPPLIER
01-02-2023,Inclusive Economy & Housing,Winmore Properties Ltd,Rents Payable,883.5,0,COMMERCIAL SUPPLIER
01-02-2023,Inclusive Economy & Housing,Winmore Properties Ltd,Rents Payable,1860,0,COMMERCIAL SUPPLIER
01-02-2023,Inclusive Economy & Housing,Winmore Properties Ltd,Rents Payable,1472.5,0,COMMERCIAL SUPPLIER
01-02-2023,Inclusive Economy & Housing,Winmore Properties Ltd,Rents Payable,883.5,0,COMMERCIAL SUPPLIER
01-02-2023,Inclusive Economy & Housing,Winmore Properties Ltd,Rents Payable,1705,0,COMMERCIAL SUPPLIER
01-02-2023,Inclusive Economy & Housing,Winmore Properties Ltd,Rents Payable,883.5,0,COMMERCIAL SUPPLIER
01-02-2023,Inclusive Economy & Housing,Winmore Properties Ltd,Rents Payable,1771.65,0,COMMERCIAL SUPPLIER
01-02-2023,Inclusive Economy & Housing,Winmore Properties Ltd,Rents Payable,1472.5,0,COMMERCIAL SUPPLIER
01-02-2023,Inclusive Economy & Housing,Winmore Properties Ltd,Rents Payable,1054,0,COMMERCIAL SUPPLIER
01-02-2023,Inclusive Economy & Housing,Winmore Properties Ltd,Rents Payable,1054,0,COMMERCIAL SUPPLIER
01-02-2023,Inclusive Economy & Housing,Winmore Properties Ltd,Rents Payable,1054,0,COMMERCIAL SUPPLIER
01-02-2023,Inclusive Economy & Housing,Winmore Properties Ltd,Rents Payable,868,0,COMMERCIAL SUPPLIER
01-02-2023,Inclusive Economy & Housing,Winmore Properties Ltd,Rents Payable,1054,0,COMMERCIAL SUPPLIER
01-02-2023,Inclusive Economy & Housing,Winmore Properties Ltd,Rents Payable,1472.5,0,COMMERCIAL SUPPLIER
01-02-2023,Inclusive Economy & Housing,Winmore Properties Ltd,Rents Payable,1425,0,COMMERCIAL SUPPLIER
01-02-2023,Inclusive Economy & Housing,Winmore Properties Ltd,Rents Payable,1417.32,0,COMMERCIAL SUPPLIER
01-02-2023,Inclusive Economy & Housing,Winmore Properties Ltd,Rents Payable,883.5,0,COMMERCIAL SUPPLIER
01-02-2023,Inclusive Economy & Housing,Winmore Properties Ltd,Rents Payable,1395,0,COMMERCIAL SUPPLIER
01-02-2023,Inclusive Economy & Housing,Winmore Properties Ltd,Rents Payable,1417.32,0,COMMERCIAL SUPPLIER
01-02-2023,Inclusive Economy & Housing,Winmore Properties Ltd,Rents Payable,1302,0,COMMERCIAL SUPPLIER
01-02-2023,Inclusive Economy & Housing,Winmore Properties Ltd,Rents Payable,883.5,0,COMMERCIAL SUPPLIER
01-02-2023,Inclusive Economy & Housing,Winmore Properties Ltd,Rents Payable,1771.65,0,COMMERCIAL SUPPLIER
01-02-2023,Inclusive Economy & Housing,Winmore Properties Ltd,Rents Payable,1054,0,COMMERCIAL SUPPLIER
01-02-2023,Inclusive Economy & Housing,Winmore Properties Ltd,Rents Payable,1771.65,0,COMMERCIAL SUPPLIER
01-02-2023,Inclusive Economy & Housing,Winmore Properties Ltd,Rents Payable,1054,0,COMMERCIAL SUPPLIER
01-02-2023,Inclusive Economy & Housing,Winmore Properties Ltd,Rents Payable,1771.65,0,COMMERCIAL SUPPLIER
01-02-2023,Inclusive Economy & Housing,Winmore Properties Ltd,Rents Payable,883.5,0,COMMERCIAL SUPPLIER
01-02-2023,Inclusive Economy & Housing,Winmore Properties Ltd,Rents Payable,1860,0,COMMERCIAL SUPPLIER
01-02-2023,Inclusive Economy & Housing,Winmore Properties Ltd,Rents Payable,1417.32,0,COMMERCIAL SUPPLIER
01-02-2023,Inclusive Economy & Housing,Winmore Properties Ltd,Rents Payable,1472.5,0,COMMERCIAL SUPPLIER
01-02-2023,Inclusive Economy & Housing,Winmore Properties Ltd,Rents Payable,1705,0,COMMERCIAL SUPPLIER
01-02-2023,Inclusive Economy & Housing,Winmore Properties Ltd,Rents Payable,1395,0,COMMERCIAL SUPPLIER
01-02-2023,Inclusive Economy & Housing,Winmore Properties Ltd,Rents Payable,1550,0,COMMERCIAL SUPPLIER
01-02-2023,Inclusive Economy & Housing,Winmore Properties Ltd,Rents Payable,1705,0,COMMERCIAL SUPPLIER
01-02-2023,Inclusive Economy & Housing,Winmore Properties Ltd,Rents Payable,1240,0,COMMERCIAL SUPPLIER
01-02-2023,Inclusive Economy & Housing,Winmore Properties Ltd,Rents Payable,1550,0,COMMERCIAL SUPPLIER
01-02-2023,Inclusive Economy & Housing,Winmore Properties Ltd,Rents Payable,1550,0,COMMERCIAL SUPPLIER
01-02-2023,Inclusive Economy & Housing,Winmore Properties Ltd,Rents Payable,1705,0,COMMERCIAL SUPPLIER
01-02-2023,Inclusive Economy & Housing,Winmore Properties Ltd,Rents Payable,1550,0,COMMERCIAL SUPPLIER
01-02-2023,Inclusive Economy & Housing,Winmore Properties Ltd,Rents Payable,1550,0,COMMERCIAL SUPPLIER
01-02-2023,Inclusive Economy & Housing,Winmore Properties Ltd,Rents Payable,1550,0,COMMERCIAL SUPPLIER
01-02-2023,Inclusive Economy & Housing,Winmore Properties Ltd,Rents Payable,1705,0,COMMERCIAL SUPPLIER
01-02-2023,Inclusive Economy & Housing,Winmore Properties Ltd,Rents Payable,1240,0,COMMERCIAL SUPPLIER
01-02-2023,Inclusive Economy & Housing,Winmore Properties Ltd,Rents Payable,1860,0,COMMERCIAL SUPPLIER
01-02-2023,Inclusive Economy & Housing,Winmore Properties Ltd,Rents Payable,1054,0,COMMERCIAL SUPPLIER
01-02-2023,Inclusive Economy & Housing,Winmore Properties Ltd,Rents Payable,1395,0,COMMERCIAL SUPPLIER
01-02-2023,Inclusive Economy & Housing,Winmore Properties Ltd,Rents Payable,1705,0,COMMERCIAL SUPPLIER
01-02-2023,Inclusive Economy & Housing,Winmore Properties Ltd,Rents Payable,1395,0,COMMERCIAL SUPPLIER
01-02-2023,Inclusive Economy & Housing,Winmore Properties Ltd,Rents Payable,880,0,COMMERCIAL SUPPLIER
01-02-2023,Inclusive Economy & Housing,Winmore Properties Ltd,Rents Payable,1860,0,COMMERCIAL SUPPLIER
01-02-2023,Inclusive Economy & Housing,Winmore Properties Ltd,Rents Payable,1023,0,COMMERCIAL SUPPLIER
01-02-2023,Inclusive Economy & Housing,Winmore Properties Ltd,Rents Payable,1178,0,COMMERCIAL SUPPLIER
01-02-2023,Inclusive Economy & Housing,Raymond Williams Ltd,Rents Payable,1417.32,0,COMMERCIAL SUPPLIER
01-02-2023,Inclusive Economy & Housing,Raymond Williams Ltd,Rents Payable,1472.5,0,COMMERCIAL SUPPLIER
01-02-2023,Inclusive Economy & Housing,Raymond Williams Ltd,Rents Payable,1116,0,COMMERCIAL SUPPLIER
01-02-2023,Inclusive Economy & Housing,Raymond Williams Ltd,Rents Payable,1860,0,COMMERCIAL SUPPLIER
01-02-2023,Inclusive Economy & Housing,Raymond Williams Ltd,Rents Payable,1472.5,0,COMMERCIAL SUPPLIER
01-02-2023,Inclusive Economy & Housing,Raymond Williams Ltd,Rents Payable,1472.5,0,COMMERCIAL SUPPLIER
01-02-2023,Inclusive Economy & Housing,Raymond Williams Ltd,Rents Payable,1417.32,0,COMMERCIAL SUPPLIER
01-02-2023,Inclusive Economy & Housing,Raymond Williams Ltd,Rents Payable,1417.32,0,COMMERCIAL SUPPLIER
01-02-2023,Inclusive Economy & Housing,Raymond Williams Ltd,Rents Payable,1417.32,0,COMMERCIAL SUPPLIER
01-02-2023,Inclusive Economy & Housing,Raymond Williams Ltd,Rents Payable,1417.32,0,COMMERCIAL SUPPLIER
01-02-2023,Inclusive Economy & Housing,Raymond Williams Ltd,Rents Payable,1417.32,0,COMMERCIAL SUPPLIER
01-02-2023,Inclusive Economy & Housing,Raymond Williams Ltd,Rents Payable,798,0,COMMERCIAL SUPPLIER
01-02-2023,Inclusive Economy & Housing,Raymond Williams Ltd,Rents Payable,1116,0,COMMERCIAL SUPPLIER
01-02-2023,Inclusive Economy & Housing,Raymond Williams Ltd,Rents Payable,1660.98,0,COMMERCIAL SUPPLIER
01-02-2023,Inclusive Economy & Housing,Raymond Williams Ltd,Rents Payable,992,0,COMMERCIAL SUPPLIER
01-02-2023,Inclusive Economy & Housing,Raymond Williams Ltd,Rents Payable,1417.32,0,COMMERCIAL SUPPLIER
01-02-2023,Inclusive Economy & Housing,Raymond Williams Ltd,Rents Payable,1705,0,COMMERCIAL SUPPLIER
01-02-2023,Inclusive Economy & Housing,Raymond Williams Ltd,Rents Payable,868,0,COMMERCIAL SUPPLIER
01-02-2023,Inclusive Economy & Housing,Raymond Williams Ltd,Rents Payable,992,0,COMMERCIAL SUPPLIER
01-02-2023,Inclusive Economy & Housing,Raymond Williams Ltd,Rents Payable,1660.98,0,COMMERCIAL SUPPLIER
01-02-2023,Inclusive Economy & Housing,Raymond Williams Ltd,Rents Payable,750,0,COMMERCIAL SUPPLIER
01-02-2023,Inclusive Economy & Housing,Raymond Williams Ltd,Rents Payable,992,0,COMMERCIAL SUPPLIER
01-02-2023,Inclusive Economy & Housing,Raymond Williams Ltd,Rents Payable,616,0,COMMERCIAL SUPPLIER
01-02-2023,Inclusive Economy & Housing,Raymond Williams Ltd,Rents Payable,1116,0,COMMERCIAL SUPPLIER
01-02-2023,Inclusive Economy & Housing,Raymond Williams Ltd,Rents Payable,960,0,COMMERCIAL SUPPLIER
01-02-2023,Inclusive Economy & Housing,Raymond Williams Ltd,Rents Payable,1472.5,0,COMMERCIAL SUPPLIER
01-02-2023,Inclusive Economy & Housing,Raymond Williams Ltd,Rents Payable,1472.5,0,COMMERCIAL SUPPLIER
01-02-2023,Inclusive Economy & Housing,Raymond Williams Ltd,Rents Payable,1417.32,0,COMMERCIAL SUPPLIER
01-02-2023,Inclusive Economy & Housing,Raymond Williams Ltd,Rents Payable,992,0,COMMERCIAL SUPPLIER
01-02-2023,Inclusive Economy & Housing,Raymond Williams Ltd,Rents Payable,775,0,COMMERCIAL SUPPLIER
01-02-2023,Inclusive Economy & Housing,Raymond Williams Ltd,Rents Payable,1178,0,COMMERCIAL SUPPLIER
01-02-2023,Inclusive Economy & Housing,Raymond Williams Ltd,Rents Payable,992,0,COMMERCIAL SUPPLIER
01-02-2023,Inclusive Economy & Housing,Raymond Williams Ltd,Rents Payable,992,0,COMMERCIAL SUPPLIER
01-02-2023,Inclusive Economy & Housing,Raymond Williams Ltd,Rents Payable,1178,0,COMMERCIAL SUPPLIER
01-02-2023,Inclusive Economy & Housing,Raymond Williams Ltd,Rents Payable,992,0,COMMERCIAL SUPPLIER
01-02-2023,Inclusive Economy & Housing,Raymond Williams Ltd,Rents Payable,992,0,COMMERCIAL SUPPLIER
01-02-2023,Inclusive Economy & Housing,Raymond Williams Ltd,Rents Payable,992,0,COMMERCIAL SUPPLIER
01-02-2023,Inclusive Economy & Housing,Raymond Williams Ltd,Rents Payable,646,0,COMMERCIAL SUPPLIER
01-02-2023,Inclusive Economy & Housing,Raymond Williams Ltd,Rents Payable,992,0,COMMERCIAL SUPPLIER
01-02-2023,Inclusive Economy & Housing,Raymond Williams Ltd,Rents Payable,868,0,COMMERCIAL SUPPLIER
01-02-2023,Inclusive Economy & Housing,Raymond Williams Ltd,Rents Payable,960,0,COMMERCIAL SUPPLIER
01-02-2023,Inclusive Economy & Housing,Raymond Williams Ltd,Rents Payable,775,0,COMMERCIAL SUPPLIER
01-02-2023,Inclusive Economy & Housing,Raymond Williams Ltd,Rents Payable,992,0,COMMERCIAL SUPPLIER
01-02-2023,Inclusive Economy & Housing,Raymond Williams Ltd,Rents Payable,992,0,COMMERCIAL SUPPLIER
01-02-2023,Inclusive Economy & Housing,Raymond Williams Ltd,Rents Payable,775,0,COMMERCIAL SUPPLIER
01-02-2023,Inclusive Economy & Housing,Raymond Williams Ltd,Rents Payable,992,0,COMMERCIAL SUPPLIER
01-02-2023,Inclusive Economy & Housing,Raymond Williams Ltd,Rents Payable,992,0,COMMERCIAL SUPPLIER
01-02-2023,Inclusive Economy & Housing,Raymond Williams Ltd,Rents Payable,992,0,COMMERCIAL SUPPLIER
01-02-2023,Inclusive Economy & Housing,Raymond Williams Ltd,Rents Payable,992,0,COMMERCIAL SUPPLIER
01-02-2023,Inclusive Economy & Housing,Raymond Williams Ltd,Rents Payable,775,0,COMMERCIAL SUPPLIER
01-02-2023,Inclusive Economy & Housing,Raymond Williams Ltd,Rents Payable,775,0,COMMERCIAL SUPPLIER
01-02-2023,Inclusive Economy & Housing,Raymond Williams Ltd,Rents Payable,992,0,COMMERCIAL SUPPLIER
01-02-2023,Inclusive Economy & Housing,Raymond Williams Ltd,Rents Payable,992,0,COMMERCIAL SUPPLIER
01-02-2023,Inclusive Economy & Housing,Raymond Williams Ltd,Rents Payable,992,0,COMMERCIAL SUPPLIER
01-02-2023,Inclusive Economy & Housing,Raymond Williams Ltd,Rents Payable,992,0,COMMERCIAL SUPPLIER
01-02-2023,Inclusive Economy & Housing,Raymond Williams Ltd,Rents Payable,1178,0,COMMERCIAL SUPPLIER
01-02-2023,Inclusive Economy & Housing,Raymond Williams Ltd,Rents Payable,992,0,COMMERCIAL SUPPLIER
01-02-2023,Inclusive Economy & Housing,Raymond Williams Ltd,Rents Payable,1472.5,0,COMMERCIAL SUPPLIER
01-02-2023,Inclusive Economy & Housing,Raymond Williams Ltd,Rents Payable,1178,0,COMMERCIAL SUPPLIER
01-02-2023,Inclusive Economy & Housing,Raymond Williams Ltd,Rents Payable,775,0,COMMERCIAL SUPPLIER
01-02-2023,Inclusive Economy & Housing,Raymond Williams Ltd,Rents Payable,992,0,COMMERCIAL SUPPLIER
01-02-2023,Inclusive Economy & Housing,Raymond Williams Ltd,Rents Payable,775,0,COMMERCIAL SUPPLIER
01-02-2023,Inclusive Economy & Housing,Raymond Williams Ltd,Rents Payable,1178,0,COMMERCIAL SUPPLIER
01-02-2023,Inclusive Economy & Housing,Raymond Williams Ltd,Rents Payable,192,0,COMMERCIAL SUPPLIER
01-02-2023,Inclusive Economy & Housing,Raymond Williams Ltd,Rents Payable,704,0,COMMERCIAL SUPPLIER
01-02-2023,Inclusive Economy & Housing,Raymond Williams Ltd,Rents Payable,240,0,COMMERCIAL SUPPLIER
01-02-2023,Inclusive Economy & Housing,Raymond Williams Ltd,Rents Payable,620,0,COMMERCIAL SUPPLIER
01-02-2023,Inclusive Economy & Housing,Raymond Williams Ltd,Rents Payable,715,0,COMMERCIAL SUPPLIER
01-02-2023,Inclusive Economy & Housing,Raymond Williams Ltd,Rents Payable,-736,0,COMMERCIAL SUPPLIER
01-02-2023,Inclusive Economy & Housing,Raymond Williams Ltd,Rents Payable,-992,0,COMMERCIAL SUPPLIER
01-02-2023,Inclusive Economy & Housing,Raymond Williams Ltd,Rents Payable,425,0,COMMERCIAL SUPPLIER
01-02-2023,Inclusive Economy & Housing,Raymond Williams Ltd,Rents Payable,775,0,COMMERCIAL SUPPLIER
01-02-2023,Inclusive Economy & Housing,Raymond Williams Ltd,Rents Payable,525,0,COMMERCIAL SUPPLIER
01-02-2023,Inclusive Economy & Housing,Raymond Williams Ltd,Rents Payable,992,0,COMMERCIAL SUPPLIER
01-02-2023,Inclusive Economy & Housing,Raymond Williams Ltd,Rents Payable,775,0,COMMERCIAL SUPPLIER
01-02-2023,Inclusive Economy & Housing,Raymond Williams Ltd,Rents Payable,1581,0,COMMERCIAL SUPPLIER
01-02-2023,Inclusive Economy & Housing,Raymond Williams Ltd,Rents Payable,1581,0,COMMERCIAL SUPPLIER
01-02-2023,Inclusive Economy & Housing,Raymond Williams Ltd,Rents Payable,1302,0,COMMERCIAL SUPPLIER
01-02-2023,Inclusive Economy & Housing,Raymond Williams Ltd,Rents Payable,1581,0,COMMERCIAL SUPPLIER
01-02-2023,Inclusive Economy & Housing,Raymond Williams Ltd,Rents Payable,1472.5,0,COMMERCIAL SUPPLIER
01-02-2023,Inclusive Economy & Housing,Raymond Williams Ltd,Rents Payable,992,0,COMMERCIAL SUPPLIER
01-02-2023,Inclusive Economy & Housing,Raymond Williams Ltd,Rents Payable,1581,0,COMMERCIAL SUPPLIER
01-02-2023,Inclusive Economy & Housing,Raymond Williams Ltd,Rents Payable,1417.32,0,COMMERCIAL SUPPLIER
01-02-2023,Inclusive Economy & Housing,Raymond Williams Ltd,Rents Payable,1178,0,COMMERCIAL SUPPLIER
01-02-2023,Inclusive Economy & Housing,Raymond Williams Ltd,Rents Payable,1472.5,0,COMMERCIAL SUPPLIER
01-02-2023,Inclusive Economy & Housing,Raymond Williams Ltd,Rents Payable,1660.98,0,COMMERCIAL SUPPLIER
01-02-2023,Inclusive Economy & Housing,Raymond Williams Ltd,Rents Payable,1417.32,0,COMMERCIAL SUPPLIER
01-02-2023,Inclusive Economy & Housing,Raymond Williams Ltd,Rents Payable,1860,0,COMMERCIAL SUPPLIER
01-02-2023,Inclusive Economy & Housing,Raymond Williams Ltd,Rents Payable,1674,0,COMMERCIAL SUPPLIER
01-02-2023,Inclusive Economy & Housing,Raymond Williams Ltd,Rents Payable,1860,0,COMMERCIAL SUPPLIER
01-02-2023,Inclusive Economy & Housing,Raymond Williams Ltd,Rents Payable,1472.5,0,COMMERCIAL SUPPLIER
01-02-2023,Inclusive Economy & Housing,Raymond Williams Ltd,Rents Payable,1333,0,COMMERCIAL SUPPLIER
01-02-2023,Inclusive Economy & Housing,Raymond Williams Ltd,Rents Payable,550,0,COMMERCIAL SUPPLIER
01-02-2023,Inclusive Economy & Housing,Raymond Williams Ltd,Rents Payable,1472.5,0,COMMERCIAL SUPPLIER
01-02-2023,Inclusive Economy & Housing,Raymond Williams Ltd,Rents Payable,1457,0,COMMERCIAL SUPPLIER
01-02-2023,Inclusive Economy & Housing,Raymond Williams Ltd,Rents Payable,1472.5,0,COMMERCIAL SUPPLIER
01-02-2023,Inclusive Economy & Housing,Raymond Williams Ltd,Rents Payable,1472.5,0,COMMERCIAL SUPPLIER
01-02-2023,Inclusive Economy & Housing,Raymond Williams Ltd,Rents Payable,992,0,COMMERCIAL SUPPLIER
01-02-2023,Inclusive Economy & Housing,Raymond Williams Ltd,Rents Payable,1417.32,0,COMMERCIAL SUPPLIER
01-02-2023,Inclusive Economy & Housing,Raymond Williams Ltd,Rents Payable,1581,0,COMMERCIAL SUPPLIER
01-02-2023,Inclusive Economy & Housing,Raymond Williams Ltd,Rents Payable,1860,0,COMMERCIAL SUPPLIER
01-02-2023,Inclusive Economy & Housing,Raymond Williams Ltd,Rents Payable,1581,0,COMMERCIAL SUPPLIER
01-02-2023,Inclusive Economy & Housing,Raymond Williams Ltd,Rents Payable,1860,0,COMMERCIAL SUPPLIER
01-02-2023,Inclusive Economy & Housing,Raymond Williams Ltd,Rents Payable,1860,0,COMMERCIAL SUPPLIER
01-02-2023,Inclusive Economy & Housing,Raymond Williams Ltd,Rents Payable,1472.5,0,COMMERCIAL SUPPLIER
01-02-2023,Inclusive Economy & Housing,Raymond Williams Ltd,Rents Payable,1417.32,0,COMMERCIAL SUPPLIER
01-02-2023,Inclusive Economy & Housing,Raymond Williams Ltd,Rents Payable,1705,0,COMMERCIAL SUPPLIER
01-02-2023,Inclusive Economy & Housing,Raymond Williams Ltd,Rents Payable,1472.5,0,COMMERCIAL SUPPLIER
01-02-2023,Inclusive Economy & Housing,Raymond Williams Ltd,Rents Payable,1660.98,0,COMMERCIAL SUPPLIER
01-02-2023,Inclusive Economy & Housing,Raymond Williams Ltd,Rents Payable,992,0,COMMERCIAL SUPPLIER
01-02-2023,Inclusive Economy & Housing,Raymond Williams Ltd,Rents Payable,1581,0,COMMERCIAL SUPPLIER
01-02-2023,Inclusive Economy & Housing,Raymond Williams Ltd,Rents Payable,992,0,COMMERCIAL SUPPLIER
01-02-2023,Inclusive Economy & Housing,Raymond Williams Ltd,Rents Payable,992,0,COMMERCIAL SUPPLIER
01-02-2023,Inclusive Economy & Housing,Raymond Williams Ltd,Rents Payable,1472.5,0,COMMERCIAL SUPPLIER
01-02-2023,Inclusive Economy & Housing,Raymond Williams Ltd,Rents Payable,1705,0,COMMERCIAL SUPPLIER
01-02-2023,Inclusive Economy & Housing,Raymond Williams Ltd,Rents Payable,992,0,COMMERCIAL SUPPLIER
01-02-2023,Inclusive Economy & Housing,Raymond Williams Ltd,Rents Payable,1417.32,0,COMMERCIAL SUPPLIER
01-02-2023,Inclusive Economy & Housing,Raymond Williams Ltd,Rents Payable,1472.5,0,COMMERCIAL SUPPLIER
01-02-2023,Inclusive Economy & Housing,Raymond Williams Ltd,Rents Payable,1705,0,COMMERCIAL SUPPLIER
01-02-2023,Inclusive Economy & Housing,Raymond Williams Ltd,Rents Payable,1660.98,0,COMMERCIAL SUPPLIER
01-02-2023,Inclusive Economy & Housing,Raymond Williams Ltd,Rents Payable,1705,0,COMMERCIAL SUPPLIER
01-02-2023,Inclusive Economy & Housing,Raymond Williams Ltd,Rents Payable,775,0,COMMERCIAL SUPPLIER
01-02-2023,Inclusive Economy & Housing,Raymond Williams Ltd,Rents Payable,1472.5,0,COMMERCIAL SUPPLIER
01-02-2023,Inclusive Economy & Housing,Raymond Williams Ltd,Rents Payable,775,0,COMMERCIAL SUPPLIER
01-02-2023,Inclusive Economy & Housing,Raymond Williams Ltd,Rents Payable,1705,0,COMMERCIAL SUPPLIER
01-02-2023,Inclusive Economy & Housing,Raymond Williams Ltd,Rents Payable,1417.32,0,COMMERCIAL SUPPLIER
01-02-2023,Inclusive Economy & Housing,Raymond Williams Ltd,Rents Payable,1472.5,0,COMMERCIAL SUPPLIER
01-02-2023,Inclusive Economy & Housing,Raymond Williams Ltd,Rents Payable,1417.32,0,COMMERCIAL SUPPLIER
01-02-2023,Inclusive Economy & Housing,Sandra Davidson Estate Agents,Rents Payable,777.24,0,INDIVIDUALS
01-02-2023,Inclusive Economy & Housing,Sandra Davidson Estate Agents,Rents Payable,1771.65,0,INDIVIDUALS
01-02-2023,Inclusive Economy & Housing,Sandra Davidson Estate Agents,Rents Payable,777.24,0,INDIVIDUALS
01-02-2023,Inclusive Economy & Housing,Sandra Davidson Estate Agents,Rents Payable,1472.5,0,INDIVIDUALS
01-02-2023,Inclusive Economy & Housing,Sandra Davidson Estate Agents,Rents Payable,1705,0,INDIVIDUALS
01-02-2023,Inclusive Economy & Housing,Sandra Davidson Estate Agents,Rents Payable,1472.5,0,INDIVIDUALS
01-02-2023,Inclusive Economy & Housing,Sandra Davidson Estate Agents,Rents Payable,1116,0,INDIVIDUALS
01-02-2023,Inclusive Economy & Housing,Sandra Davidson Estate Agents,Rents Payable,1674,0,INDIVIDUALS
01-02-2023,Inclusive Economy & Housing,Sandra Davidson Estate Agents,Rents Payable,1333,0,INDIVIDUALS
01-02-2023,Inclusive Economy & Housing,Sandra Davidson Estate Agents,Rents Payable,868,0,INDIVIDUALS
01-02-2023,Inclusive Economy & Housing,Sandra Davidson Estate Agents,Rents Payable,1660.98,0,INDIVIDUALS
01-02-2023,Inclusive Economy & Housing,Sandra Davidson Estate Agents,Rents Payable,1771.65,0,INDIVIDUALS
01-02-2023,Inclusive Economy & Housing,Sandra Davidson Estate Agents,Rents Payable,1660.98,0,INDIVIDUALS
01-02-2023,Inclusive Economy & Housing,Sandra Davidson Estate Agents,Rents Payable,1417.32,0,INDIVIDUALS
01-02-2023,Inclusive Economy & Housing,Sandra Davidson Estate Agents,Rents Payable,1417.32,0,INDIVIDUALS
01-02-2023,Inclusive Economy & Housing,Sandra Davidson Estate Agents,Rents Payable,1085,0,INDIVIDUALS
01-02-2023,Inclusive Economy & Housing,Sandra Davidson Estate Agents,Rents Payable,1771.65,0,INDIVIDUALS
01-02-2023,Inclusive Economy & Housing,Sandra Davidson Estate Agents,Rents Payable,1705,0,INDIVIDUALS
01-02-2023,Inclusive Economy & Housing,Sandra Davidson Estate Agents,Rents Payable,1771.65,0,INDIVIDUALS
01-02-2023,Inclusive Economy & Housing,Sandra Davidson Estate Agents,Rents Payable,1860,0,INDIVIDUALS
01-02-2023,Inclusive Economy & Housing,Sandra Davidson Estate Agents,Rents Payable,1472.5,0,INDIVIDUALS
01-02-2023,Inclusive Economy & Housing,Sandra Davidson Estate Agents,Rents Payable,1472.5,0,INDIVIDUALS
01-02-2023,Inclusive Economy & Housing,Sandra Davidson Estate Agents,Rents Payable,91.44,0,INDIVIDUALS
01-02-2023,Inclusive Economy & Housing,Sandra Davidson Estate Agents,Rents Payable,1417.32,0,INDIVIDUALS
01-02-2023,Inclusive Economy & Housing,Sandra Davidson Estate Agents,Rents Payable,1472.5,0,INDIVIDUALS
01-02-2023,Inclusive Economy & Housing,Sandra Davidson Estate Agents,Rents Payable,868,0,INDIVIDUALS
01-02-2023,Inclusive Economy & Housing,Sandra Davidson Estate Agents,Rents Payable,1860,0,INDIVIDUALS
01-02-2023,Inclusive Economy & Housing,Sandra Davidson Estate Agents,Rents Payable,1271,0,INDIVIDUALS
01-02-2023,Inclusive Economy & Housing,Sandra Davidson Estate Agents,Rents Payable,1660.98,0,INDIVIDUALS
01-02-2023,Inclusive Economy & Housing,Sandra Davidson Estate Agents,Rents Payable,1860,0,INDIVIDUALS
01-02-2023,Inclusive Economy & Housing,Sandra Davidson Estate Agents,Rents Payable,1860,0,INDIVIDUALS
01-02-2023,Inclusive Economy & Housing,Sandra Davidson Estate Agents,Rents Payable,775,0,INDIVIDUALS
01-02-2023,Inclusive Economy & Housing,Sandra Davidson Estate Agents,Rents Payable,1417.32,0,INDIVIDUALS
01-02-2023,Inclusive Economy & Housing,Sandra Davidson Estate Agents,Rents Payable,1660.98,0,INDIVIDUALS
01-02-2023,Inclusive Economy & Housing,Sandra Davidson Estate Agents,Rents Payable,1581,0,INDIVIDUALS
01-02-2023,Inclusive Economy & Housing,Sandra Davidson Estate Agents,Rents Payable,1705,0,INDIVIDUALS
01-02-2023,Inclusive Economy & Housing,Sandra Davidson Estate Agents,Rents Payable,1417.32,0,INDIVIDUALS
01-02-2023,Inclusive Economy & Housing,Sandra Davidson Estate Agents,Rents Payable,1472.5,0,INDIVIDUALS
01-02-2023,Inclusive Economy & Housing,Sandra Davidson Estate Agents,Rents Payable,1417.32,0,INDIVIDUALS
01-02-2023,Inclusive Economy & Housing,Sandra Davidson Estate Agents,Rents Payable,1085,0,INDIVIDUALS
01-02-2023,Inclusive Economy & Housing,Telecom Lexus Ltd,Rents Payable,868,0,COMMERCIAL SUPPLIER
01-02-2023,Inclusive Economy & Housing,Telecom Lexus Ltd,Rents Payable,868,0,COMMERCIAL SUPPLIER
01-02-2023,Inclusive Economy & Housing,Telecom Lexus Ltd,Rents Payable,868,0,COMMERCIAL SUPPLIER
01-02-2023,Inclusive Economy & Housing,Telecom Lexus Ltd,Rents Payable,868,0,COMMERCIAL SUPPLIER
01-02-2023,Inclusive Economy & Housing,Telecom Lexus Ltd,Rents Payable,868,0,COMMERCIAL SUPPLIER
01-02-2023,Inclusive Economy & Housing,Telecom Lexus Ltd,Rents Payable,868,0,COMMERCIAL SUPPLIER
01-02-2023,Inclusive Economy & Housing,Telecom Lexus Ltd,Rents Payable,868,0,COMMERCIAL SUPPLIER
01-02-2023,Inclusive Economy & Housing,Telecom Lexus Ltd,Rents Payable,868,0,COMMERCIAL SUPPLIER
01-02-2023,Inclusive Economy & Housing,Telecom Lexus Ltd,Rents Payable,784,0,COMMERCIAL SUPPLIER
01-02-2023,Inclusive Economy & Housing,Telecom Lexus Ltd,Rents Payable,868,0,COMMERCIAL SUPPLIER
01-02-2023,Inclusive Economy & Housing,Telecom Lexus Ltd,Rents Payable,784,0,COMMERCIAL SUPPLIER
01-02-2023,Inclusive Economy & Housing,Telecom Lexus Ltd,Rents Payable,868,0,COMMERCIAL SUPPLIER
01-02-2023,Inclusive Economy & Housing,Telecom Lexus Ltd,Rents Payable,364,0,COMMERCIAL SUPPLIER
01-02-2023,Inclusive Economy & Housing,Telecom Lexus Ltd,Rents Payable,784,0,COMMERCIAL SUPPLIER
01-02-2023,Inclusive Economy & Housing,Telecom Lexus Ltd,Rents Payable,868,0,COMMERCIAL SUPPLIER
01-02-2023,Inclusive Economy & Housing,Raymond Williams Ltd,Rents Payable,868,0,COMMERCIAL SUPPLIER
01-02-2023,Inclusive Economy & Housing,Raymond Williams Ltd,Rents Payable,992,0,COMMERCIAL SUPPLIER
01-02-2023,Inclusive Economy & Housing,Raymond Williams Ltd,Rents Payable,250,0,COMMERCIAL SUPPLIER
01-02-2023,Inclusive Economy & Housing,Raymond Williams Ltd,Rents Payable,775,0,COMMERCIAL SUPPLIER
01-02-2023,Inclusive Economy & Housing,Raymond Williams Ltd,Rents Payable,864,0,COMMERCIAL SUPPLIER
01-02-2023,Inclusive Economy & Housing,Raymond Williams Ltd,Rents Payable,896,0,COMMERCIAL SUPPLIER
01-02-2023,Inclusive Economy & Housing,Raymond Williams Ltd,Rents Payable,352,0,COMMERCIAL SUPPLIER
01-02-2023,Inclusive Economy & Housing,Raymond Williams Ltd,Rents Payable,992,0,COMMERCIAL SUPPLIER
01-02-2023,Inclusive Economy & Housing,Raymond Williams Ltd,Rents Payable,-225,0,COMMERCIAL SUPPLIER
01-02-2023,Inclusive Economy & Housing,LTA Direct Ltd,Rents Payable,1045,0,COMMERCIAL SUPPLIER
01-02-2023,Inclusive Economy & Housing,LTA Direct Ltd,Rents Payable,992,0,COMMERCIAL SUPPLIER
01-02-2023,Inclusive Economy & Housing,LTA Direct Ltd,Rents Payable,992,0,COMMERCIAL SUPPLIER
01-02-2023,Inclusive Economy & Housing,LTA Direct Ltd,Rents Payable,1472.5,0,COMMERCIAL SUPPLIER
01-02-2023,Inclusive Economy & Housing,Aqua Property Limited,Rents Payable,1705,0,COMMERCIAL SUPPLIER
01-02-2023,Inclusive Economy & Housing,Aqua Property Limited,Rents Payable,1660.98,0,COMMERCIAL SUPPLIER
01-02-2023,Inclusive Economy & Housing,N & N Property Management Limited,Rents Payable,1860,0,COMMERCIAL SUPPLIER
01-02-2023,Inclusive Economy & Housing,N & N Property Management Limited,Rents Payable,1705,0,COMMERCIAL SUPPLIER
01-02-2023,Inclusive Economy & Housing,N & N Property Management Limited,Rents Payable,1395,0,COMMERCIAL SUPPLIER
01-02-2023,Inclusive Economy & Housing,N & N Property Management Limited,Rents Payable,1860,0,COMMERCIAL SUPPLIER
01-02-2023,Inclusive Economy & Housing,N & N Property Management Limited,Rents Payable,1488,0,COMMERCIAL SUPPLIER
01-02-2023,Inclusive Economy & Housing,N & N Property Management Limited,Rents Payable,1860,0,COMMERCIAL SUPPLIER
01-02-2023,Inclusive Economy & Housing,N & N Property Management Limited,Rents Payable,1705,0,COMMERCIAL SUPPLIER
01-02-2023,Inclusive Economy & Housing,Sandra Davidson Estate Agents,Rents Payable,1660.98,0,INDIVIDUALS
01-02-2023,Inclusive Economy & Housing,Sandra Davidson Estate Agents,Rents Payable,1660.98,0,INDIVIDUALS
01-02-2023,Inclusive Economy & Housing,Sandra Davidson Estate Agents,Rents Payable,1643,0,INDIVIDUALS
01-02-2023,Inclusive Economy & Housing,Sandra Davidson Estate Agents,Rents Payable,1660.98,0,INDIVIDUALS
01-02-2023,Inclusive Economy & Housing,Sandra Davidson Estate Agents,Rents Payable,1660.98,0,INDIVIDUALS
01-02-2023,Inclusive Economy & Housing,Sandra Davidson Estate Agents,Rents Payable,1660.98,0,INDIVIDUALS
01-02-2023,Inclusive Economy & Housing,Sandra Davidson Estate Agents,Rents Payable,961,0,INDIVIDUALS
01-02-2023,Inclusive Economy & Housing,Sandra Davidson Estate Agents,Rents Payable,1660.98,0,INDIVIDUALS
01-02-2023,Inclusive Economy & Housing,Sandra Davidson Estate Agents,Rents Payable,1660.98,0,INDIVIDUALS
01-02-2023,Inclusive Economy & Housing,Sandra Davidson Estate Agents,Rents Payable,1612,0,INDIVIDUALS
01-02-2023,Inclusive Economy & Housing,Sandra Davidson Estate Agents,Rents Payable,1860,0,INDIVIDUALS
01-02-2023,Inclusive Economy & Housing,Sandra Davidson Estate Agents,Rents Payable,1417.32,0,INDIVIDUALS
01-02-2023,Inclusive Economy & Housing,Sandra Davidson Estate Agents,Rents Payable,1417.32,0,INDIVIDUALS
01-02-2023,Inclusive Economy & Housing,Sandra Davidson Estate Agents,Rents Payable,1417.32,0,INDIVIDUALS
01-02-2023,Inclusive Economy & Housing,Sandra Davidson Estate Agents,Rents Payable,1705,0,INDIVIDUALS
01-02-2023,Inclusive Economy & Housing,Sandra Davidson Estate Agents,Rents Payable,1417.32,0,INDIVIDUALS
01-02-2023,Inclusive Economy & Housing,Sandra Davidson Estate Agents,Rents Payable,1771.65,0,INDIVIDUALS
01-02-2023,Inclusive Economy & Housing,Sandra Davidson Estate Agents,Rents Payable,1660.98,0,INDIVIDUALS
01-02-2023,Inclusive Economy & Housing,Sandra Davidson Estate Agents,Rents Payable,1417.32,0,INDIVIDUALS
01-02-2023,Inclusive Economy & Housing,Sandra Davidson Estate Agents,Rents Payable,1271,0,INDIVIDUALS
01-02-2023,Inclusive Economy & Housing,Sandra Davidson Estate Agents,Rents Payable,1417.32,0,INDIVIDUALS
01-02-2023,Inclusive Economy & Housing,Sandra Davidson Estate Agents,Rents Payable,1472.5,0,INDIVIDUALS
01-02-2023,Inclusive Economy & Housing,Sandra Davidson Estate Agents,Rents Payable,1054,0,INDIVIDUALS
01-02-2023,Inclusive Economy & Housing,Sandra Davidson Estate Agents,Rents Payable,1417.32,0,INDIVIDUALS
01-02-2023,Inclusive Economy & Housing,Sandra Davidson Estate Agents,Rents Payable,1660.98,0,INDIVIDUALS
01-02-2023,Inclusive Economy & Housing,Sandra Davidson Estate Agents,Rents Payable,1660.98,0,INDIVIDUALS
01-02-2023,Inclusive Economy & Housing,Sandra Davidson Estate Agents,Rents Payable,1488,0,INDIVIDUALS
01-02-2023,Inclusive Economy & Housing,Sandra Davidson Estate Agents,Rents Payable,1116,0,INDIVIDUALS
01-02-2023,Inclusive Economy & Housing,Sandra Davidson Estate Agents,Rents Payable,1417.32,0,INDIVIDUALS
01-02-2023,Inclusive Economy & Housing,Sandra Davidson Estate Agents,Rents Payable,1660.98,0,INDIVIDUALS
01-02-2023,Inclusive Economy & Housing,Sandra Davidson Estate Agents,Rents Payable,1479,0,INDIVIDUALS
01-02-2023,Inclusive Economy & Housing,Sandra Davidson Estate Agents,Rents Payable,1116,0,INDIVIDUALS
01-02-2023,Inclusive Economy & Housing,Sandra Davidson Estate Agents,Rents Payable,1116,0,INDIVIDUALS
01-02-2023,Inclusive Economy & Housing,Sandra Davidson Estate Agents,Rents Payable,1271,0,INDIVIDUALS
01-02-2023,Inclusive Economy & Housing,Sandra Davidson Estate Agents,Rents Payable,1417.32,0,INDIVIDUALS
01-02-2023,Inclusive Economy & Housing,Sandra Davidson Estate Agents,Rents Payable,1860,0,INDIVIDUALS
01-02-2023,Inclusive Economy & Housing,Sandra Davidson Estate Agents,Rents Payable,1472.5,0,INDIVIDUALS
01-02-2023,Inclusive Economy & Housing,Sandra Davidson Estate Agents,Rents Payable,1660.98,0,INDIVIDUALS
01-02-2023,Inclusive Economy & Housing,Sandra Davidson Estate Agents,Rents Payable,1417.32,0,INDIVIDUALS
01-02-2023,Inclusive Economy & Housing,Sandra Davidson Estate Agents,Rents Payable,1417.32,0,INDIVIDUALS
01-02-2023,Inclusive Economy & Housing,Sandra Davidson Estate Agents,Rents Payable,1705,0,INDIVIDUALS
01-02-2023,Inclusive Economy & Housing,Sandra Davidson Estate Agents,Rents Payable,1116,0,INDIVIDUALS
01-02-2023,Inclusive Economy & Housing,Sandra Davidson Estate Agents,Rents Payable,1417.32,0,INDIVIDUALS
01-02-2023,Inclusive Economy & Housing,Sandra Davidson Estate Agents,Rents Payable,1472.5,0,INDIVIDUALS
01-02-2023,Inclusive Economy & Housing,Sandra Davidson Estate Agents,Rents Payable,1116,0,INDIVIDUALS
01-02-2023,Inclusive Economy & Housing,Sandra Davidson Estate Agents,Rents Payable,2294,0,INDIVIDUALS
01-02-2023,Inclusive Economy & Housing,Sandra Davidson Estate Agents,Rents Payable,1417.32,0,INDIVIDUALS
01-02-2023,Inclusive Economy & Housing,Sandra Davidson Estate Agents,Rents Payable,1771.65,0,INDIVIDUALS
01-02-2023,Inclusive Economy & Housing,Sandra Davidson Estate Agents,Rents Payable,1705,0,INDIVIDUALS
01-02-2023,Inclusive Economy & Housing,Sandra Davidson Estate Agents,Rents Payable,640.08,0,INDIVIDUALS
01-02-2023,Inclusive Economy & Housing,Sandra Davidson Estate Agents,Rents Payable,665,0,INDIVIDUALS
01-02-2023,Inclusive Economy & Housing,Maier Laing Limited t/a Highcastle Estates,Rents Payable,1417.32,0,COMMERCIAL SUPPLIER
01-02-2023,Inclusive Economy & Housing,Maier Laing Limited t/a Highcastle Estates,Rents Payable,1417.32,0,COMMERCIAL SUPPLIER
01-02-2023,Inclusive Economy & Housing,Maier Laing Limited t/a Highcastle Estates,Rents Payable,1705,0,COMMERCIAL SUPPLIER
01-02-2023,Inclusive Economy & Housing,Maier Laing Limited t/a Highcastle Estates,Rents Payable,1417.32,0,COMMERCIAL SUPPLIER
01-02-2023,Inclusive Economy & Housing,Maier Laing Limited t/a Highcastle Estates,Rents Payable,1116,0,COMMERCIAL SUPPLIER
01-02-2023,Inclusive Economy & Housing,Maier Laing Limited t/a Highcastle Estates,Rents Payable,2046,0,COMMERCIAL SUPPLIER
01-02-2023,Inclusive Economy & Housing,Maier Laing Limited t/a Highcastle Estates,Rents Payable,1953,0,COMMERCIAL SUPPLIER
01-02-2023,Inclusive Economy & Housing,Maier Laing Limited t/a Highcastle Estates,Rents Payable,1705,0,COMMERCIAL SUPPLIER
01-02-2023,Inclusive Economy & Housing,Maier Laing Limited t/a Highcastle Estates,Rents Payable,1417.32,0,COMMERCIAL SUPPLIER
01-02-2023,Inclusive Economy & Housing,Maier Laing Limited t/a Highcastle Estates,Rents Payable,1472.5,0,COMMERCIAL SUPPLIER
01-02-2023,Inclusive Economy & Housing,Maier Laing Limited t/a Highcastle Estates,Rents Payable,1705,0,COMMERCIAL SUPPLIER
01-02-2023,Inclusive Economy & Housing,Time 4 U Ltd,Rents Payable,1472.5,0,NON COMMERCIAL SUPPLIER
01-02-2023,Inclusive Economy & Housing,Pynnacle Assets Ltd,Rents Payable,1426,0,COMMERCIAL SUPPLIER
01-02-2023,Inclusive Economy & Housing,DS Mission Group t/a Property Mission,Rents Payable,1860,0,COMMERCIAL SUPPLIER
01-02-2023,Inclusive Economy & Housing,DS Mission Group t/a Property Mission,Rents Payable,1417.32,0,COMMERCIAL SUPPLIER
01-02-2023,Inclusive Economy & Housing,DS Mission Group t/a Property Mission,Rents Payable,1705,0,COMMERCIAL SUPPLIER
01-02-2023,Inclusive Economy & Housing,DS Mission Group t/a Property Mission,Rents Payable,1620,0,COMMERCIAL SUPPLIER
01-02-2023,Inclusive Economy & Housing,Maxwells Estates Ltd,Rents Payable,1472.5,0,NON COMMERCIAL SUPPLIER
01-02-2023,Inclusive Economy & Housing,Maxwells Estates Ltd,Rents Payable,1705,0,NON COMMERCIAL SUPPLIER
01-02-2023,Inclusive Economy & Housing,Oliver Landon Ltd,Rents Payable,775,0,COMMERCIAL SUPPLIER
01-02-2023,Inclusive Economy & Housing,Oliver Landon Ltd,Rents Payable,1550,0,COMMERCIAL SUPPLIER
01-02-2023,Inclusive Economy & Housing,Excel Locations Ltd,Rents Payable,1860,0,COMMERCIAL SUPPLIER
01-02-2023,Inclusive Economy & Housing,Excel Locations Ltd,Rents Payable,1660.98,0,COMMERCIAL SUPPLIER
01-02-2023,Inclusive Economy & Housing,Excel Locations Ltd,Rents Payable,1488,0,COMMERCIAL SUPPLIER
01-02-2023,Inclusive Economy & Housing,Excel Locations Ltd,Rents Payable,868,0,COMMERCIAL SUPPLIER
01-02-2023,Inclusive Economy & Housing,Excel Locations Ltd,Rents Payable,868,0,COMMERCIAL SUPPLIER
01-02-2023,Inclusive Economy & Housing,Excel Locations Ltd,Rents Payable,1860,0,COMMERCIAL SUPPLIER
01-02-2023,Inclusive Economy & Housing,Excel Locations Ltd,Rents Payable,1705,0,COMMERCIAL SUPPLIER
01-02-2023,Inclusive Economy & Housing,Excel Locations Ltd,Rents Payable,1705,0,COMMERCIAL SUPPLIER
01-02-2023,Inclusive Economy & Housing,Apolonia Property Service Ltd t/a Exodus Housing,Rents Payable,1860,0,NON COMMERCIAL SUPPLIER
01-02-2023,Inclusive Economy & Housing,Apolonia Property Service Ltd t/a Exodus Housing,Rents Payable,1395,0,NON COMMERCIAL SUPPLIER
01-02-2023,Inclusive Economy & Housing,ALL SEASONS LETTINGS & MANAGEMENT LTD,Rents Payable,1472.5,0,
01-02-2023,Inclusive Economy & Housing,ALL SEASONS LETTINGS & MANAGEMENT LTD,Rents Payable,1705,0,
01-02-2023,Inclusive Economy & Housing,ALL SEASONS LETTINGS & MANAGEMENT LTD,Rents Payable,1472.5,0,
01-02-2023,Inclusive Economy & Housing,ALL SEASONS LETTINGS & MANAGEMENT LTD,Rents Payable,1705,0,
01-02-2023,Inclusive Economy & Housing,ALL SEASONS LETTINGS & MANAGEMENT LTD,Rents Payable,1417.32,0,
01-02-2023,Inclusive Economy & Housing,ALL SEASONS LETTINGS & MANAGEMENT LTD,Rents Payable,1116,0,
01-02-2023,Inclusive Economy & Housing,ALL SEASONS LETTINGS & MANAGEMENT LTD,Rents Payable,1705,0,
01-02-2023,Inclusive Economy & Housing,ALL SEASONS LETTINGS & MANAGEMENT LTD,Rents Payable,1280.16,0,
01-02-2023,Inclusive Economy & Housing,ALL SEASONS LETTINGS & MANAGEMENT LTD,Rents Payable,1417.32,0,
01-02-2023,Inclusive Economy & Housing,ALL SEASONS LETTINGS & MANAGEMENT LTD,Rents Payable,1282.5,0,
01-02-2023,Inclusive Economy & Housing,LTA Direct Ltd,Rents Payable,1417.32,0,COMMERCIAL SUPPLIER
01-02-2023,Inclusive Economy & Housing,LTA Direct Ltd,Rents Payable,1395,0,COMMERCIAL SUPPLIER
01-02-2023,Inclusive Economy & Housing,LTA Direct Ltd,Rents Payable,1417.32,0,COMMERCIAL SUPPLIER
01-02-2023,Inclusive Economy & Housing,LTA Direct Ltd,Rents Payable,1705,0,COMMERCIAL SUPPLIER
01-02-2023,Inclusive Economy & Housing,LTA Direct Ltd,Rents Payable,1417.32,0,COMMERCIAL SUPPLIER
01-02-2023,Inclusive Economy & Housing,LTA Direct Ltd,Rents Payable,1116,0,COMMERCIAL SUPPLIER
01-02-2023,Inclusive Economy & Housing,LTA Direct Ltd,Rents Payable,1705,0,COMMERCIAL SUPPLIER
01-02-2023,Inclusive Economy & Housing,LTA Direct Ltd,Rents Payable,1705,0,COMMERCIAL SUPPLIER
01-02-2023,Inclusive Economy & Housing,LTA Direct Ltd,Rents Payable,1705,0,COMMERCIAL SUPPLIER
01-02-2023,Inclusive Economy & Housing,LTA Direct Ltd,Rents Payable,1325.88,0,COMMERCIAL SUPPLIER
01-02-2023,Inclusive Economy & Housing,LTA Direct Ltd,Rents Payable,1417.32,0,COMMERCIAL SUPPLIER
01-02-2023,Inclusive Economy & Housing,LTA Direct Ltd,Rents Payable,1860,0,COMMERCIAL SUPPLIER
01-02-2023,Inclusive Economy & Housing,LTA Direct Ltd,Rents Payable,1705,0,COMMERCIAL SUPPLIER
01-02-2023,Inclusive Economy & Housing,LTA Direct Ltd,Rents Payable,1771.65,0,COMMERCIAL SUPPLIER
01-02-2023,Inclusive Economy & Housing,LTA Direct Ltd,Rents Payable,1767,0,COMMERCIAL SUPPLIER
01-02-2023,Inclusive Economy & Housing,LTA Direct Ltd,Rents Payable,1472.5,0,COMMERCIAL SUPPLIER
01-02-2023,Inclusive Economy & Housing,LTA Direct Ltd,Rents Payable,1860,0,COMMERCIAL SUPPLIER
01-02-2023,Inclusive Economy & Housing,LTA Direct Ltd,Rents Payable,1705,0,COMMERCIAL SUPPLIER
01-02-2023,Inclusive Economy & Housing,LTA Direct Ltd,Rents Payable,1472.5,0,COMMERCIAL SUPPLIER
01-02-2023,Inclusive Economy & Housing,LTA Direct Ltd,Rents Payable,1417.32,0,COMMERCIAL SUPPLIER
01-02-2023,Inclusive Economy & Housing,LTA Direct Ltd,Rents Payable,1417.32,0,COMMERCIAL SUPPLIER
01-02-2023,Inclusive Economy & Housing,LTA Direct Ltd,Rents Payable,1472.5,0,COMMERCIAL SUPPLIER
01-02-2023,Inclusive Economy & Housing,LTA Direct Ltd,Rents Payable,1472.5,0,COMMERCIAL SUPPLIER
01-02-2023,Inclusive Economy & Housing,Direct Property Services,Rents Payable,1705,0,NON COMMERCIAL SUPPLIER
01-02-2023,Inclusive Economy & Housing,Direct Property Services,Rents Payable,1472.5,0,NON COMMERCIAL SUPPLIER
01-02-2023,Inclusive Economy & Housing,Direct Property Services,Rents Payable,1472.5,0,NON COMMERCIAL SUPPLIER
01-02-2023,Inclusive Economy & Housing,Direct Property Services,Rents Payable,1860,0,NON COMMERCIAL SUPPLIER
01-02-2023,Inclusive Economy & Housing,Direct Property Services,Rents Payable,1771.65,0,NON COMMERCIAL SUPPLIER
01-02-2023,Inclusive Economy & Housing,Direct Property Services,Rents Payable,1771.65,0,NON COMMERCIAL SUPPLIER
01-02-2023,Inclusive Economy & Housing,Direct Property Services,Rents Payable,1660.98,0,NON COMMERCIAL SUPPLIER
01-02-2023,Inclusive Economy & Housing,Direct Property Services,Rents Payable,1904.33,0,NON COMMERCIAL SUPPLIER
01-02-2023,Inclusive Economy & Housing,Direct Property Services,Rents Payable,1116,0,NON COMMERCIAL SUPPLIER
01-02-2023,Inclusive Economy & Housing,Direct Property Services,Rents Payable,1472.5,0,NON COMMERCIAL SUPPLIER
01-02-2023,Inclusive Economy & Housing,Direct Property Services,Rents Payable,1771.65,0,NON COMMERCIAL SUPPLIER
01-02-2023,Inclusive Economy & Housing,Direct Property Services,Rents Payable,1472.5,0,NON COMMERCIAL SUPPLIER
01-02-2023,Inclusive Economy & Housing,Direct Property Services,Rents Payable,1472.5,0,NON COMMERCIAL SUPPLIER
01-02-2023,Inclusive Economy & Housing,Direct Property Services,Rents Payable,1122,0,NON COMMERCIAL SUPPLIER
01-02-2023,Inclusive Economy & Housing,Direct Property Services,Rents Payable,1705,0,NON COMMERCIAL SUPPLIER
01-02-2023,Inclusive Economy & Housing,Direct Property Services,Rents Payable,1860,0,NON COMMERCIAL SUPPLIER
01-02-2023,Inclusive Economy & Housing,Direct Property Services,Rents Payable,2170,0,NON COMMERCIAL SUPPLIER
01-02-2023,Inclusive Economy & Housing,Direct Property Services,Rents Payable,1550,0,NON COMMERCIAL SUPPLIER
01-02-2023,Inclusive Economy & Housing,Direct Property Services,Rents Payable,1771.65,0,NON COMMERCIAL SUPPLIER
01-02-2023,Inclusive Economy & Housing,Direct Property Services,Rents Payable,1860,0,NON COMMERCIAL SUPPLIER
01-02-2023,Inclusive Economy & Housing,Direct Property Services,Rents Payable,1325.88,0,NON COMMERCIAL SUPPLIER
01-02-2023,Inclusive Economy & Housing,Direct Property Services,Rents Payable,1116,0,NON COMMERCIAL SUPPLIER
01-02-2023,Inclusive Economy & Housing,Direct Property Services,Rents Payable,1771.65,0,NON COMMERCIAL SUPPLIER
01-02-2023,Inclusive Economy & Housing,Direct Property Services,Rents Payable,1472.5,0,NON COMMERCIAL SUPPLIER
01-02-2023,Inclusive Economy & Housing,Direct Property Services,Rents Payable,1417.32,0,NON COMMERCIAL SUPPLIER
01-02-2023,Inclusive Economy & Housing,Direct Property Services,Rents Payable,1472.5,0,NON COMMERCIAL SUPPLIER
01-02-2023,Inclusive Economy & Housing,Direct Property Services,Rents Payable,1472.5,0,NON COMMERCIAL SUPPLIER
01-02-2023,Inclusive Economy & Housing,Direct Property Services,Rents Payable,1302,0,NON COMMERCIAL SUPPLIER
01-02-2023,Inclusive Economy & Housing,Direct Property Services,Rents Payable,1860,0,NON COMMERCIAL SUPPLIER
01-02-2023,Inclusive Economy & Housing,Direct Property Services,Rents Payable,1472.5,0,NON COMMERCIAL SUPPLIER
01-02-2023,Inclusive Economy & Housing,Direct Property Services,Rents Payable,1600.2,0,NON COMMERCIAL SUPPLIER
01-02-2023,Inclusive Economy & Housing,Direct Property Services,Rents Payable,1771.65,0,NON COMMERCIAL SUPPLIER
01-02-2023,Inclusive Economy & Housing,Direct Property Services,Rents Payable,1330,0,NON COMMERCIAL SUPPLIER
01-02-2023,Inclusive Economy & Housing,Direct Property Services,Rents Payable,1472.5,0,NON COMMERCIAL SUPPLIER
01-02-2023,Inclusive Economy & Housing,M M M Homes Ltd,Rents Payable,1503.5,0,NON COMMERCIAL SUPPLIER
01-02-2023,Inclusive Economy & Housing,M M M Homes Ltd,Rents Payable,1472.5,0,NON COMMERCIAL SUPPLIER
01-02-2023,Inclusive Economy & Housing,Sai Estates MGMT Ltd,Rents Payable,1550,0,NON COMMERCIAL SUPPLIER
01-02-2023,Inclusive Economy & Housing,Sai Estates MGMT Ltd,Rents Payable,1705,0,NON COMMERCIAL SUPPLIER
01-02-2023,Inclusive Economy & Housing,Sai Estates MGMT Ltd,Rents Payable,1705,0,NON COMMERCIAL SUPPLIER
01-02-2023,Inclusive Economy & Housing,Sai Estates MGMT Ltd,Rents Payable,1860,0,NON COMMERCIAL SUPPLIER
01-02-2023,Inclusive Economy & Housing,Sai Estates MGMT Ltd,Rents Payable,1550,0,NON COMMERCIAL SUPPLIER
01-02-2023,Inclusive Economy & Housing,Sai Estates MGMT Ltd,Rents Payable,1860,0,NON COMMERCIAL SUPPLIER
01-02-2023,Inclusive Economy & Housing,Sai Estates MGMT Ltd,Rents Payable,1771.65,0,NON COMMERCIAL SUPPLIER
01-02-2023,Inclusive Economy & Housing,Sai Estates MGMT Ltd,Rents Payable,1417.32,0,NON COMMERCIAL SUPPLIER
01-02-2023,Inclusive Economy & Housing,Sai Estates MGMT Ltd,Rents Payable,1660.98,0,NON COMMERCIAL SUPPLIER
01-02-2023,Inclusive Economy & Housing,Sai Estates MGMT Ltd,Rents Payable,1395,0,NON COMMERCIAL SUPPLIER
01-02-2023,Inclusive Economy & Housing,Sai Estates MGMT Ltd,Rents Payable,1705,0,NON COMMERCIAL SUPPLIER
01-02-2023,Inclusive Economy & Housing,Sai Estates MGMT Ltd,Rents Payable,1178,0,NON COMMERCIAL SUPPLIER
01-02-2023,Inclusive Economy & Housing,Sai Estates MGMT Ltd,Rents Payable,1860,0,NON COMMERCIAL SUPPLIER
01-02-2023,Inclusive Economy & Housing,Sai Estates MGMT Ltd,Rents Payable,1705,0,NON COMMERCIAL SUPPLIER
01-02-2023,Inclusive Economy & Housing,Sai Estates MGMT Ltd,Rents Payable,1860,0,NON COMMERCIAL SUPPLIER
01-02-2023,Inclusive Economy & Housing,Sai Estates MGMT Ltd,Rents Payable,1705,0,NON COMMERCIAL SUPPLIER
01-02-2023,Inclusive Economy & Housing,Sai Estates MGMT Ltd,Rents Payable,1860,0,NON COMMERCIAL SUPPLIER
01-02-2023,Inclusive Economy & Housing,Sai Estates MGMT Ltd,Rents Payable,1417.32,0,NON COMMERCIAL SUPPLIER
01-02-2023,Inclusive Economy & Housing,Sai Estates MGMT Ltd,Rents Payable,1116,0,NON COMMERCIAL SUPPLIER
01-02-2023,Inclusive Economy & Housing,Sai Estates MGMT Ltd,Rents Payable,1860,0,NON COMMERCIAL SUPPLIER
01-02-2023,Inclusive Economy & Housing,Maier Laing Limited t/a Highcastle Estates,Rents Payable,1472.5,0,COMMERCIAL SUPPLIER
01-02-2023,Inclusive Economy & Housing,Maier Laing Limited t/a Highcastle Estates,Rents Payable,1236.9,0,COMMERCIAL SUPPLIER
01-02-2023,Inclusive Economy & Housing,Maier Laing Limited t/a Highcastle Estates,Rents Payable,1116,0,COMMERCIAL SUPPLIER
01-02-2023,Inclusive Economy & Housing,Maier Laing Limited t/a Highcastle Estates,Rents Payable,1472.5,0,COMMERCIAL SUPPLIER
01-02-2023,Inclusive Economy & Housing,Maier Laing Limited t/a Highcastle Estates,Rents Payable,1116,0,COMMERCIAL SUPPLIER
01-02-2023,Inclusive Economy & Housing,Maier Laing Limited t/a Highcastle Estates,Rents Payable,1771.65,0,COMMERCIAL SUPPLIER
01-02-2023,Inclusive Economy & Housing,Maier Laing Limited t/a Highcastle Estates,Rents Payable,1705,0,COMMERCIAL SUPPLIER
01-02-2023,Inclusive Economy & Housing,Maier Laing Limited t/a Highcastle Estates,Rents Payable,1705,0,COMMERCIAL SUPPLIER
01-02-2023,Inclusive Economy & Housing,Bystone Ltd,Rents Payable,1953,0,COMMERCIAL SUPPLIER
01-02-2023,Inclusive Economy & Housing,Bystone Ltd,Rents Payable,1116,0,COMMERCIAL SUPPLIER
01-02-2023,Inclusive Economy & Housing,Bystone Ltd,Rents Payable,1705,0,COMMERCIAL SUPPLIER
01-02-2023,Inclusive Economy & Housing,Bystone Ltd,Rents Payable,1860,0,COMMERCIAL SUPPLIER
01-02-2023,Inclusive Economy & Housing,Bystone Ltd,Rents Payable,1953,0,COMMERCIAL SUPPLIER
01-02-2023,Inclusive Economy & Housing,Bystone Ltd,Rents Payable,1705,0,COMMERCIAL SUPPLIER
01-02-2023,Inclusive Economy & Housing,Bystone Ltd,Rents Payable,1860,0,COMMERCIAL SUPPLIER
01-02-2023,Inclusive Economy & Housing,Bystone Ltd,Rents Payable,1860,0,COMMERCIAL SUPPLIER
01-02-2023,Inclusive Economy & Housing,Bystone Ltd,Rents Payable,1771.65,0,COMMERCIAL SUPPLIER
01-02-2023,Inclusive Economy & Housing,Bystone Ltd,Rents Payable,1472.5,0,COMMERCIAL SUPPLIER
01-02-2023,Inclusive Economy & Housing,Bystone Ltd,Rents Payable,1425,0,COMMERCIAL SUPPLIER
01-02-2023,Inclusive Economy & Housing,Bystone Ltd,Rents Payable,1860,0,COMMERCIAL SUPPLIER
01-02-2023,Inclusive Economy & Housing,Bystone Ltd,Rents Payable,1116,0,COMMERCIAL SUPPLIER
01-02-2023,Inclusive Economy & Housing,Bystone Ltd,Rents Payable,1417.32,0,COMMERCIAL SUPPLIER
01-02-2023,Inclusive Economy & Housing,Bystone Ltd,Rents Payable,1472.5,0,COMMERCIAL SUPPLIER
01-02-2023,Inclusive Economy & Housing,Bystone Ltd,Rents Payable,1705,0,COMMERCIAL SUPPLIER
01-02-2023,Inclusive Economy & Housing,Bystone Ltd,Rents Payable,1472.5,0,COMMERCIAL SUPPLIER
01-02-2023,Inclusive Economy & Housing,Bystone Ltd,Rents Payable,1660.98,0,COMMERCIAL SUPPLIER
01-02-2023,Inclusive Economy & Housing,Bystone Ltd,Rents Payable,1302,0,COMMERCIAL SUPPLIER
01-02-2023,Inclusive Economy & Housing,Bystone Ltd,Rents Payable,1472.5,0,COMMERCIAL SUPPLIER
01-02-2023,Inclusive Economy & Housing,Bystone Ltd,Rents Payable,1472.5,0,COMMERCIAL SUPPLIER
01-02-2023,Inclusive Economy & Housing,Bystone Ltd,Rents Payable,1705,0,COMMERCIAL SUPPLIER
01-02-2023,Inclusive Economy & Housing,Bystone Ltd,Rents Payable,1417.32,0,COMMERCIAL SUPPLIER
01-02-2023,Inclusive Economy & Housing,Bystone Ltd,Rents Payable,1472.5,0,COMMERCIAL SUPPLIER
01-02-2023,Inclusive Economy & Housing,Bystone Ltd,Rents Payable,1116,0,COMMERCIAL SUPPLIER
01-02-2023,Inclusive Economy & Housing,Bystone Ltd,Rents Payable,1472.5,0,COMMERCIAL SUPPLIER
01-02-2023,Inclusive Economy & Housing,Bystone Ltd,Rents Payable,1472.5,0,COMMERCIAL SUPPLIER
01-02-2023,Inclusive Economy & Housing,Bystone Ltd,Rents Payable,1116,0,COMMERCIAL SUPPLIER
01-02-2023,Inclusive Economy & Housing,Bystone Ltd,Rents Payable,1472.5,0,COMMERCIAL SUPPLIER
01-02-2023,Inclusive Economy & Housing,D&G Lettings Ltd,Rents Payable,1660.98,0,COMMERCIAL SUPPLIER
01-02-2023,Inclusive Economy & Housing,D&G Lettings Ltd,Rents Payable,1240,0,COMMERCIAL SUPPLIER
01-02-2023,Inclusive Economy & Housing,D&G Lettings Ltd,Rents Payable,1860,0,COMMERCIAL SUPPLIER
01-02-2023,Inclusive Economy & Housing,D&G Lettings Ltd,Rents Payable,1705,0,COMMERCIAL SUPPLIER
01-02-2023,Inclusive Economy & Housing,D&G Lettings Ltd,Rents Payable,1178.76,0,COMMERCIAL SUPPLIER
01-02-2023,Inclusive Economy & Housing,D&G Lettings Ltd,Rents Payable,1660.98,0,COMMERCIAL SUPPLIER
01-02-2023,Inclusive Economy & Housing,Reliance Residential Ltd,Rents Payable,1240,0,COMMERCIAL SUPPLIER
01-02-2023,Inclusive Economy & Housing,Reliance Residential Ltd,Rents Payable,1178,0,COMMERCIAL SUPPLIER
01-02-2023,Inclusive Economy & Housing,Reliance Residential Ltd,Rents Payable,1472.5,0,COMMERCIAL SUPPLIER
01-02-2023,Inclusive Economy & Housing,Reliance Residential Ltd,Rents Payable,1178,0,COMMERCIAL SUPPLIER
01-02-2023,Inclusive Economy & Housing,Reliance Residential Ltd,Rents Payable,1472.5,0,COMMERCIAL SUPPLIER
01-02-2023,Inclusive Economy & Housing,Reliance Residential Ltd,Rents Payable,1472.5,0,COMMERCIAL SUPPLIER
01-02-2023,Inclusive Economy & Housing,Reliance Residential Ltd,Rents Payable,1705,0,COMMERCIAL SUPPLIER
01-02-2023,Inclusive Economy & Housing,South East Residentials,Rents Payable,1023,0,NON COMMERCIAL SUPPLIER
01-02-2023,Inclusive Economy & Housing,South East Residentials,Rents Payable,1472.5,0,NON COMMERCIAL SUPPLIER
01-02-2023,Inclusive Economy & Housing,South East Residentials,Rents Payable,1240,0,NON COMMERCIAL SUPPLIER
01-02-2023,Inclusive Economy & Housing,South East Residentials,Rents Payable,1860,0,NON COMMERCIAL SUPPLIER
01-02-2023,Inclusive Economy & Housing,South East Residentials,Rents Payable,924,0,NON COMMERCIAL SUPPLIER
01-02-2023,Inclusive Economy & Housing,South East Residentials,Rents Payable,1023,0,NON COMMERCIAL SUPPLIER
01-02-2023,Inclusive Economy & Housing,Southgate Property Management Ltd,Rents Payable,868,0,COMMERCIAL SUPPLIER
01-02-2023,Inclusive Economy & Housing,Southgate Property Management Ltd,Rents Payable,1302,0,COMMERCIAL SUPPLIER
01-02-2023,Inclusive Economy & Housing,Southgate Property Management Ltd,Rents Payable,868,0,COMMERCIAL SUPPLIER
01-02-2023,Inclusive Economy & Housing,Southgate Property Management Ltd,Rents Payable,1417.32,0,COMMERCIAL SUPPLIER
01-02-2023,Inclusive Economy & Housing,Southgate Property Management Ltd,Rents Payable,1581,0,COMMERCIAL SUPPLIER
01-02-2023,Inclusive Economy & Housing,Southgate Property Management Ltd,Rents Payable,1417.32,0,COMMERCIAL SUPPLIER
01-02-2023,Inclusive Economy & Housing,Southgate Property Management Ltd,Rents Payable,868,0,COMMERCIAL SUPPLIER
01-02-2023,Inclusive Economy & Housing,Southgate Property Management Ltd,Rents Payable,1488,0,COMMERCIAL SUPPLIER
01-02-2023,Inclusive Economy & Housing,Southgate Property Management Ltd,Rents Payable,1271,0,COMMERCIAL SUPPLIER
01-02-2023,Inclusive Economy & Housing,Crystal Estates Ltd,Rents Payable,1612,0,COMMERCIAL SUPPLIER
01-02-2023,Inclusive Economy & Housing,Crystal Estates Ltd,Rents Payable,2015,0,COMMERCIAL SUPPLIER
01-02-2023,Inclusive Economy & Housing,Crystal Estates Ltd,Rents Payable,1891,0,COMMERCIAL SUPPLIER
01-02-2023,Inclusive Economy & Housing,Crystal Estates Ltd,Rents Payable,2170,0,COMMERCIAL SUPPLIER
01-02-2023,Inclusive Economy & Housing,Crystal Estates Ltd,Rents Payable,2108,0,COMMERCIAL SUPPLIER
01-02-2023,Inclusive Economy & Housing,Crystal Estates Ltd,Rents Payable,1581,0,COMMERCIAL SUPPLIER
01-02-2023,Inclusive Economy & Housing,Direct Property Services,Rents Payable,1417.32,0,NON COMMERCIAL SUPPLIER
01-02-2023,Inclusive Economy & Housing,Nationwide Accommodation Services Limited,Rents Payable,1860,0,COMMERCIAL SUPPLIER
01-02-2023,Inclusive Economy & Housing,Nationwide Accommodation Services Limited,Rents Payable,1953,0,COMMERCIAL SUPPLIER
01-02-2023,Inclusive Economy & Housing,Nationwide Accommodation Services Limited,Rents Payable,1705,0,COMMERCIAL SUPPLIER
01-02-2023,Inclusive Economy & Housing,Nationwide Accommodation Services Limited,Rents Payable,1953,0,COMMERCIAL SUPPLIER
01-02-2023,Inclusive Economy & Housing,Nationwide Accommodation Services Limited,Rents Payable,1472.5,0,COMMERCIAL SUPPLIER
01-02-2023,Inclusive Economy & Housing,Nationwide Accommodation Services Limited,Rents Payable,1472.5,0,COMMERCIAL SUPPLIER
01-02-2023,Inclusive Economy & Housing,Nationwide Accommodation Services Limited,Rents Payable,1705,0,COMMERCIAL SUPPLIER
01-02-2023,Inclusive Economy & Housing,Nationwide Accommodation Services Limited,Rents Payable,1660.98,0,COMMERCIAL SUPPLIER
01-02-2023,Inclusive Economy & Housing,Nationwide Accommodation Services Limited,Rents Payable,1472.5,0,COMMERCIAL SUPPLIER
01-02-2023,Inclusive Economy & Housing,Nationwide Accommodation Services Limited,Rents Payable,1860,0,COMMERCIAL SUPPLIER
01-02-2023,Inclusive Economy & Housing,Nationwide Accommodation Services Limited,Rents Payable,1417.32,0,COMMERCIAL SUPPLIER
01-02-2023,Inclusive Economy & Housing,Nationwide Accommodation Services Limited,Rents Payable,1472.5,0,COMMERCIAL SUPPLIER
01-02-2023,Inclusive Economy & Housing,Nationwide Accommodation Services Limited,Rents Payable,1116,0,COMMERCIAL SUPPLIER
01-02-2023,Inclusive Economy & Housing,Nationwide Accommodation Services Limited,Rents Payable,1045,0,COMMERCIAL SUPPLIER
01-02-2023,Inclusive Economy & Housing,Nationwide Accommodation Services Limited,Rents Payable,1581,0,COMMERCIAL SUPPLIER
01-02-2023,Inclusive Economy & Housing,Nationwide Accommodation Services Limited,Rents Payable,1705,0,COMMERCIAL SUPPLIER
01-02-2023,Inclusive Economy & Housing,Nationwide Accommodation Services Limited,Rents Payable,1953,0,COMMERCIAL SUPPLIER
01-02-2023,Inclusive Economy & Housing,Nationwide Accommodation Services Limited,Rents Payable,1705,0,COMMERCIAL SUPPLIER
01-02-2023,Inclusive Economy & Housing,Nationwide Accommodation Services Limited,Rents Payable,1953,0,COMMERCIAL SUPPLIER
01-02-2023,Inclusive Economy & Housing,Nationwide Accommodation Services Limited,Rents Payable,1860,0,COMMERCIAL SUPPLIER
01-02-2023,Inclusive Economy & Housing,Nationwide Accommodation Services Limited,Rents Payable,1771.65,0,COMMERCIAL SUPPLIER
01-02-2023,Inclusive Economy & Housing,Nationwide Accommodation Services Limited,Rents Payable,1417.32,0,COMMERCIAL SUPPLIER
01-02-2023,Inclusive Economy & Housing,Nationwide Accommodation Services Limited,Rents Payable,1689.5,0,COMMERCIAL SUPPLIER
01-02-2023,Inclusive Economy & Housing,Nationwide Accommodation Services Limited,Rents Payable,1550,0,COMMERCIAL SUPPLIER
01-02-2023,Inclusive Economy & Housing,House 71 Ltd,Rents Payable,1550,0,COMMERCIAL SUPPLIER
01-02-2023,Inclusive Economy & Housing,House 71 Ltd,Rents Payable,1023,0,COMMERCIAL SUPPLIER
01-02-2023,Inclusive Economy & Housing,Jacobs London Ltd,Rents Payable,1116,0,COMMERCIAL SUPPLIER
01-02-2023,Inclusive Economy & Housing,Jacobs London Ltd,Rents Payable,1178,0,COMMERCIAL SUPPLIER
01-02-2023,Inclusive Economy & Housing,Jacobs London Ltd,Rents Payable,1240,0,COMMERCIAL SUPPLIER
01-02-2023,Inclusive Economy & Housing,Jacobs London Ltd,Rents Payable,1860,0,COMMERCIAL SUPPLIER
01-02-2023,Inclusive Economy & Housing,Jacobs London Ltd,Rents Payable,1472.5,0,COMMERCIAL SUPPLIER
01-02-2023,Inclusive Economy & Housing,Jacobs London Ltd,Rents Payable,1860,0,COMMERCIAL SUPPLIER
01-02-2023,Inclusive Economy & Housing,Jacobs London Ltd,Rents Payable,1705,0,COMMERCIAL SUPPLIER
01-02-2023,Inclusive Economy & Housing,Jacobs London Ltd,Rents Payable,1102,0,COMMERCIAL SUPPLIER
01-02-2023,Inclusive Economy & Housing,Jacobs London Ltd,Rents Payable,1472.5,0,COMMERCIAL SUPPLIER
01-02-2023,Inclusive Economy & Housing,Jacobs London Ltd,Rents Payable,1472.5,0,COMMERCIAL SUPPLIER
01-02-2023,Inclusive Economy & Housing,Jacobs London Ltd,Rents Payable,1660.98,0,COMMERCIAL SUPPLIER
01-02-2023,Inclusive Economy & Housing,Jacobs London Ltd,Rents Payable,1472.5,0,COMMERCIAL SUPPLIER
01-02-2023,Inclusive Economy & Housing,Jacobs London Ltd,Rents Payable,1860,0,COMMERCIAL SUPPLIER
01-02-2023,Inclusive Economy & Housing,Jacobs London Ltd,Rents Payable,1457,0,COMMERCIAL SUPPLIER
01-02-2023,Inclusive Economy & Housing,Jacobs London Ltd,Rents Payable,1472.5,0,COMMERCIAL SUPPLIER
01-02-2023,Inclusive Economy & Housing,Jacobs London Ltd,Rents Payable,1705,0,COMMERCIAL SUPPLIER
01-02-2023,Inclusive Economy & Housing,Jacobs London Ltd,Rents Payable,1860,0,COMMERCIAL SUPPLIER
01-02-2023,Inclusive Economy & Housing,Jacobs London Ltd,Rents Payable,1705,0,COMMERCIAL SUPPLIER
01-02-2023,Inclusive Economy & Housing,Jacobs London Ltd,Rents Payable,1550,0,COMMERCIAL SUPPLIER
01-02-2023,Inclusive Economy & Housing,Jacobs London Ltd,Rents Payable,1705,0,COMMERCIAL SUPPLIER
01-02-2023,Inclusive Economy & Housing,Jacobs London Ltd,Rents Payable,1240,0,COMMERCIAL SUPPLIER
01-02-2023,Inclusive Economy & Housing,Jacobs London Ltd,Rents Payable,1705,0,COMMERCIAL SUPPLIER
01-02-2023,Inclusive Economy & Housing,Jacobs London Ltd,Rents Payable,864,0,COMMERCIAL SUPPLIER
01-02-2023,Inclusive Economy & Housing,Bystone Ltd,Rents Payable,1472.5,0,COMMERCIAL SUPPLIER
01-02-2023,Inclusive Economy & Housing,Bystone Ltd,Rents Payable,1395,0,COMMERCIAL SUPPLIER
01-02-2023,Inclusive Economy & Housing,Bystone Ltd,Rents Payable,1472.5,0,COMMERCIAL SUPPLIER
01-02-2023,Inclusive Economy & Housing,Bystone Ltd,Rents Payable,1860,0,COMMERCIAL SUPPLIER
01-02-2023,Inclusive Economy & Housing,Bystone Ltd,Rents Payable,1953,0,COMMERCIAL SUPPLIER
01-02-2023,Inclusive Economy & Housing,Bystone Ltd,Rents Payable,1890,0,COMMERCIAL SUPPLIER
01-02-2023,Inclusive Economy & Housing,Bystone Ltd,Rents Payable,1660.98,0,COMMERCIAL SUPPLIER
01-02-2023,Inclusive Economy & Housing,Bystone Ltd,Rents Payable,1860,0,COMMERCIAL SUPPLIER
